Body,Body name,Service label,Service divison label,Expenditure category,Detailed expenditure type,Detailed expenditure code,Date paid,Transaction number,Net amount,Capital or revenue,Supplier name
http://statistics.data.gov.uk/doc/local-authority/00DA,Leeds City Council,Central & Corporate Functions,Commercial Services Trading Services,Supplies and Services,Operational Materials,205,09-Mar-2011,1103-00001,1010.19,R,A & A Electrical Distributors Ltd
http://statistics.data.gov.uk/doc/local-authority/00DA,Leeds City Council,Central & Corporate Functions,Commercial Services Trading Services,Supplies and Services,Operational Materials,205,09-Mar-2011,1103-00002,1156.40,R,A & A Electrical Distributors Ltd
http://statistics.data.gov.uk/doc/local-authority/00DA,Leeds City Council,Central & Corporate Functions,Commercial Services Trading Services,Supplies and Services,Operational Materials,205,21-Mar-2011,1103-00003,482.24,R,A & A Electrical Distributors Ltd
http://statistics.data.gov.uk/doc/local-authority/00DA,East - North East Homes Leeds,East - North East,Technical Services,Supplies and Services,Other Materials,205,18-Mar-2011,1103-00004,780.80,R,A Andrews & Sons (Marbles & Tiles)
http://statistics.data.gov.uk/doc/local-authority/00DA,Leeds City Council,Environment & Neighbourhoods,Streetscene Environmental Services,Supplies and Services,Other Hired And Contracted Services,265,11-Mar-2011,1103-00005,3744.00,R,A Appleyard
http://statistics.data.gov.uk/doc/local-authority/00DA,Leeds City Council,City Development,Highways,Premises,Maintenance Of Traffic Signals,108,09-Mar-2011,1103-00006,5507.27,R,A D D Loop Cutting Services Ltd
http://statistics.data.gov.uk/doc/local-authority/00DA,Leeds City Council,City Development,Highways,Supplies and Services,Other Hired And Contracted Services,265,15-Mar-2011,1103-00007,482.00,R,A D D Loop Cutting Services Ltd
http://statistics.data.gov.uk/doc/local-authority/00DA,East - North East Homes Leeds,East - North East,Technical Services,Employees,Temporary Staff-Basic,009,04-Mar-2011,1103-00008,552.00,R,A D Simpson Ltd
http://statistics.data.gov.uk/doc/local-authority/00DA,East - North East Homes Leeds,East - North East,Technical Services,Employees,Temporary Staff-Basic,009,04-Mar-2011,1103-00009,920.00,R,A D Simpson Ltd
http://statistics.data.gov.uk/doc/local-authority/00DA,East - North East Homes Leeds,East - North East,Technical Services,Supplies and Services,Other Hired And Contracted Services,265,04-Mar-2011,1103-00010,621.00,R,A D Simpson Ltd
http://statistics.data.gov.uk/doc/local-authority/00DA,East - North East Homes Leeds,East - North East,Technical Services,Supplies and Services,Other Hired And Contracted Services,265,04-Mar-2011,1103-00011,2178.06,R,A D Simpson Ltd
http://statistics.data.gov.uk/doc/local-authority/00DA,East - North East Homes Leeds,East - North East,Technical Services,Supplies and Services,Other Hired And Contracted Services,265,04-Mar-2011,1103-00012,1599.00,R,A D Simpson Ltd
http://statistics.data.gov.uk/doc/local-authority/00DA,East - North East Homes Leeds,East - North East,Technical Services,Supplies and Services,Other Hired And Contracted Services,265,04-Mar-2011,1103-00013,877.75,R,A D Simpson Ltd
http://statistics.data.gov.uk/doc/local-authority/00DA,East - North East Homes Leeds,East - North East,Technical Services,Supplies and Services,Other Hired And Contracted Services,265,04-Mar-2011,1103-00014,635.00,R,A D Simpson Ltd
http://statistics.data.gov.uk/doc/local-authority/00DA,East - North East Homes Leeds,East - North East,Technical Services,Employees,Temporary Staff-Basic,009,04-Mar-2011,1103-00015,920.00,R,A D Simpson Ltd
http://statistics.data.gov.uk/doc/local-authority/00DA,East - North East Homes Leeds,East - North East,Technical Services,Employees,Temporary Staff-Basic,009,04-Mar-2011,1103-00016,552.00,R,A D Simpson Ltd
http://statistics.data.gov.uk/doc/local-authority/00DA,East - North East Homes Leeds,East - North East,Technical Services,Employees,Temporary Staff-Basic,009,04-Mar-2011,1103-00017,920.00,R,A D Simpson Ltd
http://statistics.data.gov.uk/doc/local-authority/00DA,East - North East Homes Leeds,East - North East,Technical Services,Supplies and Services,Other Hired And Contracted Services,265,04-Mar-2011,1103-00018,594.80,R,A D Simpson Ltd
http://statistics.data.gov.uk/doc/local-authority/00DA,East - North East Homes Leeds,East - North East,Technical Services,Supplies and Services,Other Hired And Contracted Services,265,04-Mar-2011,1103-00019,660.00,R,A D Simpson Ltd
http://statistics.data.gov.uk/doc/local-authority/00DA,East - North East Homes Leeds,East - North East,Technical Services,Supplies and Services,Other Hired And Contracted Services,265,09-Mar-2011,1103-00020,1037.10,R,A D Simpson Ltd
http://statistics.data.gov.uk/doc/local-authority/00DA,East - North East Homes Leeds,East - North East,Technical Services,Supplies and Services,Other Hired And Contracted Services,265,09-Mar-2011,1103-00021,899.75,R,A D Simpson Ltd
http://statistics.data.gov.uk/doc/local-authority/00DA,East - North East Homes Leeds,East - North East,Technical Services,Supplies and Services,Other Hired And Contracted Services,265,18-Mar-2011,1103-00022,926.05,R,A D Simpson Ltd
http://statistics.data.gov.uk/doc/local-authority/00DA,East - North East Homes Leeds,East - North East,Technical Services,Supplies and Services,Other Hired And Contracted Services,265,18-Mar-2011,1103-00023,1053.95,R,A D Simpson Ltd
http://statistics.data.gov.uk/doc/local-authority/00DA,Leeds City Council,Childrens Services,Early Years Service,Third Party Payments,Services Rendered By Voluntary Sector,505,22-Mar-2011,1103-00024,3367.47,R,A E Speight
http://statistics.data.gov.uk/doc/local-authority/00DA,Leeds City Council,Central & Corporate Functions,Civic And Community Buildings,Capital,Other Costs,7,23-Mar-2011,1103-00025,4891.00,C,A Fox Industrial Doors
http://statistics.data.gov.uk/doc/local-authority/00DA,Leeds City Council,Central & Corporate Functions,Commercial Services Trading Services,Supplies and Services,Other Hired And Contracted Services,265,29-Mar-2011,1103-00026,5765.00,R,A J H  Pump Supply & Repair Ltd
http://statistics.data.gov.uk/doc/local-authority/00DA,Leeds City Council,Childrens Services,Integrated Youth Support  Service,Employees,Training Costs,071,22-Mar-2011,1103-00027,700.00,R,A J Matthews
http://statistics.data.gov.uk/doc/local-authority/00DA,Leeds City Council,Childrens Services,Early Years Service,Capital,Construction,3,14-Mar-2011,1103-00028,3535.21,C,A J Roberts (Construction) Ltd
http://statistics.data.gov.uk/doc/local-authority/00DA,Leeds City Council,Childrens Services,Children Looked After,Third Party Payments,General External Residential Placements,507,08-Mar-2011,1103-00029,13000.00,R,A Lowrie Care Service Limited
http://statistics.data.gov.uk/doc/local-authority/00DA,Leeds City Council,Childrens Services,Children Looked After,Third Party Payments,General External Residential Placements,507,14-Mar-2011,1103-00030,13000.00,R,A Lowrie Care Service Limited
http://statistics.data.gov.uk/doc/local-authority/00DA,Leeds City Council,Childrens Services,Children Looked After,Third Party Payments,General External Residential Placements,507,25-Mar-2011,1103-00031,13000.00,R,A Lowrie Care Service Limited
http://statistics.data.gov.uk/doc/local-authority/00DA,Leeds City Council,Environment & Neighbourhoods,Health & Environmental Action,Supplies and Services,Office Consumables,210,29-Mar-2011,1103-00032,1420.00,R,A Maywell Ltd
http://statistics.data.gov.uk/doc/local-authority/00DA,Leeds City Council,Central & Corporate Functions,Customer Services,Supplies and Services,Other Hired And Contracted Services,265,07-Mar-2011,1103-00033,553.10,R,A Mohammed
http://statistics.data.gov.uk/doc/local-authority/00DA,Leeds City Council,Central & Corporate Functions,Customer Services,Supplies and Services,Other Hired And Contracted Services,265,07-Mar-2011,1103-00034,1225.50,R,A Namaki
http://statistics.data.gov.uk/doc/local-authority/00DA,Leeds City Council,City Development,Libraries Arts & Heritage,Supplies and Services,Other Hired And Contracted Services,265,25-Mar-2011,1103-00035,15000.00,R,A T Cronin Workshop
http://statistics.data.gov.uk/doc/local-authority/00DA,Leeds City Council,City Development,Libraries Arts & Heritage,Supplies and Services,Publication And Promotion,267,08-Mar-2011,1103-00036,702.00,R,A Y Creative Services
http://statistics.data.gov.uk/doc/local-authority/00DA,Leeds City Council,City Development,Economic Development,Supplies and Services,Other Hired And Contracted Services,265,16-Mar-2011,1103-00037,2484.00,R,A Y Creative Services
http://statistics.data.gov.uk/doc/local-authority/00DA,Leeds City Council,City Development,Economic Development,Supplies and Services,Publication And Promotion,267,22-Mar-2011,1103-00038,644.00,R,A Y Creative Services
http://statistics.data.gov.uk/doc/local-authority/00DA,Leeds City Council,Environment & Neighbourhoods,Housing Needs,Transport,Public Transport Expenses,310,04-Mar-2011,1103-00039,1290.00,R,A Zoom Taxis
http://statistics.data.gov.uk/doc/local-authority/00DA,Leeds City Council,Other Education Services Managed By E.L.,Active Accounts,Supplies and Services,Office Furniture & Equipment,201,11-Mar-2011,1103-00040,1480.00,R,A2u
http://statistics.data.gov.uk/doc/local-authority/00DA,Leeds City Council,Adult Social Care,Services For Older People - 65 And Over,Third Party Payments,Residential Care Emi,571,16-Mar-2011,1103-00041,1189.60,R,Abbey Lea Residential Care Home
http://statistics.data.gov.uk/doc/local-authority/00DA,Leeds City Council,Adult Social Care,Services For Adults Under 65 Mental/Dis,Third Party Payments,Residential,580,16-Mar-2011,1103-00042,1174.20,R,Abbeydale Care Home
http://statistics.data.gov.uk/doc/local-authority/00DA,Leeds City Council,Childrens Services,Early Years Service,Third Party Payments,Services Rendered By Other Organisations,511,24-Mar-2011,1103-00043,3517.74,R,Abc Daycare
http://statistics.data.gov.uk/doc/local-authority/00DA,Leeds City Council,Childrens Services,Early Years Service,Third Party Payments,Services Rendered By Other Organisations,511,22-Mar-2011,1103-00044,797.29,R,Abc Nursery At Lufc
http://statistics.data.gov.uk/doc/local-authority/00DA,Leeds City Council,City Development,Economic Development,Supplies and Services,Other Hired And Contracted Services,265,21-Mar-2011,1103-00045,3640.47,R,Abdn
http://statistics.data.gov.uk/doc/local-authority/00DA,Leeds City Council,City Development,Economic Development,Supplies and Services,Other Hired And Contracted Services,265,21-Mar-2011,1103-00046,3300.61,R,Abdn
http://statistics.data.gov.uk/doc/local-authority/00DA,Leeds City Council,Environment & Neighbourhoods,Regeneration,Supplies and Services,'Well Being' Large Grants Projects,230,08-Mar-2011,1103-00047,2500.00,R,Aberford Parish Plan
http://statistics.data.gov.uk/doc/local-authority/00DA,Leeds City Council,Environment & Neighbourhoods,Environmental Health,Capital,Construction,3,02-Mar-2011,1103-00048,4400.00,C,Able Bathing & Building Contractors Ltd
http://statistics.data.gov.uk/doc/local-authority/00DA,Leeds City Council,Environment & Neighbourhoods,Environmental Health,Capital,Construction,3,03-Mar-2011,1103-00049,1500.00,C,Able Bathing & Building Contractors Ltd
http://statistics.data.gov.uk/doc/local-authority/00DA,Leeds City Council,Environment & Neighbourhoods,Environmental Health,Capital,Construction,3,07-Mar-2011,1103-00050,4400.00,C,Able Bathing & Building Contractors Ltd
http://statistics.data.gov.uk/doc/local-authority/00DA,Leeds City Council,Environment & Neighbourhoods,Environmental Health,Capital,Construction,3,07-Mar-2011,1103-00051,4400.00,C,Able Bathing & Building Contractors Ltd
http://statistics.data.gov.uk/doc/local-authority/00DA,Leeds City Council,Environment & Neighbourhoods,Environmental Health,Capital,Construction,3,14-Mar-2011,1103-00052,4400.00,C,Able Bathing & Building Contractors Ltd
http://statistics.data.gov.uk/doc/local-authority/00DA,Leeds City Council,Environment & Neighbourhoods,Environmental Health,Capital,Construction,3,14-Mar-2011,1103-00053,4400.00,C,Able Bathing & Building Contractors Ltd
http://statistics.data.gov.uk/doc/local-authority/00DA,Leeds City Council,Environment & Neighbourhoods,Environmental Health,Capital,Construction,3,14-Mar-2011,1103-00054,4785.70,C,Able Bathing & Building Contractors Ltd
http://statistics.data.gov.uk/doc/local-authority/00DA,Leeds City Council,Environment & Neighbourhoods,Environmental Health,Capital,Construction,3,14-Mar-2011,1103-00055,15000.00,C,Able Bathing & Building Contractors Ltd
http://statistics.data.gov.uk/doc/local-authority/00DA,Leeds City Council,Environment & Neighbourhoods,Environmental Health,Capital,Construction,3,14-Mar-2011,1103-00056,4400.00,C,Able Bathing & Building Contractors Ltd
http://statistics.data.gov.uk/doc/local-authority/00DA,Leeds City Council,Environment & Neighbourhoods,Environmental Health,Capital,Construction,3,14-Mar-2011,1103-00057,8725.00,C,Able Bathing & Building Contractors Ltd
http://statistics.data.gov.uk/doc/local-authority/00DA,Leeds City Council,Environment & Neighbourhoods,Environmental Health,Capital,Construction,3,30-Mar-2011,1103-00058,4400.00,C,Able Bathing & Building Contractors Ltd
http://statistics.data.gov.uk/doc/local-authority/00DA,Leeds City Council,Environment & Neighbourhoods,Environmental Health,Capital,Construction,3,30-Mar-2011,1103-00059,13308.60,C,Able Bathing & Building Contractors Ltd
http://statistics.data.gov.uk/doc/local-authority/00DA,Leeds City Council,Environment & Neighbourhoods,Environmental Health,Capital,Construction,3,30-Mar-2011,1103-00060,4400.00,C,Able Bathing & Building Contractors Ltd
http://statistics.data.gov.uk/doc/local-authority/00DA,Leeds City Council,Environment & Neighbourhoods,Environmental Health,Capital,Construction,3,30-Mar-2011,1103-00061,16000.00,C,Able Bathing & Building Contractors Ltd
http://statistics.data.gov.uk/doc/local-authority/00DA,Leeds City Council,Environment & Neighbourhoods,Environmental Health,Capital,Construction,3,30-Mar-2011,1103-00062,10148.00,C,Able Bathing & Building Contractors Ltd
http://statistics.data.gov.uk/doc/local-authority/00DA,Leeds City Council,Environment & Neighbourhoods,Environmental Health,Capital,Construction,3,30-Mar-2011,1103-00063,4374.18,C,Able Bathing & Building Contractors Ltd
http://statistics.data.gov.uk/doc/local-authority/00DA,Leeds City Council,City Development,Libraries Arts & Heritage,Supplies and Services,Operational Materials,205,23-Mar-2011,1103-00064,450.00,R,Absolute Museum & Gallery Products Ltd
http://statistics.data.gov.uk/doc/local-authority/00DA,Leeds City Council,City Development,Recreation,Supplies and Services,Other Hired And Contracted Services,265,10-Mar-2011,1103-00065,500.00,R,Abyss Recycling
http://statistics.data.gov.uk/doc/local-authority/00DA,Education Leeds,Education Leeds,Education Leeds,Supplies and Services,Other Hired And Contracted Services,265,02-Mar-2011,1103-00066,941.00,R,Academic Appointments Ltd
http://statistics.data.gov.uk/doc/local-authority/00DA,Education Leeds,Education Leeds,Education Leeds,Supplies and Services,Other Hired And Contracted Services,265,04-Mar-2011,1103-00067,739.00,R,Academic Appointments Ltd
http://statistics.data.gov.uk/doc/local-authority/00DA,Education Leeds,Education Leeds,Education Leeds,Supplies and Services,Other Hired And Contracted Services,265,04-Mar-2011,1103-00068,3070.00,R,Academic Appointments Ltd
http://statistics.data.gov.uk/doc/local-authority/00DA,Education Leeds,Education Leeds,Education Leeds,Supplies and Services,Other Hired And Contracted Services,265,11-Mar-2011,1103-00069,808.00,R,Academic Appointments Ltd
http://statistics.data.gov.uk/doc/local-authority/00DA,Education Leeds,Education Leeds,Education Leeds,Supplies and Services,Other Hired And Contracted Services,265,16-Mar-2011,1103-00070,3468.00,R,Academic Appointments Ltd
http://statistics.data.gov.uk/doc/local-authority/00DA,Education Leeds,Education Leeds,Education Leeds,Supplies and Services,Other Hired And Contracted Services,265,16-Mar-2011,1103-00071,3670.00,R,Academic Appointments Ltd
http://statistics.data.gov.uk/doc/local-authority/00DA,Education Leeds,Education Leeds,Education Leeds,Supplies and Services,Other Hired And Contracted Services,265,18-Mar-2011,1103-00072,3580.00,R,Academic Appointments Ltd
http://statistics.data.gov.uk/doc/local-authority/00DA,Education Leeds,Education Leeds,Education Leeds,Supplies and Services,Other Hired And Contracted Services,265,23-Mar-2011,1103-00073,987.00,R,Academic Appointments Ltd
http://statistics.data.gov.uk/doc/local-authority/00DA,Education Leeds,Education Leeds,Education Leeds,Supplies and Services,Other Hired And Contracted Services,265,30-Mar-2011,1103-00074,3538.00,R,Academic Appointments Ltd
http://statistics.data.gov.uk/doc/local-authority/00DA,Leeds City Council,Environment & Neighbourhoods,Housing Needs,Capital,Other Costs,7,23-Mar-2011,1103-00075,130000.00,C,Accent Foundation
http://statistics.data.gov.uk/doc/local-authority/00DA,East - North East Homes Leeds,East - North East,Technical Services,Supplies and Services,Other Materials,205,10-Mar-2011,1103-00076,717.60,R,Access Locksmiths (Leeds) Limited
http://statistics.data.gov.uk/doc/local-authority/00DA,Leeds City Council,City Development,Recreation,Premises,Premises Security Services,162,02-Mar-2011,1103-00077,808.01,R,Acclaimed Security Services
http://statistics.data.gov.uk/doc/local-authority/00DA,Leeds City Council,City Development,Recreation,Supplies and Services,Security Services(Non Infrastructure),262,02-Mar-2011,1103-00078,546.12,R,Acclaimed Security Services
http://statistics.data.gov.uk/doc/local-authority/00DA,Leeds City Council,City Development,Recreation,Premises,Premises Security Services,162,02-Mar-2011,1103-00079,438.24,R,Acclaimed Security Services
http://statistics.data.gov.uk/doc/local-authority/00DA,Leeds City Council,City Development,Recreation,Supplies and Services,Security Services(Non Infrastructure),262,02-Mar-2011,1103-00080,447.72,R,Acclaimed Security Services
http://statistics.data.gov.uk/doc/local-authority/00DA,Leeds City Council,City Development,Recreation,Employees,Agency Staff,008,09-Mar-2011,1103-00081,588.88,R,Acclaimed Security Services
http://statistics.data.gov.uk/doc/local-authority/00DA,Leeds City Council,City Development,Recreation,Supplies and Services,Security Services(Non Infrastructure),262,09-Mar-2011,1103-00082,447.72,R,Acclaimed Security Services
http://statistics.data.gov.uk/doc/local-authority/00DA,Leeds City Council,Insurance,Insurance,Supplies and Services,Insurance Claims,248,17-Mar-2011,1103-00083,1050.00,R,Accountant General Of The Senior Court
http://statistics.data.gov.uk/doc/local-authority/00DA,Leeds City Council,Insurance,Insurance,Supplies and Services,Insurance Claims,248,24-Mar-2011,1103-00084,3000.00,R,Accountant General Of The Senior Court
http://statistics.data.gov.uk/doc/local-authority/00DA,Leeds City Council,Insurance,Insurance,Supplies and Services,Insurance Claims,248,24-Mar-2011,1103-00085,3500.00,R,Accountant General Of The Senior Court
http://statistics.data.gov.uk/doc/local-authority/00DA,Leeds City Council,Insurance,Insurance,Supplies and Services,Insurance Claims,248,31-Mar-2011,1103-00086,8650.00,R,Accountant General Of The Senior Court
http://statistics.data.gov.uk/doc/local-authority/00DA,Leeds City Council,Childrens Services,Integrated Youth Support  Service,Capital,Furniture And Equipment,5,11-Mar-2011,1103-00087,13417.00,C,Accurate
http://statistics.data.gov.uk/doc/local-authority/00DA,Leeds City Council,Childrens Services,Integrated Youth Support  Service,Capital,Furniture And Equipment,5,11-Mar-2011,1103-00088,1044.00,C,Accurate
http://statistics.data.gov.uk/doc/local-authority/00DA,Leeds City Council,Adult Social Care,Services For Older People - 65 And Over,Third Party Payments,Nursing Home,570,16-Mar-2011,1103-00089,1202.88,R,Ackworth House
http://statistics.data.gov.uk/doc/local-authority/00DA,Leeds City Council,Central & Corporate Functions,Commercial Services Trading Services,Supplies and Services,Other Hired And Contracted Services,265,09-Mar-2011,1103-00090,1234.00,R,Acme
http://statistics.data.gov.uk/doc/local-authority/00DA,Leeds City Council,Central & Corporate Functions,Commercial Services Trading Services,Supplies and Services,Other Hired And Contracted Services,265,09-Mar-2011,1103-00091,1184.00,R,Acme
http://statistics.data.gov.uk/doc/local-authority/00DA,Leeds City Council,Central & Corporate Functions,Commercial Services Trading Services,Supplies and Services,Crockery Cutlery & Utensils,221,09-Mar-2011,1103-00092,1660.00,R,Acme
http://statistics.data.gov.uk/doc/local-authority/00DA,Leeds City Council,Childrens Services,Early Years Service,Third Party Payments,Services Rendered By Other Organisations,511,22-Mar-2011,1103-00093,4932.52,R,Acorns Nursery
http://statistics.data.gov.uk/doc/local-authority/00DA,Leeds City Council,Childrens Services,Early Years Service,Third Party Payments,Services Rendered By Other Organisations,511,22-Mar-2011,1103-00094,1784.08,R,Acre Wood Childrens Nursery
http://statistics.data.gov.uk/doc/local-authority/00DA,Leeds City Council,Insurance,Insurance,Supplies and Services,Insurance Claims,248,31-Mar-2011,1103-00095,1446.11,R,Acromas Insurance Company Ltd
http://statistics.data.gov.uk/doc/local-authority/00DA,Leeds City Council,City Development,Recreation,Supplies and Services,Other Hired And Contracted Services,265,01-Mar-2011,1103-00096,5346.57,R,Acsca
http://statistics.data.gov.uk/doc/local-authority/00DA,Leeds City Council,Childrens Services,Other Childrens And Families Services,Third Party Payments,Adoptions - Allowances,560,03-Mar-2011,1103-00097,6880.00,R,Action For Children
http://statistics.data.gov.uk/doc/local-authority/00DA,Leeds City Council,Childrens Services,Other Childrens And Families Services,Third Party Payments,Adoptions - Allowances,560,08-Mar-2011,1103-00098,630.67,R,Action For Children
http://statistics.data.gov.uk/doc/local-authority/00DA,Leeds City Council,Childrens Services,Other Childrens And Families Services,Third Party Payments,Adoptions - Allowances,560,08-Mar-2011,1103-00099,630.67,R,Action For Children
http://statistics.data.gov.uk/doc/local-authority/00DA,Leeds City Council,Childrens Services,Other Childrens And Families Services,Third Party Payments,Adoptions - Allowances,560,10-Mar-2011,1103-00100,3784.00,R,Action For Children
http://statistics.data.gov.uk/doc/local-authority/00DA,Leeds City Council,Childrens Services,Children Looked After,Third Party Payments,Independent Fostering Agencies,509,11-Mar-2011,1103-00101,8020.00,R,Action For Children
http://statistics.data.gov.uk/doc/local-authority/00DA,Leeds City Council,Childrens Services,Children Looked After,Third Party Payments,General External Residential Placements,507,23-Mar-2011,1103-00102,2214.33,R,Action For Children
http://statistics.data.gov.uk/doc/local-authority/00DA,Leeds City Council,Environment & Neighbourhoods,Regeneration,Supplies and Services,Grant Related Expenditure,290,22-Mar-2011,1103-00103,480.00,R,Action For Gipton Elderly
http://statistics.data.gov.uk/doc/local-authority/00DA,Leeds City Council,City Development,Recreation,Supplies and Services,Courses For Non-Employees,281,02-Mar-2011,1103-00104,420.00,R,Active Iq
http://statistics.data.gov.uk/doc/local-authority/00DA,Leeds City Council,Childrens Services,Early Years Service,Third Party Payments,Services Rendered By Other Organisations,511,22-Mar-2011,1103-00105,2222.46,R,Active Kids Day Nursery
http://statistics.data.gov.uk/doc/local-authority/00DA,Leeds City Council,Childrens Services,Early Years Service,Capital,Other Costs,7,29-Mar-2011,1103-00106,1250.00,C,Active Kids Day Nursery
http://statistics.data.gov.uk/doc/local-authority/00DA,Leeds City Council,Insurance,Insurance,Supplies and Services,Other Hired And Contracted Services,265,03-Mar-2011,1103-00107,951.20,R,Acumension
http://statistics.data.gov.uk/doc/local-authority/00DA,Leeds City Council,Insurance,Insurance,Supplies and Services,Other Hired And Contracted Services,265,30-Mar-2011,1103-00108,556.80,R,Acumension
http://statistics.data.gov.uk/doc/local-authority/00DA,Leeds City Council,City Development,Recreation,Supplies and Services,Resaleable Materials,204,30-Mar-2011,1103-00109,451.65,R,Acushnet Europe Limited
http://statistics.data.gov.uk/doc/local-authority/00DA,Education Leeds,Education Leeds,Education Leeds,Supplies and Services,Other Hired And Contracted Services,265,24-Mar-2011,1103-00110,509.00,R,Ada Inc
http://statistics.data.gov.uk/doc/local-authority/00DA,Leeds City Council,Adult Social Care,Social Services Support Services,Support Services,Legal Disbursements,411,09-Mar-2011,1103-00111,600.00,R,Adam Fullwood
http://statistics.data.gov.uk/doc/local-authority/00DA,Leeds City Council,City Development,Libraries Arts & Heritage,Supplies and Services,Other Hired And Contracted Services,265,23-Mar-2011,1103-00112,1000.00,R,Adam Lowe
http://statistics.data.gov.uk/doc/local-authority/00DA,Leeds City Council,City Development,Economic Development,Supplies and Services,Grants To Businesses,243,17-Mar-2011,1103-00113,3000.00,R,Adam'S Takeaway
http://statistics.data.gov.uk/doc/local-authority/00DA,Leeds City Council,Environment & Neighbourhoods,Environmental Health,Capital,Other Costs,7,21-Mar-2011,1103-00114,760.00,C,Admas Limited
http://statistics.data.gov.uk/doc/local-authority/00DA,Leeds City Council,Environment & Neighbourhoods,Environmental Health,Capital,Other Costs,7,22-Mar-2011,1103-00115,700.00,C,Admas Limited
http://statistics.data.gov.uk/doc/local-authority/00DA,Leeds City Council,Environment & Neighbourhoods,Community Safety,Third Party Payments,Services Rendered By Voluntary Sector,505,01-Mar-2011,1103-00116,23078.50,R,Ads
http://statistics.data.gov.uk/doc/local-authority/00DA,East - North East Homes Leeds,East - North East,Technical Services,Premises,Buildings,101,01-Mar-2011,1103-00117,444.70,R,Adt Fire And Security
http://statistics.data.gov.uk/doc/local-authority/00DA,Education Leeds,Education Leeds,Education Leeds,Premises,Security,162,11-Mar-2011,1103-00118,891.00,R,Adt Fire And Security
http://statistics.data.gov.uk/doc/local-authority/00DA,Leeds City Council,Childrens Services,Children - Commissioning And Social Work,Support Services,Legal Disbursements,411,03-Mar-2011,1103-00119,3000.00,R,Advanced Child Care Assessments Ltd
http://statistics.data.gov.uk/doc/local-authority/00DA,Leeds City Council as Accountable Body,Social Services Pooled Budgets,Jcs For People With Learning Disabilitie,Third Party Payments,Residential,580,16-Mar-2011,1103-00120,20067.76,R,Advitam Ltd
http://statistics.data.gov.uk/doc/local-authority/00DA,Leeds City Council,Adult Social Care,Services For Adults Under 65 Mental/Dis,Third Party Payments,Payments To Voluntary Organisations,561,07-Mar-2011,1103-00121,23156.00,R,Advocacy For Mental Health And Dementia
http://statistics.data.gov.uk/doc/local-authority/00DA,Leeds City Council,Environment & Neighbourhoods,Housing Needs,Supplies and Services,Other Hired And Contracted Services,265,02-Mar-2011,1103-00122,5000.00,R,Advocacy Support Limited
http://statistics.data.gov.uk/doc/local-authority/00DA,Leeds City Council as Accountable Body,Social Services Pooled Budgets,Jcs For People With Learning Disabilitie,Third Party Payments,Residential,580,03-Mar-2011,1103-00123,21603.94,R,Affinity Trust
http://statistics.data.gov.uk/doc/local-authority/00DA,Leeds City Council as Accountable Body,Social Services Pooled Budgets,Jcs For People With Learning Disabilitie,Third Party Payments,Home Care,568,02-Mar-2011,1103-00124,2145.28,R,Affinity Trust North Divisional Office
http://statistics.data.gov.uk/doc/local-authority/00DA,Leeds City Council as Accountable Body,Social Services Pooled Budgets,Jcs For People With Learning Disabilitie,Third Party Payments,Day Centre,564,02-Mar-2011,1103-00125,658.35,R,Affinity Trust North Divisional Office
http://statistics.data.gov.uk/doc/local-authority/00DA,Leeds City Council as Accountable Body,Social Services Pooled Budgets,Jcs For People With Learning Disabilitie,Third Party Payments,Residential,580,02-Mar-2011,1103-00126,2557.24,R,Affinity Trust North Divisional Office
http://statistics.data.gov.uk/doc/local-authority/00DA,Leeds City Council as Accountable Body,Social Services Pooled Budgets,Jcs For People With Learning Disabilitie,Third Party Payments,Day Centre,564,02-Mar-2011,1103-00127,2262.96,R,Affinity Trust North Divisional Office
http://statistics.data.gov.uk/doc/local-authority/00DA,Leeds City Council as Accountable Body,Social Services Pooled Budgets,Jcs For People With Learning Disabilitie,Third Party Payments,Home Care,568,02-Mar-2011,1103-00128,3654.00,R,Affinity Trust North Divisional Office
http://statistics.data.gov.uk/doc/local-authority/00DA,Leeds City Council as Accountable Body,Social Services Pooled Budgets,Jcs For People With Learning Disabilitie,Third Party Payments,Residential,580,02-Mar-2011,1103-00129,1514.70,R,Affinity Trust North Divisional Office
http://statistics.data.gov.uk/doc/local-authority/00DA,Leeds City Council as Accountable Body,Social Services Pooled Budgets,Jcs For People With Learning Disabilitie,Third Party Payments,Day Centre,564,02-Mar-2011,1103-00130,489.06,R,Affinity Trust North Divisional Office
http://statistics.data.gov.uk/doc/local-authority/00DA,Leeds City Council as Accountable Body,Social Services Pooled Budgets,Jcs For People With Learning Disabilitie,Third Party Payments,Day Centre,564,02-Mar-2011,1103-00131,2212.32,R,Affinity Trust North Divisional Office
http://statistics.data.gov.uk/doc/local-authority/00DA,Leeds City Council as Accountable Body,Social Services Pooled Budgets,Jcs For People With Learning Disabilitie,Third Party Payments,Home Care,568,02-Mar-2011,1103-00132,672.80,R,Affinity Trust North Divisional Office
http://statistics.data.gov.uk/doc/local-authority/00DA,Leeds City Council as Accountable Body,Social Services Pooled Budgets,Jcs For People With Learning Disabilitie,Third Party Payments,Day Centre,564,02-Mar-2011,1103-00133,1975.50,R,Affinity Trust North Divisional Office
http://statistics.data.gov.uk/doc/local-authority/00DA,Leeds City Council as Accountable Body,Social Services Pooled Budgets,Jcs For People With Learning Disabilitie,Third Party Payments,Home Care,568,02-Mar-2011,1103-00134,6193.32,R,Affinity Trust North Divisional Office
http://statistics.data.gov.uk/doc/local-authority/00DA,Leeds City Council as Accountable Body,Social Services Pooled Budgets,Jcs For People With Learning Disabilitie,Third Party Payments,Home Care,568,02-Mar-2011,1103-00135,3848.08,R,Affinity Trust North Divisional Office
http://statistics.data.gov.uk/doc/local-authority/00DA,Leeds City Council as Accountable Body,Social Services Pooled Budgets,Jcs For People With Learning Disabilitie,Third Party Payments,Day Centre,564,03-Mar-2011,1103-00136,804.48,R,Affinity Trust North Divisional Office
http://statistics.data.gov.uk/doc/local-authority/00DA,Leeds City Council as Accountable Body,Social Services Pooled Budgets,Jcs For People With Learning Disabilitie,Third Party Payments,Day Centre,564,03-Mar-2011,1103-00137,421.92,R,Affinity Trust North Divisional Office
http://statistics.data.gov.uk/doc/local-authority/00DA,Leeds City Council,Adult Social Care,Services For Older People Under 65 P/Dis,Third Party Payments,Home Care,568,03-Mar-2011,1103-00138,943.94,R,Affinity Trust North Divisional Office
http://statistics.data.gov.uk/doc/local-authority/00DA,Leeds City Council as Accountable Body,Social Services Pooled Budgets,Jcs For People With Learning Disabilitie,Third Party Payments,Home Care,568,03-Mar-2011,1103-00139,448.00,R,Affinity Trust North Divisional Office
http://statistics.data.gov.uk/doc/local-authority/00DA,Leeds City Council,Adult Social Care,Services For Older People Under 65 P/Dis,Third Party Payments,Home Care,568,03-Mar-2011,1103-00140,1375.80,R,Affinity Trust North Divisional Office
http://statistics.data.gov.uk/doc/local-authority/00DA,Leeds City Council,Adult Social Care,Services For Older People Under 65 P/Dis,Third Party Payments,Home Care,568,03-Mar-2011,1103-00141,777.84,R,Affinity Trust North Divisional Office
http://statistics.data.gov.uk/doc/local-authority/00DA,Leeds City Council,Adult Social Care,Services For Older People Under 65 P/Dis,Third Party Payments,Home Care,568,03-Mar-2011,1103-00142,946.62,R,Affinity Trust North Divisional Office
http://statistics.data.gov.uk/doc/local-authority/00DA,Leeds City Council,Adult Social Care,Services For Older People Under 65 P/Dis,Third Party Payments,Home Care,568,03-Mar-2011,1103-00143,1744.96,R,Affinity Trust North Divisional Office
http://statistics.data.gov.uk/doc/local-authority/00DA,Leeds City Council as Accountable Body,Social Services Pooled Budgets,Jcs For People With Learning Disabilitie,Third Party Payments,Home Care,568,03-Mar-2011,1103-00144,3848.08,R,Affinity Trust North Divisional Office
http://statistics.data.gov.uk/doc/local-authority/00DA,Leeds City Council as Accountable Body,Social Services Pooled Budgets,Jcs For People With Learning Disabilitie,Third Party Payments,Day Centre,564,04-Mar-2011,1103-00145,1656.48,R,Affinity Trust North Divisional Office
http://statistics.data.gov.uk/doc/local-authority/00DA,Leeds City Council as Accountable Body,Social Services Pooled Budgets,Jcs For People With Learning Disabilitie,Third Party Payments,Home Care,568,04-Mar-2011,1103-00146,1667.62,R,Affinity Trust North Divisional Office
http://statistics.data.gov.uk/doc/local-authority/00DA,Leeds City Council as Accountable Body,Social Services Pooled Budgets,Jcs For People With Learning Disabilitie,Third Party Payments,Home Care,568,04-Mar-2011,1103-00147,854.76,R,Affinity Trust North Divisional Office
http://statistics.data.gov.uk/doc/local-authority/00DA,Leeds City Council as Accountable Body,Social Services Pooled Budgets,Jcs For People With Learning Disabilitie,Third Party Payments,Day Centre,564,04-Mar-2011,1103-00148,1831.67,R,Affinity Trust North Divisional Office
http://statistics.data.gov.uk/doc/local-authority/00DA,Leeds City Council,Adult Social Care,Services For Adults Under 65 Learn/Dis,Third Party Payments,Home Care,568,04-Mar-2011,1103-00149,722.92,R,Affinity Trust North Divisional Office
http://statistics.data.gov.uk/doc/local-authority/00DA,Leeds City Council as Accountable Body,Social Services Pooled Budgets,Jcs For People With Learning Disabilitie,Third Party Payments,Day Centre,564,04-Mar-2011,1103-00150,26239.11,R,Affinity Trust North Divisional Office
http://statistics.data.gov.uk/doc/local-authority/00DA,Leeds City Council as Accountable Body,Social Services Pooled Budgets,Jcs For People With Learning Disabilitie,Third Party Payments,Day Centre,564,04-Mar-2011,1103-00151,23819.61,R,Affinity Trust North Divisional Office
http://statistics.data.gov.uk/doc/local-authority/00DA,Leeds City Council,Adult Social Care,Services For Older People - 65 And Over,Third Party Payments,Residential,580,09-Mar-2011,1103-00152,526.68,R,Affinity Trust North Divisional Office
http://statistics.data.gov.uk/doc/local-authority/00DA,Leeds City Council as Accountable Body,Social Services Pooled Budgets,Jcs For People With Learning Disabilitie,Third Party Payments,Home Care,568,11-Mar-2011,1103-00153,720.90,R,Affinity Trust North Divisional Office
http://statistics.data.gov.uk/doc/local-authority/00DA,Leeds City Council as Accountable Body,Social Services Pooled Budgets,Jcs For People With Learning Disabilitie,Third Party Payments,Home Care,568,14-Mar-2011,1103-00154,1121.40,R,Affinity Trust North Divisional Office
http://statistics.data.gov.uk/doc/local-authority/00DA,Leeds City Council as Accountable Body,Social Services Pooled Budgets,Jcs For People With Learning Disabilitie,Third Party Payments,Home Care,568,21-Mar-2011,1103-00155,1121.40,R,Affinity Trust North Divisional Office
http://statistics.data.gov.uk/doc/local-authority/00DA,Leeds City Council as Accountable Body,Social Services Pooled Budgets,Jcs For People With Learning Disabilitie,Third Party Payments,Residential,580,22-Mar-2011,1103-00156,1243.35,R,Affinity Trust North Divisional Office
http://statistics.data.gov.uk/doc/local-authority/00DA,Leeds City Council as Accountable Body,Social Services Pooled Budgets,Jcs For People With Learning Disabilitie,Third Party Payments,Home Care,568,22-Mar-2011,1103-00157,12409.02,R,Affinity Trust North Divisional Office
http://statistics.data.gov.uk/doc/local-authority/00DA,Leeds City Council as Accountable Body,Social Services Pooled Budgets,Jcs For People With Learning Disabilitie,Third Party Payments,Residential,580,24-Mar-2011,1103-00158,65428.65,R,Affinity Trust North Divisional Office
http://statistics.data.gov.uk/doc/local-authority/00DA,Leeds City Council as Accountable Body,Social Services Pooled Budgets,Jcs For People With Learning Disabilitie,Third Party Payments,Home Care,568,29-Mar-2011,1103-00159,816.00,R,Affinity Trust North Divisional Office
http://statistics.data.gov.uk/doc/local-authority/00DA,Leeds City Council as Accountable Body,Social Services Pooled Budgets,Jcs For People With Learning Disabilitie,Third Party Payments,Home Care,568,30-Mar-2011,1103-00160,644.88,R,Affinity Trust North Divisional Office
http://statistics.data.gov.uk/doc/local-authority/00DA,Leeds City Council as Accountable Body,Social Services Pooled Budgets,Jcs For People With Learning Disabilitie,Third Party Payments,Home Care,568,30-Mar-2011,1103-00161,644.88,R,Affinity Trust North Divisional Office
http://statistics.data.gov.uk/doc/local-authority/00DA,Leeds City Council as Accountable Body,Social Services Pooled Budgets,Jcs For People With Learning Disabilitie,Third Party Payments,Home Care,568,30-Mar-2011,1103-00162,644.88,R,Affinity Trust North Divisional Office
http://statistics.data.gov.uk/doc/local-authority/00DA,Leeds City Council as Accountable Body,Social Services Pooled Budgets,Jcs For People With Learning Disabilitie,Third Party Payments,Home Care,568,30-Mar-2011,1103-00163,544.32,R,Affinity Trust North Divisional Office
http://statistics.data.gov.uk/doc/local-authority/00DA,Leeds City Council as Accountable Body,Social Services Pooled Budgets,Jcs For People With Learning Disabilitie,Third Party Payments,Home Care,568,31-Mar-2011,1103-00164,533.94,R,Affinity Trust North Divisional Office
http://statistics.data.gov.uk/doc/local-authority/00DA,Leeds City Council,Childrens Services,Other Childrens And Families Services,Third Party Payments,Payments To Voluntary Organisations,561,23-Mar-2011,1103-00165,12500.00,R,After Adoption Yorkshire
http://statistics.data.gov.uk/doc/local-authority/00DA,Leeds City Council,Central & Corporate Functions,Commercial Services Trading Services,Supplies and Services,Other Hired And Contracted Services,265,09-Mar-2011,1103-00166,4500.00,R,Age Uk Leeds
http://statistics.data.gov.uk/doc/local-authority/00DA,Leeds City Council,Adult Social Care,Services For Older People - 65 And Over,Supplies and Services,Consultancy Services,259,18-Mar-2011,1103-00167,810.00,R,Age Uk Leeds
http://statistics.data.gov.uk/doc/local-authority/00DA,Leeds City Council,Adult Social Care,Services For Older People - 65 And Over,Supplies and Services,Consultancy Services,259,25-Mar-2011,1103-00168,1440.00,R,Age Uk Leeds
http://statistics.data.gov.uk/doc/local-authority/00DA,Leeds City Council,Environment & Neighbourhoods,Housing Needs,Third Party Payments,Supporting Ppl - Block Gross Chargeable,514,29-Mar-2011,1103-00169,4165.98,R,Age Uk Leeds
http://statistics.data.gov.uk/doc/local-authority/00DA,Leeds City Council,Central & Corporate Functions,Commercial Services Trading Services,Supplies and Services,Other Hired And Contracted Services,265,30-Mar-2011,1103-00170,4500.00,R,Age Uk Leeds
http://statistics.data.gov.uk/doc/local-authority/00DA,Leeds City Council,Insurance,Insurance,Supplies and Services,Insurance Claims,248,17-Mar-2011,1103-00171,918.50,R,Ageas
http://statistics.data.gov.uk/doc/local-authority/00DA,Leeds City Council,Insurance,Insurance,Supplies and Services,Insurance Claims,248,31-Mar-2011,1103-00172,530.00,R,Ageas
http://statistics.data.gov.uk/doc/local-authority/00DA,Leeds City Council,City Development,Highways,Capital,Construction,3,03-Mar-2011,1103-00173,74313.00,C,Aggregate Industries Uk Ltd
http://statistics.data.gov.uk/doc/local-authority/00DA,Leeds City Council,City Development,Highways,Supplies and Services,Other Hired And Contracted Services,265,03-Mar-2011,1103-00174,2496.00,R,Aggregate Industries Uk Ltd
http://statistics.data.gov.uk/doc/local-authority/00DA,Leeds City Council,City Development,Highways,Capital,Construction,3,28-Mar-2011,1103-00175,24346.00,C,Aggregate Industries Uk Ltd
http://statistics.data.gov.uk/doc/local-authority/00DA,Leeds City Council,City Development,Highways,Capital,Construction,3,28-Mar-2011,1103-00176,29240.00,C,Aggregate Industries Uk Ltd
http://statistics.data.gov.uk/doc/local-authority/00DA,Leeds City Council,City Development,Highways,Supplies and Services,Other Hired And Contracted Services,265,28-Mar-2011,1103-00177,9475.00,R,Aggregate Industries Uk Ltd
http://statistics.data.gov.uk/doc/local-authority/00DA,Leeds City Council,City Development,Highways,Capital,Construction,3,28-Mar-2011,1103-00178,42500.00,C,Aggregate Industries Uk Ltd
http://statistics.data.gov.uk/doc/local-authority/00DA,Leeds City Council,City Development,Highways,Supplies and Services,Other Hired And Contracted Services,265,28-Mar-2011,1103-00179,1617.00,R,Aggregate Industries Uk Ltd
http://statistics.data.gov.uk/doc/local-authority/00DA,Leeds City Council,Adult Social Care,Services For Older People Under 65 P/Dis,Third Party Payments,Residential,580,16-Mar-2011,1103-00180,5626.84,R,Agricola House
http://statistics.data.gov.uk/doc/local-authority/00DA,Leeds City Council,Insurance,Insurance,Supplies and Services,Insurance Claims,248,03-Mar-2011,1103-00181,2096.04,R,Ai Claims Solutionsltd
http://statistics.data.gov.uk/doc/local-authority/00DA,Leeds City Council as Accountable Body,Social Services Pooled Budgets,Leeds Community Equip Store Pooled Budgt,Supplies and Services,Other Equipment,203,04-Mar-2011,1103-00182,795.00,R,Aidapt Bathrooms Ltd
http://statistics.data.gov.uk/doc/local-authority/00DA,Leeds City Council as Accountable Body,Social Services Pooled Budgets,Leeds Community Equip Store Pooled Budgt,Supplies and Services,Other Equipment,203,04-Mar-2011,1103-00183,743.70,R,Aidapt Bathrooms Ltd
http://statistics.data.gov.uk/doc/local-authority/00DA,Leeds City Council as Accountable Body,Social Services Pooled Budgets,Leeds Community Equip Store Pooled Budgt,Supplies and Services,Other Equipment,203,17-Mar-2011,1103-00184,1799.00,R,Aidapt Bathrooms Ltd
http://statistics.data.gov.uk/doc/local-authority/00DA,Leeds City Council as Accountable Body,Social Services Pooled Budgets,Leeds Community Equip Store Pooled Budgt,Supplies and Services,Other Equipment,203,17-Mar-2011,1103-00185,3143.00,R,Aidapt Bathrooms Ltd
http://statistics.data.gov.uk/doc/local-authority/00DA,Leeds City Council,Childrens Services,Family Support Services,Supplies and Services,Operational Furniture and Equipment,203,15-Mar-2011,1103-00186,2530.00,R,Aidservice Ltd
http://statistics.data.gov.uk/doc/local-authority/00DA,Leeds City Council,Childrens Services,Family Support Services,Supplies and Services,Operational Furniture and Equipment,203,18-Mar-2011,1103-00187,760.00,R,Aidservice Ltd
http://statistics.data.gov.uk/doc/local-authority/00DA,Leeds City Council,City Development,Asset Management Services,Premises,Maintenance Of Buildings,101,07-Mar-2011,1103-00188,3500.00,R,Aig London Limited
http://statistics.data.gov.uk/doc/local-authority/00DA,Leeds City Council,City Development,Economic Development,Capital,Other Costs,7,21-Mar-2011,1103-00189,541.67,C,Aig London Limited
http://statistics.data.gov.uk/doc/local-authority/00DA,Leeds City Council,City Development,Asset Management Services,Premises,Maintenance Of Buildings,101,23-Mar-2011,1103-00190,5500.00,R,Aig London Limited
http://statistics.data.gov.uk/doc/local-authority/00DA,Leeds City Council,City Development,Highways,Premises,Grounds Maintenance Work,111,11-Mar-2011,1103-00191,433.95,R,Ainsty Timber Marketing Ltd
http://statistics.data.gov.uk/doc/local-authority/00DA,Leeds City Council,Environment & Neighbourhoods,Health & Environmental Action,Supplies and Services,Operational Furniture and Equipment,203,03-Mar-2011,1103-00192,1637.75,R,Air Liquide Uk
http://statistics.data.gov.uk/doc/local-authority/00DA,Leeds City Council,Environment & Neighbourhoods,Health & Environmental Action,Supplies and Services,Operational Furniture and Equipment,203,18-Mar-2011,1103-00193,468.08,R,Air Liquide Uk
http://statistics.data.gov.uk/doc/local-authority/00DA,Leeds City Council as Accountable Body,Social Services Pooled Budgets,Jcs For People With Learning Disabilitie,Third Party Payments,Residential,580,16-Mar-2011,1103-00194,3085.48,R,Aire House
http://statistics.data.gov.uk/doc/local-authority/00DA,Leeds City Council,Environment & Neighbourhoods,Regeneration,Supplies and Services,Non-Recurring Grants,227,11-Mar-2011,1103-00195,9780.00,R,Aire Valley Homes Leeds
http://statistics.data.gov.uk/doc/local-authority/00DA,Leeds City Council,Environment & Neighbourhoods,Regeneration,Supplies and Services,Non-Recurring Grants,227,28-Mar-2011,1103-00196,10121.00,R,Aire Valley Homes Leeds
http://statistics.data.gov.uk/doc/local-authority/00DA,East - North East Homes Leeds,East - North East,Housing Services,Premises,Horticulture Non Defined Work,112,10-Mar-2011,1103-00197,975.00,R,Aire Valley Tree Services Ltd
http://statistics.data.gov.uk/doc/local-authority/00DA,East - North East Homes Leeds,East - North East,Technical Services,Premises,General Maintenance,104,11-Mar-2011,1103-00198,995.00,R,Aire Valley Tree Services Ltd
http://statistics.data.gov.uk/doc/local-authority/00DA,East - North East Homes Leeds,East - North East,Housing Services,Premises,Horticulture Non Defined Work,112,17-Mar-2011,1103-00199,485.00,R,Aire Valley Tree Services Ltd
http://statistics.data.gov.uk/doc/local-authority/00DA,East - North East Homes Leeds,East - North East,Housing Services,Premises,Horticulture Non Defined Work,112,17-Mar-2011,1103-00200,685.00,R,Aire Valley Tree Services Ltd
http://statistics.data.gov.uk/doc/local-authority/00DA,East - North East Homes Leeds,East - North East,Housing Services,Premises,Horticulture Non Defined Work,112,24-Mar-2011,1103-00201,775.00,R,Aire Valley Tree Services Ltd
http://statistics.data.gov.uk/doc/local-authority/00DA,East - North East Homes Leeds,East - North East,Housing Services,Premises,Horticulture Non Defined Work,112,24-Mar-2011,1103-00202,475.00,R,Aire Valley Tree Services Ltd
http://statistics.data.gov.uk/doc/local-authority/00DA,Leeds City Council,Adult Social Care,Services For Older People - 65 And Over,Third Party Payments,Residential Care Emi,571,16-Mar-2011,1103-00203,41256.73,R,Aire View Residential Home
http://statistics.data.gov.uk/doc/local-authority/00DA,Leeds City Council,Adult Social Care,Services For Older People - 65 And Over,Third Party Payments,Nursing Care Emi,574,16-Mar-2011,1103-00204,1342.80,R,Aire View Residential Home
http://statistics.data.gov.uk/doc/local-authority/00DA,Leeds City Council,Adult Social Care,Services For Older People - 65 And Over,Third Party Payments,Residential,580,16-Mar-2011,1103-00205,7352.11,R,Aire View Residential Home
http://statistics.data.gov.uk/doc/local-authority/00DA,Leeds City Council,Childrens Services,Director Of Childrens Services,Supplies and Services,Recurring & Major Grants Projects,229,24-Mar-2011,1103-00206,9100.00,R,Aireborough Summer Activities Scheme
http://statistics.data.gov.uk/doc/local-authority/00DA,Leeds City Council,Childrens Services,Director Of Childrens Services,Supplies and Services,Recurring & Major Grants Projects,229,24-Mar-2011,1103-00207,9100.00,R,Aireborough Summer Activities Scheme
http://statistics.data.gov.uk/doc/local-authority/00DA,Leeds City Council,Adult Social Care,Services For Older People - 65 And Over,Third Party Payments,Residential,580,16-Mar-2011,1103-00208,29624.91,R,Airedale (Goldsborough)
http://statistics.data.gov.uk/doc/local-authority/00DA,Leeds City Council,City Development,Economic Development,Supplies and Services,Advertising,211,04-Mar-2011,1103-00209,420.00,R,Airport Partners Ltd
http://statistics.data.gov.uk/doc/local-authority/00DA,Leeds City Council,City Development,Recreation,Supplies and Services,Operational Furniture and Equipment,203,07-Mar-2011,1103-00210,2575.00,R,Airquee
http://statistics.data.gov.uk/doc/local-authority/00DA,Leeds City Council,City Development,Recreation,Supplies and Services,Operational Furniture and Equipment,203,11-Mar-2011,1103-00211,1925.00,R,Airquee
http://statistics.data.gov.uk/doc/local-authority/00DA,East - North East Homes Leeds,East - North East,Technical Services,Supplies and Services,Other Materials,205,02-Mar-2011,1103-00212,645.35,R,Ajm Fixings & Power Tools Ltd
http://statistics.data.gov.uk/doc/local-authority/00DA,East - North East Homes Leeds,East - North East,Technical Services,Supplies and Services,Other Materials,205,04-Mar-2011,1103-00213,1346.24,R,Ajm Fixings & Power Tools Ltd
http://statistics.data.gov.uk/doc/local-authority/00DA,East - North East Homes Leeds,East - North East,Technical Services,Supplies and Services,Other Materials,205,10-Mar-2011,1103-00214,634.33,R,Ajm Fixings & Power Tools Ltd
http://statistics.data.gov.uk/doc/local-authority/00DA,East - North East Homes Leeds,East - North East,Technical Services,Supplies and Services,Other Materials,205,25-Mar-2011,1103-00215,1905.00,R,Ajm Fixings & Power Tools Ltd
http://statistics.data.gov.uk/doc/local-authority/00DA,Leeds City Council,Central & Corporate Functions,Commercial Services Trading Services,Supplies and Services,Operational Materials,205,25-Mar-2011,1103-00216,864.83,R,Ajm Fixings & Power Tools Ltd
http://statistics.data.gov.uk/doc/local-authority/00DA,Leeds City Council,Central & Corporate Functions,Commercial Services Trading Services,Supplies and Services,Operational Furniture and Equipment,203,31-Mar-2011,1103-00217,435.70,R,Aks Print & Design
http://statistics.data.gov.uk/doc/local-authority/00DA,Leeds City Council,Central & Corporate Functions,Corporate Governance,Support Services,Mscllaneous - Counsels' Fees,702,17-Mar-2011,1103-00218,4000.00,R,Alan Evans
http://statistics.data.gov.uk/doc/local-authority/00DA,Leeds City Council,Central & Corporate Functions,Audit And Risk,Employees,Training Costs,071,24-Mar-2011,1103-00219,495.00,R,Alarm
http://statistics.data.gov.uk/doc/local-authority/00DA,Leeds City Council,Central & Corporate Functions,Information Technology,Supplies and Services,Software - Expenditure,080,03-Mar-2011,1103-00220,867.00,R,Albany Software Ltd
http://statistics.data.gov.uk/doc/local-authority/00DA,Leeds City Council,Central & Corporate Functions,Information Technology,Supplies and Services,Software - Expenditure,080,11-Mar-2011,1103-00221,1228.00,R,Albany Software Ltd
http://statistics.data.gov.uk/doc/local-authority/00DA,Leeds City Council,Environment & Neighbourhoods,Health & Environmental Action,Supplies and Services,Other Hired And Contracted Services,265,16-Mar-2011,1103-00222,889.82,R,Alcontrol Uk Ltd
http://statistics.data.gov.uk/doc/local-authority/00DA,Leeds City Council,City Development,Design Services,Premises,Design Fees,155,03-Mar-2011,1103-00223,1994.16,R,Aldi Stores Ltd
http://statistics.data.gov.uk/doc/local-authority/00DA,Leeds City Council,Adult Social Care,Services For Older People - 65 And Over,Third Party Payments,Residential Care Emi,571,16-Mar-2011,1103-00224,7949.16,R,Alexander Residential Home
http://statistics.data.gov.uk/doc/local-authority/00DA,Leeds City Council,Adult Social Care,Services For Older People - 65 And Over,Third Party Payments,Residential,580,16-Mar-2011,1103-00225,15161.76,R,Alexander Residential Home
http://statistics.data.gov.uk/doc/local-authority/00DA,Leeds City Council,Adult Social Care,Services For Older People Under 65 P/Dis,Third Party Payments,Residential,580,16-Mar-2011,1103-00226,1162.72,R,Alexander Residential Home
http://statistics.data.gov.uk/doc/local-authority/00DA,Leeds City Council as Accountable Body,Social Services Pooled Budgets,Jcs For People With Learning Disabilitie,Third Party Payments,Residential,580,16-Mar-2011,1103-00227,1238.52,R,Alexander Residential Home
http://statistics.data.gov.uk/doc/local-authority/00DA,Leeds City Council,Adult Social Care,Services For Older People - 65 And Over,Third Party Payments,Residential Care Emi,571,16-Mar-2011,1103-00228,1256.20,R,Alexandra Court
http://statistics.data.gov.uk/doc/local-authority/00DA,Leeds City Council,Adult Social Care,Services For Older People - 65 And Over,Third Party Payments,Residential,580,16-Mar-2011,1103-00229,4289.44,R,Alexandra Court
http://statistics.data.gov.uk/doc/local-authority/00DA,Leeds City Council,Environment & Neighbourhoods,Health & Environmental Action,Supplies and Services,Other Hired And Contracted Services,265,03-Mar-2011,1103-00230,667.00,R,Alfies Boarding Kennels
http://statistics.data.gov.uk/doc/local-authority/00DA,Leeds City Council,Environment & Neighbourhoods,Health & Environmental Action,Supplies and Services,Other Hired And Contracted Services,265,09-Mar-2011,1103-00231,508.64,R,Alfies Boarding Kennels
http://statistics.data.gov.uk/doc/local-authority/00DA,Leeds City Council,Environment & Neighbourhoods,Community Safety,Capital,Construction,3,02-Mar-2011,1103-00232,1068.22,C,Alfred Bagnall & Sons (Leeds) Ltd
http://statistics.data.gov.uk/doc/local-authority/00DA,Leeds City Council,City Development,Asset Management Services,Premises,Maintenance Of Buildings,101,03-Mar-2011,1103-00233,4606.25,R,Alfred Bagnall & Sons (Leeds) Ltd
http://statistics.data.gov.uk/doc/local-authority/00DA,Leeds City Council,Central & Corporate Functions,Civic And Community Buildings,Capital,Construction,3,25-Mar-2011,1103-00234,970.55,C,Alfred Bagnall & Sons (Leeds) Ltd
http://statistics.data.gov.uk/doc/local-authority/00DA,Leeds City Council,Central & Corporate Functions,Corporate Property Management,Premises,Maintenance Of Buildings,101,30-Mar-2011,1103-00235,6554.23,R,Alfred Bagnall & Sons (Leeds) Ltd
http://statistics.data.gov.uk/doc/local-authority/00DA,Leeds City Council,Childrens Services,Children - Commissioning And Social Work,Support Services,Legal Disbursements,411,24-Mar-2011,1103-00236,3727.00,R,Alison Hunt
http://statistics.data.gov.uk/doc/local-authority/00DA,Leeds City Council,Adult Social Care,Services For Older People - 65 And Over,Third Party Payments,Residential,580,16-Mar-2011,1103-00237,1120.96,R,Allendale Residential Home
http://statistics.data.gov.uk/doc/local-authority/00DA,Leeds City Council,City Development,Libraries Arts & Heritage,Premises,Rents,141,04-Mar-2011,1103-00238,2034.90,R,Allerton Bywater Community Partnership
http://statistics.data.gov.uk/doc/local-authority/00DA,Leeds City Council,Central & Corporate Functions,Revenues,Supplies and Services,Bank Charges,263,03-Mar-2011,1103-00239,1909.13,R,Alliance & Leicester Commercial Bank
http://statistics.data.gov.uk/doc/local-authority/00DA,Leeds City Council,City Development,Recreation,Premises,Cleaning Maintenance & Toiletries,127,03-Feb-2011,1103-00240,678.90,R,Alliance Disposables
http://statistics.data.gov.uk/doc/local-authority/00DA,Leeds City Council,Insurance,Insurance,Supplies and Services,Other Hired And Contracted Services,265,10-Mar-2011,1103-00241,480.00,R,Alliance Law Solicitors
http://statistics.data.gov.uk/doc/local-authority/00DA,Leeds City Council,Adult Social Care,Other Generic Services,Third Party Payments,Home Care,568,01-Mar-2011,1103-00242,1849.68,R,Allied Healthcare Group Ltd
http://statistics.data.gov.uk/doc/local-authority/00DA,Leeds City Council,Adult Social Care,Other Generic Services,Third Party Payments,Home Care,568,01-Mar-2011,1103-00243,18965.84,R,Allied Healthcare Group Ltd
http://statistics.data.gov.uk/doc/local-authority/00DA,Leeds City Council as Accountable Body,Social Services Pooled Budgets,Jcs For People With Learning Disabilitie,Third Party Payments,Home Care,568,01-Mar-2011,1103-00244,1271.79,R,Allied Healthcare Group Ltd
http://statistics.data.gov.uk/doc/local-authority/00DA,Leeds City Council as Accountable Body,Social Services Pooled Budgets,Jcs For People With Learning Disabilitie,Third Party Payments,Home Care,568,01-Mar-2011,1103-00245,633.89,R,Allied Healthcare Group Ltd
http://statistics.data.gov.uk/doc/local-authority/00DA,Leeds City Council,Adult Social Care,Services For Older People - 65 And Over,Third Party Payments,Home Care,568,04-Mar-2011,1103-00246,1291.92,R,Allied Healthcare Group Ltd
http://statistics.data.gov.uk/doc/local-authority/00DA,Leeds City Council,Adult Social Care,Other Generic Services,Third Party Payments,Home Care,568,04-Mar-2011,1103-00247,2383.84,R,Allied Healthcare Group Ltd
http://statistics.data.gov.uk/doc/local-authority/00DA,Leeds City Council,Adult Social Care,Other Generic Services,Third Party Payments,Home Care,568,04-Mar-2011,1103-00248,18462.87,R,Allied Healthcare Group Ltd
http://statistics.data.gov.uk/doc/local-authority/00DA,Leeds City Council,Adult Social Care,Services For Older People Under 65 P/Dis,Third Party Payments,Home Care,568,04-Mar-2011,1103-00249,1632.00,R,Allied Healthcare Group Ltd
http://statistics.data.gov.uk/doc/local-authority/00DA,Leeds City Council,Adult Social Care,Services For Older People - 65 And Over,Third Party Payments,Home Care,568,04-Mar-2011,1103-00250,489.60,R,Allied Healthcare Group Ltd
http://statistics.data.gov.uk/doc/local-authority/00DA,Leeds City Council,Adult Social Care,Services For Older People - 65 And Over,Third Party Payments,Home Care,568,04-Mar-2011,1103-00251,515.10,R,Allied Healthcare Group Ltd
http://statistics.data.gov.uk/doc/local-authority/00DA,Leeds City Council,Adult Social Care,Services For Older People - 65 And Over,Third Party Payments,Home Care,568,04-Mar-2011,1103-00252,782.85,R,Allied Healthcare Group Ltd
http://statistics.data.gov.uk/doc/local-authority/00DA,Leeds City Council,Adult Social Care,Services For Older People - 65 And Over,Third Party Payments,Home Care,568,04-Mar-2011,1103-00253,530.40,R,Allied Healthcare Group Ltd
http://statistics.data.gov.uk/doc/local-authority/00DA,Leeds City Council,Adult Social Care,Services For Older People Under 65 P/Dis,Third Party Payments,Home Care,568,04-Mar-2011,1103-00254,703.80,R,Allied Healthcare Group Ltd
http://statistics.data.gov.uk/doc/local-authority/00DA,Leeds City Council,Adult Social Care,Services For Older People Under 65 P/Dis,Third Party Payments,Home Care,568,04-Mar-2011,1103-00255,6672.81,R,Allied Healthcare Group Ltd
http://statistics.data.gov.uk/doc/local-authority/00DA,Leeds City Council,Adult Social Care,Services For Older People Under 65 P/Dis,Third Party Payments,Home Care,568,04-Mar-2011,1103-00256,754.80,R,Allied Healthcare Group Ltd
http://statistics.data.gov.uk/doc/local-authority/00DA,Leeds City Council,Adult Social Care,Services For Older People Under 65 P/Dis,Third Party Payments,Home Care,568,04-Mar-2011,1103-00257,1065.90,R,Allied Healthcare Group Ltd
http://statistics.data.gov.uk/doc/local-authority/00DA,Leeds City Council,Adult Social Care,Services For Older People - 65 And Over,Third Party Payments,Home Care,568,04-Mar-2011,1103-00258,571.20,R,Allied Healthcare Group Ltd
http://statistics.data.gov.uk/doc/local-authority/00DA,Leeds City Council,Adult Social Care,Services For Older People - 65 And Over,Third Party Payments,Home Care,568,04-Mar-2011,1103-00259,637.50,R,Allied Healthcare Group Ltd
http://statistics.data.gov.uk/doc/local-authority/00DA,Leeds City Council as Accountable Body,Social Services Pooled Budgets,Jcs For People With Learning Disabilitie,Third Party Payments,Home Care,568,10-Mar-2011,1103-00260,797.50,R,Allied Healthcare Group Ltd
http://statistics.data.gov.uk/doc/local-authority/00DA,Leeds City Council as Accountable Body,Social Services Pooled Budgets,Jcs For People With Learning Disabilitie,Third Party Payments,Home Care,568,10-Mar-2011,1103-00261,1088.40,R,Allied Healthcare Group Ltd
http://statistics.data.gov.uk/doc/local-authority/00DA,Leeds City Council as Accountable Body,Social Services Pooled Budgets,Jcs For People With Learning Disabilitie,Third Party Payments,Home Care,568,10-Mar-2011,1103-00262,1359.97,R,Allied Healthcare Group Ltd
http://statistics.data.gov.uk/doc/local-authority/00DA,Leeds City Council,Adult Social Care,Services For Older People - 65 And Over,Third Party Payments,Home Care,568,10-Mar-2011,1103-00263,18355.30,R,Allied Healthcare Group Ltd
http://statistics.data.gov.uk/doc/local-authority/00DA,Leeds City Council,Adult Social Care,Services For Older People Under 65 P/Dis,Third Party Payments,Home Care,568,10-Mar-2011,1103-00264,3483.67,R,Allied Healthcare Group Ltd
http://statistics.data.gov.uk/doc/local-authority/00DA,Leeds City Council,Adult Social Care,Services For Older People - 65 And Over,Third Party Payments,Home Care,568,10-Mar-2011,1103-00265,12281.73,R,Allied Healthcare Group Ltd
http://statistics.data.gov.uk/doc/local-authority/00DA,Leeds City Council,Adult Social Care,Services For Older People - 65 And Over,Third Party Payments,Home Care,568,10-Mar-2011,1103-00266,15667.10,R,Allied Healthcare Group Ltd
http://statistics.data.gov.uk/doc/local-authority/00DA,Leeds City Council,Adult Social Care,Services For Older People Under 65 P/Dis,Third Party Payments,Home Care,568,10-Mar-2011,1103-00267,1892.04,R,Allied Healthcare Group Ltd
http://statistics.data.gov.uk/doc/local-authority/00DA,Leeds City Council,Adult Social Care,Services For Older People - 65 And Over,Third Party Payments,Home Care,568,10-Mar-2011,1103-00268,10222.40,R,Allied Healthcare Group Ltd
http://statistics.data.gov.uk/doc/local-authority/00DA,Leeds City Council,Adult Social Care,Services For Older People - 65 And Over,Third Party Payments,Home Care,568,11-Mar-2011,1103-00269,1291.92,R,Allied Healthcare Group Ltd
http://statistics.data.gov.uk/doc/local-authority/00DA,Leeds City Council,Adult Social Care,Services For Older People - 65 And Over,Third Party Payments,Home Care,568,18-Mar-2011,1103-00270,1288.07,R,Allied Healthcare Group Ltd
http://statistics.data.gov.uk/doc/local-authority/00DA,Leeds City Council,Adult Social Care,Services For Older People Under 65 P/Dis,Third Party Payments,Home Care,568,18-Mar-2011,1103-00271,1836.85,R,Allied Healthcare Group Ltd
http://statistics.data.gov.uk/doc/local-authority/00DA,Leeds City Council,Adult Social Care,Services For Older People - 65 And Over,Third Party Payments,Home Care,568,23-Mar-2011,1103-00272,14790.67,R,Allied Healthcare Group Ltd
http://statistics.data.gov.uk/doc/local-authority/00DA,Leeds City Council,Adult Social Care,Services For Older People Under 65 P/Dis,Third Party Payments,Home Care,568,23-Mar-2011,1103-00273,3265.53,R,Allied Healthcare Group Ltd
http://statistics.data.gov.uk/doc/local-authority/00DA,Leeds City Council,Adult Social Care,Social Services Support Services,Supplies and Services,Other Hired And Contracted Services,265,24-Mar-2011,1103-00274,962.84,R,Allied Healthcare Group Ltd
http://statistics.data.gov.uk/doc/local-authority/00DA,Leeds City Council as Accountable Body,Social Services Pooled Budgets,Jcs For People With Learning Disabilitie,Third Party Payments,Home Care,568,25-Mar-2011,1103-00275,529.20,R,Allied Healthcare Group Ltd
http://statistics.data.gov.uk/doc/local-authority/00DA,Leeds City Council as Accountable Body,Social Services Pooled Budgets,Jcs For People With Learning Disabilitie,Third Party Payments,Home Care,568,25-Mar-2011,1103-00276,546.97,R,Allied Healthcare Group Ltd
http://statistics.data.gov.uk/doc/local-authority/00DA,Leeds City Council,Adult Social Care,Services For Older People - 65 And Over,Third Party Payments,Home Care,568,30-Mar-2011,1103-00277,1295.77,R,Allied Healthcare Group Ltd
http://statistics.data.gov.uk/doc/local-authority/00DA,Leeds City Council as Accountable Body,Social Services Pooled Budgets,Jcs For People With Learning Disabilitie,Third Party Payments,Home Care,568,30-Mar-2011,1103-00278,515.75,R,Allied Healthcare Group Ltd
http://statistics.data.gov.uk/doc/local-authority/00DA,Leeds City Council,Childrens Services,Children - Commissioning And Social Work,Support Services,Legal Disbursements,411,03-Mar-2011,1103-00279,450.00,R,Alpha Biolabs
http://statistics.data.gov.uk/doc/local-authority/00DA,Leeds City Council,Childrens Services,Children - Commissioning And Social Work,Support Services,Legal Disbursements,411,03-Mar-2011,1103-00280,795.00,R,Alpha Biolabs
http://statistics.data.gov.uk/doc/local-authority/00DA,Leeds City Council,Childrens Services,Children - Commissioning And Social Work,Support Services,Legal Disbursements,411,11-Mar-2011,1103-00281,480.00,R,Alpha Biolabs
http://statistics.data.gov.uk/doc/local-authority/00DA,Leeds City Council,Childrens Services,Children - Commissioning And Social Work,Support Services,Legal Disbursements,411,23-Mar-2011,1103-00282,610.00,R,Alpha Biolabs
http://statistics.data.gov.uk/doc/local-authority/00DA,Leeds City Council,Childrens Services,Children - Commissioning And Social Work,Support Services,Legal Disbursements,411,23-Mar-2011,1103-00283,610.00,R,Alpha Biolabs
http://statistics.data.gov.uk/doc/local-authority/00DA,Leeds City Council,Environment & Neighbourhoods,West North West,Capital,Construction,3,07-Mar-2011,1103-00284,8356.22,C,Alternative Windows (Leeds) Ltd
http://statistics.data.gov.uk/doc/local-authority/00DA,Leeds City Council,Environment & Neighbourhoods,Belle Isle,Capital,Construction,3,25-Mar-2011,1103-00285,73841.53,C,Alternative Windows (Leeds) Ltd
http://statistics.data.gov.uk/doc/local-authority/00DA,Leeds City Council,Environment & Neighbourhoods,South South East,Capital,Construction,3,25-Mar-2011,1103-00286,12110.94,C,Alternative Windows (Leeds) Ltd
http://statistics.data.gov.uk/doc/local-authority/00DA,Education Leeds,Education Leeds,Education Leeds,Supplies and Services,Educational Visits,282,21-Mar-2011,1103-00287,5240.00,R,Alton Towers Resort Operations Limited
http://statistics.data.gov.uk/doc/local-authority/00DA,Leeds City Council,Central & Corporate Functions,Commercial Services Trading Services,Supplies and Services,Operational Materials,205,02-Mar-2011,1103-00288,1470.50,R,Alvin Morris Ltd
http://statistics.data.gov.uk/doc/local-authority/00DA,Leeds City Council,Central & Corporate Functions,Commercial Services Trading Services,Supplies and Services,Operational Materials,205,02-Mar-2011,1103-00289,501.49,R,Alvin Morris Ltd
http://statistics.data.gov.uk/doc/local-authority/00DA,Leeds City Council,Adult Social Care,Services For Older People - 65 And Over,Third Party Payments,Nursing Care Emi,574,17-Mar-2011,1103-00290,1127.64,R,Amarna House Care Centre
http://statistics.data.gov.uk/doc/local-authority/00DA,Leeds City Council,City Development,Recreation,Supplies and Services,Operational Materials,205,25-Mar-2011,1103-00291,464.50,R,Amateur Swimming Association
http://statistics.data.gov.uk/doc/local-authority/00DA,Leeds City Council,City Development,Libraries Arts & Heritage,Supplies and Services,Other Hired And Contracted Services,265,25-Mar-2011,1103-00292,7070.00,R,Amazing Tent Company Limited
http://statistics.data.gov.uk/doc/local-authority/00DA,Leeds City Council,Childrens Services,Children Looked After,Third Party Payments,General External Residential Placements,507,18-Mar-2011,1103-00293,14952.00,R,Amberleigh Care Ltd
http://statistics.data.gov.uk/doc/local-authority/00DA,Leeds City Council,Adult Social Care,Services For Older People - 65 And Over,Third Party Payments,Residential,580,16-Mar-2011,1103-00294,2190.36,R,Amelia House
http://statistics.data.gov.uk/doc/local-authority/00DA,Leeds City Council,Adult Social Care,Services For Older People - 65 And Over,Third Party Payments,Home Care,568,10-Mar-2011,1103-00295,11530.60,R,Anchor Care
http://statistics.data.gov.uk/doc/local-authority/00DA,Leeds City Council,Adult Social Care,Services For Older People Under 65 P/Dis,Third Party Payments,Home Care,568,10-Mar-2011,1103-00296,770.77,R,Anchor Care
http://statistics.data.gov.uk/doc/local-authority/00DA,Leeds City Council,Adult Social Care,Services For Older People - 65 And Over,Third Party Payments,Home Care,568,10-Mar-2011,1103-00297,31953.97,R,Anchor Care
http://statistics.data.gov.uk/doc/local-authority/00DA,Leeds City Council,Adult Social Care,Services For Older People Under 65 P/Dis,Third Party Payments,Home Care,568,10-Mar-2011,1103-00298,3711.79,R,Anchor Care
http://statistics.data.gov.uk/doc/local-authority/00DA,Leeds City Council,Adult Social Care,Services For Older People - 65 And Over,Third Party Payments,Home Care,568,10-Mar-2011,1103-00299,20125.51,R,Anchor Care
http://statistics.data.gov.uk/doc/local-authority/00DA,Leeds City Council,Adult Social Care,Services For Older People Under 65 P/Dis,Third Party Payments,Home Care,568,10-Mar-2011,1103-00300,1044.68,R,Anchor Care
http://statistics.data.gov.uk/doc/local-authority/00DA,Leeds City Council,Adult Social Care,Services For Older People - 65 And Over,Third Party Payments,Home Care,568,10-Mar-2011,1103-00301,25574.56,R,Anchor Care
http://statistics.data.gov.uk/doc/local-authority/00DA,Leeds City Council,Adult Social Care,Services For Older People Under 65 P/Dis,Third Party Payments,Home Care,568,10-Mar-2011,1103-00302,2123.49,R,Anchor Care
http://statistics.data.gov.uk/doc/local-authority/00DA,Leeds City Council,Adult Social Care,Services For Older People - 65 And Over,Third Party Payments,Home Care,568,24-Mar-2011,1103-00303,11389.43,R,Anchor Care
http://statistics.data.gov.uk/doc/local-authority/00DA,Leeds City Council,Adult Social Care,Services For Older People Under 65 P/Dis,Third Party Payments,Home Care,568,24-Mar-2011,1103-00304,840.84,R,Anchor Care
http://statistics.data.gov.uk/doc/local-authority/00DA,Leeds City Council,Adult Social Care,Services For Older People - 65 And Over,Third Party Payments,Home Care,568,24-Mar-2011,1103-00305,1003.11,R,Anchor Care
http://statistics.data.gov.uk/doc/local-authority/00DA,Leeds City Council,Adult Social Care,Services For Older People - 65 And Over,Third Party Payments,Home Care,568,30-Mar-2011,1103-00306,31517.50,R,Anchor Care
http://statistics.data.gov.uk/doc/local-authority/00DA,Leeds City Council,Adult Social Care,Services For Adults Under 65 Mental/Dis,Third Party Payments,Home Care,568,30-Mar-2011,1103-00307,2540.73,R,Anchor Care
http://statistics.data.gov.uk/doc/local-authority/00DA,Leeds City Council,Adult Social Care,Services For Older People - 65 And Over,Third Party Payments,Home Care,568,30-Mar-2011,1103-00308,16467.95,R,Anchor Care
http://statistics.data.gov.uk/doc/local-authority/00DA,Leeds City Council,Adult Social Care,Services For Older People Under 65 P/Dis,Third Party Payments,Home Care,568,30-Mar-2011,1103-00309,1066.75,R,Anchor Care
http://statistics.data.gov.uk/doc/local-authority/00DA,Leeds City Council,Adult Social Care,Services For Older People - 65 And Over,Third Party Payments,Home Care,568,30-Mar-2011,1103-00310,22953.92,R,Anchor Care
http://statistics.data.gov.uk/doc/local-authority/00DA,Leeds City Council,Adult Social Care,Services For Older People Under 65 P/Dis,Third Party Payments,Home Care,568,30-Mar-2011,1103-00311,2227.71,R,Anchor Care
http://statistics.data.gov.uk/doc/local-authority/00DA,Leeds City Council,Adult Social Care,Services For Older People - 65 And Over,Third Party Payments,Home Care,568,30-Mar-2011,1103-00312,1721.20,R,Anchor Care
http://statistics.data.gov.uk/doc/local-authority/00DA,Leeds City Council,Adult Social Care,Services For Older People - 65 And Over,Third Party Payments,Payments To Voluntary Organisations,561,02-Mar-2011,1103-00313,52179.92,R,Anchor Trust
http://statistics.data.gov.uk/doc/local-authority/00DA,Leeds City Council,Adult Social Care,Services For Older People - 65 And Over,Third Party Payments,Payments To Voluntary Organisations,561,02-Mar-2011,1103-00314,9167.48,R,Anchor Trust
http://statistics.data.gov.uk/doc/local-authority/00DA,Leeds City Council as Accountable Body,Social Services Pooled Budgets,Jcs For People With Learning Disabilitie,Third Party Payments,Residential,580,04-Mar-2011,1103-00315,588.96,R,Anchor Trust
http://statistics.data.gov.uk/doc/local-authority/00DA,Leeds City Council,Adult Social Care,Services For Older People - 65 And Over,Third Party Payments,Nursing Home,570,16-Mar-2011,1103-00316,24024.00,R,Anchor Trust
http://statistics.data.gov.uk/doc/local-authority/00DA,Leeds City Council,Adult Social Care,Services For Adults Under 65 Mental/Dis,Third Party Payments,Nursing Home,570,16-Mar-2011,1103-00317,1758.08,R,Anchor Trust
http://statistics.data.gov.uk/doc/local-authority/00DA,Leeds City Council,Adult Social Care,Services For Older People Under 65 P/Dis,Third Party Payments,Nursing Home,570,16-Mar-2011,1103-00318,1083.65,R,Anchor Trust
http://statistics.data.gov.uk/doc/local-authority/00DA,Leeds City Council,Adult Social Care,Services For Older People - 65 And Over,Third Party Payments,Residential Care Emi,571,16-Mar-2011,1103-00319,1650.04,R,Anchor Trust
http://statistics.data.gov.uk/doc/local-authority/00DA,Leeds City Council,Adult Social Care,Services For Older People - 65 And Over,Third Party Payments,Residential Care Emi,571,16-Mar-2011,1103-00320,3629.04,R,Anchor Trust
http://statistics.data.gov.uk/doc/local-authority/00DA,Leeds City Council,Adult Social Care,Services For Older People - 65 And Over,Third Party Payments,Nursing Care Emi,574,16-Mar-2011,1103-00321,1204.92,R,Anchor Trust
http://statistics.data.gov.uk/doc/local-authority/00DA,Leeds City Council,Adult Social Care,Services For Older People - 65 And Over,Third Party Payments,Residential,580,16-Mar-2011,1103-00322,5379.80,R,Anchor Trust
http://statistics.data.gov.uk/doc/local-authority/00DA,Leeds City Council,Adult Social Care,Services For Older People - 65 And Over,Third Party Payments,Residential,580,16-Mar-2011,1103-00323,2275.72,R,Anchor Trust
http://statistics.data.gov.uk/doc/local-authority/00DA,Leeds City Council,Adult Social Care,Services For Older People - 65 And Over,Third Party Payments,Residential,580,16-Mar-2011,1103-00324,1928.64,R,Anchor Trust
http://statistics.data.gov.uk/doc/local-authority/00DA,Leeds City Council,Adult Social Care,Services For Adults Under 65 Mental/Dis,Third Party Payments,Residential,580,16-Mar-2011,1103-00325,1120.24,R,Anchor Trust
http://statistics.data.gov.uk/doc/local-authority/00DA,Leeds City Council,Adult Social Care,Services For Older People - 65 And Over,Third Party Payments,Payments To Voluntary Organisations,561,25-Mar-2011,1103-00326,9167.48,R,Anchor Trust
http://statistics.data.gov.uk/doc/local-authority/00DA,Leeds City Council,Environment & Neighbourhoods,Housing Needs,Third Party Payments,Supporting People - Block Subsidy,513,29-Mar-2011,1103-00327,490.79,R,Anchor Trust
http://statistics.data.gov.uk/doc/local-authority/00DA,Leeds City Council,Environment & Neighbourhoods,Housing Needs,Third Party Payments,Supporting People - Block Subsidy,513,29-Mar-2011,1103-00328,10002.36,R,Anchor Trust
http://statistics.data.gov.uk/doc/local-authority/00DA,Leeds City Council,Environment & Neighbourhoods,Housing Needs,Third Party Payments,Supporting People - Block Subsidy,513,29-Mar-2011,1103-00329,774.41,R,Anchor Trust
http://statistics.data.gov.uk/doc/local-authority/00DA,Leeds City Council as Accountable Body,Social Services Pooled Budgets,Jcs For People With Learning Disabilitie,Third Party Payments,Residential,580,31-Mar-2011,1103-00330,588.96,R,Anchor Trust
http://statistics.data.gov.uk/doc/local-authority/00DA,Leeds City Council,Adult Social Care,Services For Older People - 65 And Over,Third Party Payments,Residential Care Emi,571,16-Mar-2011,1103-00331,10026.44,R,Anchor Trust Simon Marks Court
http://statistics.data.gov.uk/doc/local-authority/00DA,Leeds City Council,Adult Social Care,Services For Older People - 65 And Over,Third Party Payments,Residential,580,16-Mar-2011,1103-00332,11867.84,R,Anchor Trust Simon Marks Court
http://statistics.data.gov.uk/doc/local-authority/00DA,Leeds City Council,Childrens Services,Other Childrens And Families Services,Third Party Payments,Rent,552,17-Mar-2011,1103-00333,2453.00,R,Anderson Hope
http://statistics.data.gov.uk/doc/local-authority/00DA,East - North East Homes Leeds,East - North East,Technical Services,Premises,H.R.A. - Repairs A To P,107,11-Mar-2011,1103-00334,10866.00,R,Anderson Marriott & Co Ltd
http://statistics.data.gov.uk/doc/local-authority/00DA,East - North East Homes Leeds,East - North East,Technical Services,Premises,H.R.A. - Repairs A To P,107,18-Mar-2011,1103-00335,6565.08,R,Anderson Marriott & Co Ltd
http://statistics.data.gov.uk/doc/local-authority/00DA,East - North East Homes Leeds,East - North East,Technical Services,Premises,H.R.A. - Repairs A To P,107,21-Mar-2011,1103-00336,10938.00,R,Anderson Marriott & Co Ltd
http://statistics.data.gov.uk/doc/local-authority/00DA,Leeds City Council,Central & Corporate Functions,Corporate Governance,Support Services,Professional Legal Services Charges,410,07-Mar-2011,1103-00337,82500.00,R,Andrew Arden Qc
http://statistics.data.gov.uk/doc/local-authority/00DA,East - North East Homes Leeds,East - North East,Technical Services,Supplies and Services,Other Hired And Contracted Services,265,04-Mar-2011,1103-00338,1827.93,R,Andrew Miller Builders
http://statistics.data.gov.uk/doc/local-authority/00DA,East - North East Homes Leeds,East - North East,Technical Services,Supplies and Services,Other Hired And Contracted Services,265,04-Mar-2011,1103-00339,526.35,R,Andrew Miller Builders
http://statistics.data.gov.uk/doc/local-authority/00DA,Leeds City Council,Childrens Services,Children - Commissioning And Social Work,Support Services,Legal Disbursements,411,11-Mar-2011,1103-00340,449.99,R,Andrew Wastall
http://statistics.data.gov.uk/doc/local-authority/00DA,Leeds City Council,Adult Social Care,Services For Older People - 65 And Over,Third Party Payments,Home Care,568,02-Mar-2011,1103-00341,745.50,R,Angels Home Care Services
http://statistics.data.gov.uk/doc/local-authority/00DA,Leeds City Council,Adult Social Care,Services For Older People Under 65 P/Dis,Third Party Payments,Home Care,568,02-Mar-2011,1103-00342,1561.00,R,Angels Home Care Services
http://statistics.data.gov.uk/doc/local-authority/00DA,Leeds City Council,Adult Social Care,Services For Older People Under 65 P/Dis,Third Party Payments,Home Care,568,04-Mar-2011,1103-00343,1428.50,R,Angels Home Care Services
http://statistics.data.gov.uk/doc/local-authority/00DA,Leeds City Council,Adult Social Care,Services For Older People Under 65 P/Dis,Third Party Payments,Home Care,568,04-Mar-2011,1103-00344,1144.50,R,Angels Home Care Services
http://statistics.data.gov.uk/doc/local-authority/00DA,Leeds City Council,Adult Social Care,Services For Older People Under 65 P/Dis,Third Party Payments,Home Care,568,04-Mar-2011,1103-00345,994.00,R,Angels Home Care Services
http://statistics.data.gov.uk/doc/local-authority/00DA,Leeds City Council,Adult Social Care,Services For Older People - 65 And Over,Third Party Payments,Home Care,568,08-Mar-2011,1103-00346,4060.00,R,Angels Home Care Services
http://statistics.data.gov.uk/doc/local-authority/00DA,Leeds City Council,Adult Social Care,Services For Older People Under 65 P/Dis,Third Party Payments,Home Care,568,18-Mar-2011,1103-00347,2750.20,R,Angels Home Care Services
http://statistics.data.gov.uk/doc/local-authority/00DA,Leeds City Council,Adult Social Care,Services For Older People - 65 And Over,Third Party Payments,Home Care,568,18-Mar-2011,1103-00348,490.00,R,Angels Home Care Services
http://statistics.data.gov.uk/doc/local-authority/00DA,Leeds City Council,Adult Social Care,Services For Older People - 65 And Over,Third Party Payments,Home Care,568,18-Mar-2011,1103-00349,5029.12,R,Angels Home Care Services
http://statistics.data.gov.uk/doc/local-authority/00DA,Leeds City Council,Adult Social Care,Services For Older People - 65 And Over,Third Party Payments,Home Care,568,18-Mar-2011,1103-00350,434.00,R,Angels Home Care Services
http://statistics.data.gov.uk/doc/local-authority/00DA,Leeds City Council,Adult Social Care,Services For Older People - 65 And Over,Third Party Payments,Home Care,568,18-Mar-2011,1103-00351,879.95,R,Angels Home Care Services
http://statistics.data.gov.uk/doc/local-authority/00DA,Leeds City Council,Adult Social Care,Services For Older People - 65 And Over,Third Party Payments,Home Care,568,18-Mar-2011,1103-00352,777.00,R,Angels Home Care Services
http://statistics.data.gov.uk/doc/local-authority/00DA,Leeds City Council,Adult Social Care,Services For Older People - 65 And Over,Third Party Payments,Home Care,568,18-Mar-2011,1103-00353,777.00,R,Angels Home Care Services
http://statistics.data.gov.uk/doc/local-authority/00DA,Leeds City Council,Adult Social Care,Services For Older People Under 65 P/Dis,Third Party Payments,Home Care,568,18-Mar-2011,1103-00354,2075.50,R,Angels Home Care Services
http://statistics.data.gov.uk/doc/local-authority/00DA,Leeds City Council,Adult Social Care,Services For Older People - 65 And Over,Third Party Payments,Home Care,568,18-Mar-2011,1103-00355,2625.00,R,Angels Home Care Services
http://statistics.data.gov.uk/doc/local-authority/00DA,Leeds City Council,Adult Social Care,Services For Older People - 65 And Over,Third Party Payments,Home Care,568,18-Mar-2011,1103-00356,556.50,R,Angels Home Care Services
http://statistics.data.gov.uk/doc/local-authority/00DA,Leeds City Council,Adult Social Care,Services For Older People - 65 And Over,Third Party Payments,Home Care,568,23-Mar-2011,1103-00357,1438.50,R,Angels Home Care Services
http://statistics.data.gov.uk/doc/local-authority/00DA,Leeds City Council,Adult Social Care,Services For Older People Under 65 P/Dis,Third Party Payments,Home Care,568,23-Mar-2011,1103-00358,1771.00,R,Angels Home Care Services
http://statistics.data.gov.uk/doc/local-authority/00DA,Leeds City Council,Adult Social Care,Services For Older People - 65 And Over,Third Party Payments,Payments To Voluntary Organisations,561,11-Mar-2011,1103-00359,1400.00,R,Angels Housekeeping Cic Ltd
http://statistics.data.gov.uk/doc/local-authority/00DA,Leeds City Council,Environment & Neighbourhoods,Regeneration,Supplies and Services,Non-Recurring Grants,227,11-Mar-2011,1103-00360,4892.00,R,Angels Housekeeping Cic Ltd
http://statistics.data.gov.uk/doc/local-authority/00DA,Leeds City Council,Adult Social Care,Services For Older People - 65 And Over,Third Party Payments,Payments To Voluntary Organisations,561,15-Mar-2011,1103-00361,1334.50,R,Angels Housekeeping Cic Ltd
http://statistics.data.gov.uk/doc/local-authority/00DA,Leeds City Council,Adult Social Care,Services For Older People - 65 And Over,Third Party Payments,Payments To Voluntary Organisations,561,23-Mar-2011,1103-00362,2000.00,R,Angels Housekeeping Cic Ltd
http://statistics.data.gov.uk/doc/local-authority/00DA,Leeds City Council,Adult Social Care,Services For Older People - 65 And Over,Third Party Payments,Payments To Voluntary Organisations,561,24-Mar-2011,1103-00363,10000.00,R,Angels Housekeeping Cic Ltd
http://statistics.data.gov.uk/doc/local-authority/00DA,Leeds City Council,Childrens Services,Early Years Service,Third Party Payments,Services Rendered By Other Organisations,511,22-Mar-2011,1103-00364,3447.69,R,Angels Nursery
http://statistics.data.gov.uk/doc/local-authority/00DA,Leeds City Council,Central & Corporate Functions,Corporate Governance,Supplies and Services,Other Hired And Contracted Services,265,09-Mar-2011,1103-00365,8333.33,R,Anslow Communications Ltd
http://statistics.data.gov.uk/doc/local-authority/00DA,Leeds City Council,City Development,Highways,Supplies and Services,Office Consumables,210,02-Mar-2011,1103-00366,1022.42,R,Antalis Mcnaughton Limited
http://statistics.data.gov.uk/doc/local-authority/00DA,Leeds City Council,Central & Corporate Functions,Support And Facilities Trading Services,Supplies and Services,Operational Materials,205,23-Mar-2011,1103-00367,469.00,R,Antalis Mcnaughton Limited
http://statistics.data.gov.uk/doc/local-authority/00DA,Leeds City Council,Central & Corporate Functions,Support And Facilities Trading Services,Supplies and Services,Operational Materials,205,25-Mar-2011,1103-00368,469.00,R,Antalis Mcnaughton Limited
http://statistics.data.gov.uk/doc/local-authority/00DA,Leeds City Council,Central & Corporate Functions,Support And Facilities Trading Services,Supplies and Services,Operational Materials,205,30-Mar-2011,1103-00369,469.00,R,Antalis Mcnaughton Limited
http://statistics.data.gov.uk/doc/local-authority/00DA,Leeds City Council,Adult Social Care,Social Services Support Services,Supplies and Services,Office Consumables,210,07-Feb-2011,1103-00370,558.69,R,Antalis Uk Ltd
http://statistics.data.gov.uk/doc/local-authority/00DA,Leeds City Council,Central & Corporate Functions,Benefits,Supplies and Services,Office Consumables,210,16-Feb-2011,1103-00371,586.25,R,Antalis Uk Ltd
http://statistics.data.gov.uk/doc/local-authority/00DA,Leeds City Council,Adult Social Care,Social Services Support Services,Supplies and Services,Office Consumables,210,16-Feb-2011,1103-00372,558.68,R,Antalis Uk Ltd
http://statistics.data.gov.uk/doc/local-authority/00DA,Leeds City Council,Central & Corporate Functions,Revenues,Supplies and Services,Office Consumables,210,22-Feb-2011,1103-00373,586.25,R,Antalis Uk Ltd
http://statistics.data.gov.uk/doc/local-authority/00DA,Leeds City Council,Adult Social Care,Social Services Support Services,Supplies and Services,Office Consumables,210,25-Feb-2011,1103-00374,532.00,R,Antalis Uk Ltd
http://statistics.data.gov.uk/doc/local-authority/00DA,Leeds City Council,Central & Corporate Functions,Commercial Services Trading Services,Supplies and Services,Food & Drink,231,03-Mar-2011,1103-00375,1081.46,R,Apetito Ltd
http://statistics.data.gov.uk/doc/local-authority/00DA,Leeds City Council,Central & Corporate Functions,Commercial Services Trading Services,Supplies and Services,Food & Drink,231,04-Mar-2011,1103-00376,871.60,R,Apetito Ltd
http://statistics.data.gov.uk/doc/local-authority/00DA,Leeds City Council,Central & Corporate Functions,Commercial Services Trading Services,Supplies and Services,Food & Drink,231,04-Mar-2011,1103-00377,1842.43,R,Apetito Ltd
http://statistics.data.gov.uk/doc/local-authority/00DA,Leeds City Council,Central & Corporate Functions,Commercial Services Trading Services,Supplies and Services,Food & Drink,231,04-Mar-2011,1103-00378,732.26,R,Apetito Ltd
http://statistics.data.gov.uk/doc/local-authority/00DA,Leeds City Council,Central & Corporate Functions,Commercial Services Trading Services,Transport,External  Hire- ( Fleet Management),313,15-Mar-2011,1103-00379,683.56,R,Apetito Ltd
http://statistics.data.gov.uk/doc/local-authority/00DA,Leeds City Council,Central & Corporate Functions,Commercial Services Trading Services,Supplies and Services,Food & Drink,231,17-Mar-2011,1103-00380,2165.40,R,Apetito Ltd
http://statistics.data.gov.uk/doc/local-authority/00DA,Leeds City Council,Central & Corporate Functions,Commercial Services Trading Services,Supplies and Services,Food & Drink,231,17-Mar-2011,1103-00381,1572.93,R,Apetito Ltd
http://statistics.data.gov.uk/doc/local-authority/00DA,Leeds City Council,Central & Corporate Functions,Commercial Services Trading Services,Supplies and Services,Food & Drink,231,17-Mar-2011,1103-00382,758.83,R,Apetito Ltd
http://statistics.data.gov.uk/doc/local-authority/00DA,Leeds City Council,Central & Corporate Functions,Commercial Services Trading Services,Supplies and Services,Food & Drink,231,17-Mar-2011,1103-00383,898.28,R,Apetito Ltd
http://statistics.data.gov.uk/doc/local-authority/00DA,Leeds City Council,Central & Corporate Functions,Commercial Services Trading Services,Supplies and Services,Food & Drink,231,23-Mar-2011,1103-00384,2320.13,R,Apetito Ltd
http://statistics.data.gov.uk/doc/local-authority/00DA,Leeds City Council,Central & Corporate Functions,Commercial Services Trading Services,Transport,Repairs To LCC Vehicles,341,24-Mar-2011,1103-00385,1320.82,R,Apetito Ltd
http://statistics.data.gov.uk/doc/local-authority/00DA,Leeds City Council,Central & Corporate Functions,Commercial Services Trading Services,Transport,External Hire -Permanent,303,24-Mar-2011,1103-00386,30375.00,R,Apetito Ltd
http://statistics.data.gov.uk/doc/local-authority/00DA,Leeds City Council,Central & Corporate Functions,Commercial Services Trading Services,Supplies and Services,Food & Drink,231,24-Mar-2011,1103-00387,1405.07,R,Apetito Ltd
http://statistics.data.gov.uk/doc/local-authority/00DA,Leeds City Council,Central & Corporate Functions,Commercial Services Trading Services,Supplies and Services,Food & Drink,231,24-Mar-2011,1103-00388,1693.87,R,Apetito Ltd
http://statistics.data.gov.uk/doc/local-authority/00DA,Leeds City Council,Central & Corporate Functions,Commercial Services Trading Services,Supplies and Services,Food & Drink,231,24-Mar-2011,1103-00389,2134.36,R,Apetito Ltd
http://statistics.data.gov.uk/doc/local-authority/00DA,Leeds City Council,Central & Corporate Functions,Commercial Services Trading Services,Supplies and Services,Food & Drink,231,25-Mar-2011,1103-00390,1540.22,R,Apetito Ltd
http://statistics.data.gov.uk/doc/local-authority/00DA,Leeds City Council,Central & Corporate Functions,Commercial Services Trading Services,Supplies and Services,Food & Drink,231,25-Mar-2011,1103-00391,900.48,R,Apetito Ltd
http://statistics.data.gov.uk/doc/local-authority/00DA,Leeds City Council,Childrens Services,Children Looked After,Third Party Payments,General External Residential Placements,507,16-Mar-2011,1103-00392,49779.00,R,Appletree Treatment Centre
http://statistics.data.gov.uk/doc/local-authority/00DA,Leeds City Council as Accountable Body,Social Services Pooled Budgets,Jcs For People With Learning Disabilitie,Third Party Payments,Residential,580,16-Mar-2011,1103-00393,10373.56,R,Applewalk Homes
http://statistics.data.gov.uk/doc/local-authority/00DA,East - North East Homes Leeds,East - North East,Business Improvement,Supplies and Services,Other Hired And Contracted Services,265,02-Mar-2011,1103-00394,667.12,R,Applied Language Solutions
http://statistics.data.gov.uk/doc/local-authority/00DA,Leeds City Council,Central & Corporate Functions,Commercial Services Trading Services,Supplies and Services,Computer Software & Equipment,214,02-Mar-2011,1103-00395,786.00,R,Appstation
http://statistics.data.gov.uk/doc/local-authority/00DA,Leeds City Council,Central & Corporate Functions,Commercial Services Trading Services,Supplies and Services,Computer Software & Equipment,214,04-Mar-2011,1103-00396,786.00,R,Appstation
http://statistics.data.gov.uk/doc/local-authority/00DA,Leeds City Council,City Development,Recreation,Supplies and Services,Memberships,226,11-Mar-2011,1103-00397,1995.00,R,Apse
http://statistics.data.gov.uk/doc/local-authority/00DA,Leeds City Council,Environment & Neighbourhoods,South South East,Capital,Construction,3,25-Mar-2011,1103-00398,73771.09,C,Aqua Interiors T/A V & T Plumbing
http://statistics.data.gov.uk/doc/local-authority/00DA,Leeds City Council,Central & Corporate Functions,Commercial Services Trading Services,Supplies and Services,Other Hired And Contracted Services,265,14-Mar-2011,1103-00399,1266.08,R,Aquatrust Water & Ventilation Ltd
http://statistics.data.gov.uk/doc/local-authority/00DA,Leeds City Council,Central & Corporate Functions,Commercial Services Trading Services,Supplies and Services,Other Hired And Contracted Services,265,22-Mar-2011,1103-00400,1266.08,R,Aquatrust Water & Ventilation Ltd
http://statistics.data.gov.uk/doc/local-authority/00DA,Leeds City Council as Accountable Body,Social Services Pooled Budgets,Jcs For People With Learning Disabilitie,Third Party Payments,Home Care,568,03-Mar-2011,1103-00401,851.42,R,Arabella Health Staffing Ltd
http://statistics.data.gov.uk/doc/local-authority/00DA,Leeds City Council as Accountable Body,Social Services Pooled Budgets,Jcs For People With Learning Disabilitie,Third Party Payments,Home Care,568,03-Mar-2011,1103-00402,428.71,R,Arabella Health Staffing Ltd
http://statistics.data.gov.uk/doc/local-authority/00DA,Leeds City Council as Accountable Body,Social Services Pooled Budgets,Jcs For People With Learning Disabilitie,Third Party Payments,Home Care,568,03-Mar-2011,1103-00403,934.33,R,Arabella Health Staffing Ltd
http://statistics.data.gov.uk/doc/local-authority/00DA,Leeds City Council as Accountable Body,Social Services Pooled Budgets,Jcs For People With Learning Disabilitie,Third Party Payments,Home Care,568,03-Mar-2011,1103-00404,977.36,R,Arabella Health Staffing Ltd
http://statistics.data.gov.uk/doc/local-authority/00DA,Leeds City Council as Accountable Body,Social Services Pooled Budgets,Jcs For People With Learning Disabilitie,Third Party Payments,Home Care,568,03-Mar-2011,1103-00405,547.84,R,Arabella Health Staffing Ltd
http://statistics.data.gov.uk/doc/local-authority/00DA,Leeds City Council as Accountable Body,Social Services Pooled Budgets,Jcs For People With Learning Disabilitie,Third Party Payments,Home Care,568,03-Mar-2011,1103-00406,743.88,R,Arabella Health Staffing Ltd
http://statistics.data.gov.uk/doc/local-authority/00DA,Leeds City Council as Accountable Body,Social Services Pooled Budgets,Jcs For People With Learning Disabilitie,Third Party Payments,Home Care,568,03-Mar-2011,1103-00407,1092.23,R,Arabella Health Staffing Ltd
http://statistics.data.gov.uk/doc/local-authority/00DA,Leeds City Council as Accountable Body,Social Services Pooled Budgets,Jcs For People With Learning Disabilitie,Third Party Payments,Home Care,568,04-Mar-2011,1103-00408,547.84,R,Arabella Health Staffing Ltd
http://statistics.data.gov.uk/doc/local-authority/00DA,Leeds City Council as Accountable Body,Social Services Pooled Budgets,Jcs For People With Learning Disabilitie,Third Party Payments,Home Care,568,04-Mar-2011,1103-00409,743.88,R,Arabella Health Staffing Ltd
http://statistics.data.gov.uk/doc/local-authority/00DA,Leeds City Council as Accountable Body,Social Services Pooled Budgets,Jcs For People With Learning Disabilitie,Third Party Payments,Home Care,568,04-Mar-2011,1103-00410,650.55,R,Arabella Health Staffing Ltd
http://statistics.data.gov.uk/doc/local-authority/00DA,Leeds City Council as Accountable Body,Social Services Pooled Budgets,Jcs For People With Learning Disabilitie,Third Party Payments,Home Care,568,04-Mar-2011,1103-00411,862.70,R,Arabella Health Staffing Ltd
http://statistics.data.gov.uk/doc/local-authority/00DA,Leeds City Council as Accountable Body,Social Services Pooled Budgets,Jcs For People With Learning Disabilitie,Third Party Payments,Home Care,568,04-Mar-2011,1103-00412,717.52,R,Arabella Health Staffing Ltd
http://statistics.data.gov.uk/doc/local-authority/00DA,Leeds City Council as Accountable Body,Social Services Pooled Budgets,Jcs For People With Learning Disabilitie,Third Party Payments,Home Care,568,09-Mar-2011,1103-00413,627.29,R,Arabella Health Staffing Ltd
http://statistics.data.gov.uk/doc/local-authority/00DA,Leeds City Council as Accountable Body,Social Services Pooled Budgets,Jcs For People With Learning Disabilitie,Third Party Payments,Home Care,568,10-Mar-2011,1103-00414,629.99,R,Arabella Health Staffing Ltd
http://statistics.data.gov.uk/doc/local-authority/00DA,Leeds City Council as Accountable Body,Social Services Pooled Budgets,Jcs For People With Learning Disabilitie,Third Party Payments,Home Care,568,10-Mar-2011,1103-00415,579.20,R,Arabella Health Staffing Ltd
http://statistics.data.gov.uk/doc/local-authority/00DA,Leeds City Council as Accountable Body,Social Services Pooled Budgets,Jcs For People With Learning Disabilitie,Third Party Payments,Home Care,568,10-Mar-2011,1103-00416,546.49,R,Arabella Health Staffing Ltd
http://statistics.data.gov.uk/doc/local-authority/00DA,Leeds City Council as Accountable Body,Social Services Pooled Budgets,Jcs For People With Learning Disabilitie,Third Party Payments,Home Care,568,10-Mar-2011,1103-00417,877.78,R,Arabella Health Staffing Ltd
http://statistics.data.gov.uk/doc/local-authority/00DA,Leeds City Council as Accountable Body,Social Services Pooled Budgets,Jcs For People With Learning Disabilitie,Third Party Payments,Home Care,568,10-Mar-2011,1103-00418,420.49,R,Arabella Health Staffing Ltd
http://statistics.data.gov.uk/doc/local-authority/00DA,Leeds City Council as Accountable Body,Social Services Pooled Budgets,Jcs For People With Learning Disabilitie,Third Party Payments,Home Care,568,10-Mar-2011,1103-00419,1220.32,R,Arabella Health Staffing Ltd
http://statistics.data.gov.uk/doc/local-authority/00DA,Leeds City Council as Accountable Body,Social Services Pooled Budgets,Jcs For People With Learning Disabilitie,Third Party Payments,Home Care,568,10-Mar-2011,1103-00420,541.00,R,Arabella Health Staffing Ltd
http://statistics.data.gov.uk/doc/local-authority/00DA,Leeds City Council as Accountable Body,Social Services Pooled Budgets,Jcs For People With Learning Disabilitie,Third Party Payments,Home Care,568,10-Mar-2011,1103-00421,547.84,R,Arabella Health Staffing Ltd
http://statistics.data.gov.uk/doc/local-authority/00DA,Leeds City Council as Accountable Body,Social Services Pooled Budgets,Jcs For People With Learning Disabilitie,Third Party Payments,Home Care,568,10-Mar-2011,1103-00422,428.71,R,Arabella Health Staffing Ltd
http://statistics.data.gov.uk/doc/local-authority/00DA,Leeds City Council as Accountable Body,Social Services Pooled Budgets,Jcs For People With Learning Disabilitie,Third Party Payments,Home Care,568,17-Mar-2011,1103-00423,-1550.69,R,Arabella Health Staffing Ltd
http://statistics.data.gov.uk/doc/local-authority/00DA,Leeds City Council as Accountable Body,Social Services Pooled Budgets,Jcs For People With Learning Disabilitie,Third Party Payments,Home Care,568,17-Mar-2011,1103-00424,743.88,R,Arabella Health Staffing Ltd
http://statistics.data.gov.uk/doc/local-authority/00DA,Leeds City Council as Accountable Body,Social Services Pooled Budgets,Jcs For People With Learning Disabilitie,Third Party Payments,Home Care,568,17-Mar-2011,1103-00425,1264.09,R,Arabella Health Staffing Ltd
http://statistics.data.gov.uk/doc/local-authority/00DA,Leeds City Council as Accountable Body,Social Services Pooled Budgets,Jcs For People With Learning Disabilitie,Third Party Payments,Home Care,568,17-Mar-2011,1103-00426,650.55,R,Arabella Health Staffing Ltd
http://statistics.data.gov.uk/doc/local-authority/00DA,Leeds City Council as Accountable Body,Social Services Pooled Budgets,Jcs For People With Learning Disabilitie,Third Party Payments,Home Care,568,17-Mar-2011,1103-00427,547.12,R,Arabella Health Staffing Ltd
http://statistics.data.gov.uk/doc/local-authority/00DA,Leeds City Council as Accountable Body,Social Services Pooled Budgets,Jcs For People With Learning Disabilitie,Third Party Payments,Home Care,568,21-Mar-2011,1103-00428,897.79,R,Arabella Health Staffing Ltd
http://statistics.data.gov.uk/doc/local-authority/00DA,Leeds City Council as Accountable Body,Social Services Pooled Budgets,Jcs For People With Learning Disabilitie,Third Party Payments,Home Care,568,21-Mar-2011,1103-00429,534.97,R,Arabella Health Staffing Ltd
http://statistics.data.gov.uk/doc/local-authority/00DA,Leeds City Council,City Development,Recreation,Employees,Training Costs,071,22-Mar-2011,1103-00430,1085.10,R,Arch Chemicals Ltd
http://statistics.data.gov.uk/doc/local-authority/00DA,Leeds City Council,Environment & Neighbourhoods,Regeneration,Supplies and Services,Non-Recurring Grants,227,11-Mar-2011,1103-00431,3717.00,R,Archway
http://statistics.data.gov.uk/doc/local-authority/00DA,Leeds City Council,Environment & Neighbourhoods,Regeneration,Supplies and Services,Non-Recurring Grants,227,11-Mar-2011,1103-00432,20687.00,R,Archway
http://statistics.data.gov.uk/doc/local-authority/00DA,Leeds City Council,Environment & Neighbourhoods,Streetscene Environmental Services,Supplies and Services,Clothing & Uniforms,241,01-Mar-2011,1103-00433,860.75,R,Arco Ltd
http://statistics.data.gov.uk/doc/local-authority/00DA,Leeds City Council,City Development,Recreation,Premises,Cleaning Maintenance & Toiletries,127,04-Mar-2011,1103-00434,577.17,R,Arco Ltd
http://statistics.data.gov.uk/doc/local-authority/00DA,Leeds City Council,Environment & Neighbourhoods,Streetscene Environmental Services,Supplies and Services,Clothing & Uniforms,241,10-Mar-2011,1103-00435,800.00,R,Arco Ltd
http://statistics.data.gov.uk/doc/local-authority/00DA,East - North East Homes Leeds,East - North East,Technical Services,Support Services,Health Safety And Welfare,426,11-Mar-2011,1103-00436,503.80,R,Arco Ltd
http://statistics.data.gov.uk/doc/local-authority/00DA,Leeds City Council,Environment & Neighbourhoods,Streetscene Environmental Services,Supplies and Services,Clothing & Uniforms,241,22-Mar-2011,1103-00437,958.99,R,Arco Ltd
http://statistics.data.gov.uk/doc/local-authority/00DA,East - North East Homes Leeds,East - North East,Technical Services,Supplies and Services,Other Materials,205,25-Mar-2011,1103-00438,850.22,R,Arco Ltd
http://statistics.data.gov.uk/doc/local-authority/00DA,East - North East Homes Leeds,East - North East,Technical Services,Support Services,Health Safety And Welfare,426,31-Mar-2011,1103-00439,784.89,R,Arco Ltd
http://statistics.data.gov.uk/doc/local-authority/00DA,Leeds City Council,City Development,Asset Management Services,Premises,First Aid Requisites,128,11-Feb-2011,1103-00440,786.00,R,Arden Winch & Co L
http://statistics.data.gov.uk/doc/local-authority/00DA,Leeds City Council,Environment & Neighbourhoods,Streetscene Environmental Services,Supplies and Services,Clothing & Uniforms,241,01-Mar-2011,1103-00441,3890.02,R,Arden Winch And Company Limited
http://statistics.data.gov.uk/doc/local-authority/00DA,Leeds City Council,Environment & Neighbourhoods,Streetscene Environmental Services,Supplies and Services,Clothing & Uniforms,241,01-Mar-2011,1103-00442,2485.00,R,Arden Winch And Company Limited
http://statistics.data.gov.uk/doc/local-authority/00DA,Leeds City Council,Environment & Neighbourhoods,Streetscene Environmental Services,Supplies and Services,Clothing & Uniforms,241,04-Mar-2011,1103-00443,2536.50,R,Arden Winch And Company Limited
http://statistics.data.gov.uk/doc/local-authority/00DA,Leeds City Council,Environment & Neighbourhoods,Streetscene Environmental Services,Supplies and Services,Clothing & Uniforms,241,04-Mar-2011,1103-00444,1226.50,R,Arden Winch And Company Limited
http://statistics.data.gov.uk/doc/local-authority/00DA,Leeds City Council,Environment & Neighbourhoods,Streetscene Environmental Services,Supplies and Services,Clothing & Uniforms,241,04-Mar-2011,1103-00445,780.00,R,Arden Winch And Company Limited
http://statistics.data.gov.uk/doc/local-authority/00DA,Leeds City Council,Childrens Services,Integrated Youth Support  Service,Supplies and Services,Operational Materials,205,03-Mar-2011,1103-00446,663.02,R,Argos Distributors Ltd
http://statistics.data.gov.uk/doc/local-authority/00DA,Leeds City Council,Childrens Services,Integrated Youth Support  Service,Supplies and Services,Operational Furniture and Equipment,203,09-Mar-2011,1103-00447,1518.68,R,Argos Distributors Ltd
http://statistics.data.gov.uk/doc/local-authority/00DA,Leeds City Council,Childrens Services,Integrated Youth Support  Service,Capital,Furniture And Equipment,5,24-Mar-2011,1103-00448,1735.14,C,Argos Distributors Ltd
http://statistics.data.gov.uk/doc/local-authority/00DA,Leeds City Council,Childrens Services,Integrated Youth Support  Service,Capital,Furniture And Equipment,5,29-Mar-2011,1103-00449,815.75,C,Argos Distributors Ltd
http://statistics.data.gov.uk/doc/local-authority/00DA,Leeds City Council,Childrens Services,Early Years Service,Capital,Furniture And Equipment,5,31-Mar-2011,1103-00450,761.29,C,Argos Distributors Ltd
http://statistics.data.gov.uk/doc/local-authority/00DA,Leeds City Council,Adult Social Care,Services For Older People - 65 And Over,Supplies and Services,Operational Furniture and Equipment,203,21-Jan-2011,1103-00451,621.67,R,Argos Retail Group
http://statistics.data.gov.uk/doc/local-authority/00DA,Leeds City Council,Environment & Neighbourhoods,Health & Environmental Action,Supplies and Services,Other Hired And Contracted Services,265,04-Mar-2011,1103-00452,750.20,R,Ari Environmental Services Ltd
http://statistics.data.gov.uk/doc/local-authority/00DA,Leeds City Council,Environment & Neighbourhoods,Health & Environmental Action,Supplies and Services,Other Hired And Contracted Services,265,04-Mar-2011,1103-00453,594.00,R,Ari Environmental Services Ltd
http://statistics.data.gov.uk/doc/local-authority/00DA,Leeds City Council,Environment & Neighbourhoods,Health & Environmental Action,Supplies and Services,Other Hired And Contracted Services,265,04-Mar-2011,1103-00454,1608.25,R,Ari Environmental Services Ltd
http://statistics.data.gov.uk/doc/local-authority/00DA,Leeds City Council,Environment & Neighbourhoods,Health & Environmental Action,Supplies and Services,Other Hired And Contracted Services,265,28-Mar-2011,1103-00455,612.35,R,Ari Environmental Services Ltd
http://statistics.data.gov.uk/doc/local-authority/00DA,Leeds City Council,Environment & Neighbourhoods,Health & Environmental Action,Supplies and Services,Other Hired And Contracted Services,265,28-Mar-2011,1103-00456,1523.85,R,Ari Environmental Services Ltd
http://statistics.data.gov.uk/doc/local-authority/00DA,Leeds City Council,City Development,Asset Management Services,Supplies and Services,Operational Furniture and Equipment,203,04-Mar-2011,1103-00457,565.00,R,Ark Display Graphics
http://statistics.data.gov.uk/doc/local-authority/00DA,Leeds City Council,City Development,Recreation,Supplies and Services,Resaleable Materials,204,11-Mar-2011,1103-00458,424.32,R,Armadillo Import Ltd
http://statistics.data.gov.uk/doc/local-authority/00DA,Leeds City Council,Central & Corporate Functions,Commercial Services Trading Services,Transport,External Hire -Occasional,304,08-Mar-2011,1103-00459,472.16,R,Arnold Clark Finance Ltd
http://statistics.data.gov.uk/doc/local-authority/00DA,East - North East Homes Leeds,East - North East,Technical Services,Supplies and Services,Other Materials,205,04-Mar-2011,1103-00460,712.48,R,Arnold Laver & Co Ltd
http://statistics.data.gov.uk/doc/local-authority/00DA,Leeds City Council,Central & Corporate Functions,Commercial Services Trading Services,Supplies and Services,Operational Materials,205,09-Mar-2011,1103-00461,662.23,R,Arnold Laver & Co Ltd
http://statistics.data.gov.uk/doc/local-authority/00DA,East - North East Homes Leeds,East - North East,Technical Services,Supplies and Services,Other Materials,205,11-Mar-2011,1103-00462,477.58,R,Arnold Laver & Co Ltd
http://statistics.data.gov.uk/doc/local-authority/00DA,Leeds City Council,City Development,Highways,Supplies and Services,Operational Materials,205,21-Mar-2011,1103-00463,603.65,R,Arnold Laver & Co Ltd
http://statistics.data.gov.uk/doc/local-authority/00DA,East - North East Homes Leeds,East - North East,Technical Services,Supplies and Services,Other Materials,205,25-Mar-2011,1103-00464,794.85,R,Arnold Laver & Co Ltd
http://statistics.data.gov.uk/doc/local-authority/00DA,Leeds City Council,City Development,Highways,Supplies and Services,Operational Furniture and Equipment,203,31-Mar-2011,1103-00465,992.71,R,Arqiva Limited
http://statistics.data.gov.uk/doc/local-authority/00DA,East - North East Homes Leeds,East - North East,Technical Services,Supplies and Services,Other Hired And Contracted Services,265,10-Mar-2011,1103-00466,3300.00,R,Arr Spend Management Solutions
http://statistics.data.gov.uk/doc/local-authority/00DA,East - North East Homes Leeds,East - North East,Technical Services,Supplies and Services,Other Hired And Contracted Services,265,17-Mar-2011,1103-00467,3850.00,R,Arr Spend Management Solutions
http://statistics.data.gov.uk/doc/local-authority/00DA,Leeds City Council,Adult Social Care,Services For Older People - 65 And Over,Third Party Payments,Nursing Home,570,17-Mar-2011,1103-00468,1367.92,R,Arrigadeen Nursing Home
http://statistics.data.gov.uk/doc/local-authority/00DA,Leeds City Council,Childrens Services,Director Of Childrens Services,Supplies and Services,Other Hired And Contracted Services,265,08-Mar-2011,1103-00469,732.43,R,Arrow  Social Care Consultancy Limited
http://statistics.data.gov.uk/doc/local-authority/00DA,Leeds City Council,Adult Social Care,Social Services Support Services,Third Party Payments,Payments To Voluntary Organisations,561,10-Mar-2011,1103-00470,740.07,R,Articulate Advocacy
http://statistics.data.gov.uk/doc/local-authority/00DA,Leeds City Council,Adult Social Care,Social Services Support Services,Third Party Payments,Payments To Voluntary Organisations,561,16-Mar-2011,1103-00471,8503.07,R,Articulate Advocacy
http://statistics.data.gov.uk/doc/local-authority/00DA,Leeds City Council,City Development,Highways,Transport,Fuel (Non LCC Supplies),321,07-Mar-2011,1103-00472,1486.53,R,Arval Phh Business Solutions Ltd
http://statistics.data.gov.uk/doc/local-authority/00DA,Leeds City Council,City Development,Recreation,Transport,Fuel (Non LCC Supplies),321,07-Mar-2011,1103-00473,453.87,R,Arval Phh Business Solutions Ltd
http://statistics.data.gov.uk/doc/local-authority/00DA,Leeds City Council,City Development,Highways,Transport,Fuel (Non LCC Supplies),321,07-Mar-2011,1103-00474,578.55,R,Arval Phh Business Solutions Ltd
http://statistics.data.gov.uk/doc/local-authority/00DA,Leeds City Council,City Development,Recreation,Supplies and Services,Resaleable Materials,204,14-Mar-2011,1103-00475,710.00,R,Asa Awards Scheme
http://statistics.data.gov.uk/doc/local-authority/00DA,Leeds City Council,Environment & Neighbourhoods,West North West,Capital,Construction,3,03-Mar-2011,1103-00476,7200.00,C,Asbestos Consultants
http://statistics.data.gov.uk/doc/local-authority/00DA,Leeds City Council,Environment & Neighbourhoods,West North West,Capital,Construction,3,10-Mar-2011,1103-00477,6480.00,C,Asbestos Consultants
http://statistics.data.gov.uk/doc/local-authority/00DA,Leeds City Council,Environment & Neighbourhoods,West North West,Capital,Construction,3,10-Mar-2011,1103-00478,7200.00,C,Asbestos Consultants
http://statistics.data.gov.uk/doc/local-authority/00DA,Leeds City Council,Central & Corporate Functions,Commercial Services Trading Services,Supplies and Services,Other Hired And Contracted Services,265,02-Mar-2011,1103-00479,477.95,R,Asbestos Equipment & Supplies Ltd
http://statistics.data.gov.uk/doc/local-authority/00DA,Leeds City Council,Central & Corporate Functions,Commercial Services Trading Services,Supplies and Services,Other Hired And Contracted Services,265,01-Mar-2011,1103-00480,637.50,R,Asbestos Sample Analysis Limited
http://statistics.data.gov.uk/doc/local-authority/00DA,Leeds City Council,Central & Corporate Functions,Commercial Services Trading Services,Supplies and Services,Other Hired And Contracted Services,265,01-Mar-2011,1103-00481,832.50,R,Asbestos Sample Analysis Limited
http://statistics.data.gov.uk/doc/local-authority/00DA,Leeds City Council,Central & Corporate Functions,Commercial Services Trading Services,Supplies and Services,Other Hired And Contracted Services,265,02-Mar-2011,1103-00482,457.50,R,Asbestos Sample Analysis Limited
http://statistics.data.gov.uk/doc/local-authority/00DA,Leeds City Council,Central & Corporate Functions,Commercial Services Trading Services,Supplies and Services,Other Hired And Contracted Services,265,02-Mar-2011,1103-00483,540.00,R,Asbestos Sample Analysis Limited
http://statistics.data.gov.uk/doc/local-authority/00DA,Leeds City Council,Central & Corporate Functions,Commercial Services Trading Services,Supplies and Services,Other Hired And Contracted Services,265,09-Mar-2011,1103-00484,577.50,R,Asbestos Sample Analysis Limited
http://statistics.data.gov.uk/doc/local-authority/00DA,Leeds City Council,Central & Corporate Functions,Commercial Services Trading Services,Supplies and Services,Other Hired And Contracted Services,265,09-Mar-2011,1103-00485,615.00,R,Asbestos Sample Analysis Limited
http://statistics.data.gov.uk/doc/local-authority/00DA,Leeds City Council,Central & Corporate Functions,Commercial Services Trading Services,Supplies and Services,Other Hired And Contracted Services,265,21-Mar-2011,1103-00486,472.50,R,Asbestos Sample Analysis Limited
http://statistics.data.gov.uk/doc/local-authority/00DA,Leeds City Council,Central & Corporate Functions,Commercial Services Trading Services,Supplies and Services,Other Hired And Contracted Services,265,24-Mar-2011,1103-00487,682.50,R,Asbestos Sample Analysis Limited
http://statistics.data.gov.uk/doc/local-authority/00DA,Leeds City Council,Childrens Services,Early Years Service,Supplies and Services,Operational Furniture and Equipment,203,25-Mar-2011,1103-00488,825.70,R,Asco Educational Supplies Ltd
http://statistics.data.gov.uk/doc/local-authority/00DA,Leeds City Council,Central & Corporate Functions,Support And Facilities Trading Services,Supplies and Services,Operational Materials,205,18-Mar-2011,1103-00489,2688.00,R,Asd Metal Services
http://statistics.data.gov.uk/doc/local-authority/00DA,Leeds City Council,Central & Corporate Functions,Corporate Property Management,Premises,Rents,141,28-Mar-2011,1103-00490,17017.50,R,Asda Stores Limited
http://statistics.data.gov.uk/doc/local-authority/00DA,Leeds City Council,Adult Social Care,Services For Older People - 65 And Over,Third Party Payments,Residential,580,16-Mar-2011,1103-00491,11557.28,R,Ashcroft House Residential Home
http://statistics.data.gov.uk/doc/local-authority/00DA,Leeds City Council,Adult Social Care,Services For Older People - 65 And Over,Third Party Payments,Nursing Home,570,01-Mar-2011,1103-00492,13962.94,R,Ashcroft Nursing Home
http://statistics.data.gov.uk/doc/local-authority/00DA,Leeds City Council,Adult Social Care,Services For Older People - 65 And Over,Third Party Payments,Nursing Home,570,16-Mar-2011,1103-00493,1228.68,R,Ashcroft Nursing Home
http://statistics.data.gov.uk/doc/local-authority/00DA,Leeds City Council,Adult Social Care,Services For Older People - 65 And Over,Third Party Payments,Nursing Home,570,16-Mar-2011,1103-00494,3809.00,R,Ashcroft Nursing Home
http://statistics.data.gov.uk/doc/local-authority/00DA,Leeds City Council,Adult Social Care,Services For Older People - 65 And Over,Third Party Payments,Residential Care Emi,571,16-Mar-2011,1103-00495,802.80,R,Ashcroft Nursing Home
http://statistics.data.gov.uk/doc/local-authority/00DA,Leeds City Council,Adult Social Care,Services For Older People - 65 And Over,Third Party Payments,Residential Care Emi,571,16-Mar-2011,1103-00496,693.16,R,Ashfield Court
http://statistics.data.gov.uk/doc/local-authority/00DA,Leeds City Council,Adult Social Care,Services For Older People - 65 And Over,Third Party Payments,Residential,580,16-Mar-2011,1103-00497,605.08,R,Ashfield Court
http://statistics.data.gov.uk/doc/local-authority/00DA,Leeds City Council,Adult Social Care,Services For Older People - 65 And Over,Third Party Payments,Nursing Home,570,16-Mar-2011,1103-00498,33871.80,R,Ashfield Nursing Home
http://statistics.data.gov.uk/doc/local-authority/00DA,Leeds City Council,Adult Social Care,Services For Older People - 65 And Over,Third Party Payments,Residential,580,16-Mar-2011,1103-00499,2739.76,R,Ashfield Nursing Home
http://statistics.data.gov.uk/doc/local-authority/00DA,Leeds City Council,Adult Social Care,Services For Adults Under 65 Mental/Dis,Third Party Payments,Residential,580,16-Mar-2011,1103-00500,2318.40,R,Ashfield Nursing Home
http://statistics.data.gov.uk/doc/local-authority/00DA,Leeds City Council,Adult Social Care,Services For Older People - 65 And Over,Third Party Payments,Nursing Home,570,16-Mar-2011,1103-00501,1504.00,R,Ashley Care Ltd
http://statistics.data.gov.uk/doc/local-authority/00DA,Leeds City Council,Central & Corporate Functions,Corporate Governance,Support Services,Mscllaneous - Counsels' Fees,702,02-Mar-2011,1103-00502,2000.00,R,Ashley Underwood
http://statistics.data.gov.uk/doc/local-authority/00DA,Leeds City Council,City Development,Highways,Transport,Plant Hire - By Directorate,305,08-Mar-2011,1103-00503,693.00,R,Ashtead Plant Hire Company Ltd
http://statistics.data.gov.uk/doc/local-authority/00DA,Leeds City Council,City Development,Highways,Transport,Plant Hire - By Directorate,305,08-Mar-2011,1103-00504,693.00,R,Ashtead Plant Hire Company Ltd
http://statistics.data.gov.uk/doc/local-authority/00DA,Leeds City Council,City Development,Highways,Transport,Plant Hire - By Directorate,305,08-Mar-2011,1103-00505,693.00,R,Ashtead Plant Hire Company Ltd
http://statistics.data.gov.uk/doc/local-authority/00DA,Leeds City Council,City Development,Highways,Transport,Plant Hire - By Directorate,305,08-Mar-2011,1103-00506,652.00,R,Ashtead Plant Hire Company Ltd
http://statistics.data.gov.uk/doc/local-authority/00DA,Leeds City Council,City Development,Recreation,Supplies and Services,Operational Materials,205,03-Mar-2011,1103-00507,876.75,R,Ashtrees Ltd
http://statistics.data.gov.uk/doc/local-authority/00DA,Leeds City Council,Adult Social Care,Services For Older People - 65 And Over,Third Party Payments,Residential Care Emi,571,16-Mar-2011,1103-00508,871.28,R,Ashville Care Home
http://statistics.data.gov.uk/doc/local-authority/00DA,Leeds City Council,Adult Social Care,Services For Older People - 65 And Over,Third Party Payments,Residential,580,17-Mar-2011,1103-00509,1923.96,R,Ashworth Grange
http://statistics.data.gov.uk/doc/local-authority/00DA,Education Leeds,Education Leeds,Education Leeds,Premises,Buildings,101,04-Mar-2011,1103-00510,588.19,R,Aspect Building Solutions
http://statistics.data.gov.uk/doc/local-authority/00DA,Education Leeds,Education Leeds,Education Leeds,Premises,Buildings,101,17-Mar-2011,1103-00511,749.66,R,Aspect Building Solutions
http://statistics.data.gov.uk/doc/local-authority/00DA,Education Leeds,Education Leeds,Education Leeds,Premises,Buildings,101,31-Mar-2011,1103-00512,1125.00,R,Aspect Building Solutions
http://statistics.data.gov.uk/doc/local-authority/00DA,Education Leeds,Education Leeds,Education Leeds,Premises,Buildings,101,31-Mar-2011,1103-00513,2346.76,R,Aspect Building Solutions
http://statistics.data.gov.uk/doc/local-authority/00DA,Leeds City Council,City Development,Highways,Transport,Plant Hire - By Directorate,305,07-Mar-2011,1103-00514,1775.00,R,Asphalt Pavers
http://statistics.data.gov.uk/doc/local-authority/00DA,Leeds City Council,City Development,Highways,Transport,Plant Hire - By Directorate,305,07-Mar-2011,1103-00515,3152.00,R,Asphalt Pavers
http://statistics.data.gov.uk/doc/local-authority/00DA,Leeds City Council,City Development,Highways,Transport,Plant Hire - By Directorate,305,07-Mar-2011,1103-00516,1064.00,R,Asphalt Pavers
http://statistics.data.gov.uk/doc/local-authority/00DA,Leeds City Council,City Development,Highways,Transport,Plant Hire - By Directorate,305,23-Mar-2011,1103-00517,1420.00,R,Asphalt Pavers
http://statistics.data.gov.uk/doc/local-authority/00DA,Leeds City Council,City Development,Highways,Transport,Plant Hire - By Directorate,305,23-Mar-2011,1103-00518,1391.00,R,Asphalt Pavers
http://statistics.data.gov.uk/doc/local-authority/00DA,Leeds City Council,City Development,Highways,Transport,Plant Hire - By Directorate,305,23-Mar-2011,1103-00519,1810.00,R,Asphalt Pavers
http://statistics.data.gov.uk/doc/local-authority/00DA,Leeds City Council,City Development,Highways,Transport,Plant Hire - By Directorate,305,23-Mar-2011,1103-00520,790.00,R,Asphalt Pavers
http://statistics.data.gov.uk/doc/local-authority/00DA,Leeds City Council,City Development,Highways,Transport,Plant Hire - By Directorate,305,23-Mar-2011,1103-00521,790.00,R,Asphalt Pavers
http://statistics.data.gov.uk/doc/local-authority/00DA,Leeds City Council,City Development,Highways,Transport,Plant Hire - By Directorate,305,30-Mar-2011,1103-00522,825.00,R,Asphalt Pavers
http://statistics.data.gov.uk/doc/local-authority/00DA,Leeds City Council,Environment & Neighbourhoods,Environmental Health,Capital,Construction,3,07-Mar-2011,1103-00523,8705.00,C,Asprey Bros Ltd
http://statistics.data.gov.uk/doc/local-authority/00DA,Leeds City Council,Environment & Neighbourhoods,Environmental Health,Capital,Construction,3,30-Mar-2011,1103-00524,10950.00,C,Asprey Bros Ltd
http://statistics.data.gov.uk/doc/local-authority/00DA,Leeds City Council,Environment & Neighbourhoods,Environmental Health,Capital,Construction,3,30-Mar-2011,1103-00525,20000.00,C,Asprey Bros Ltd
http://statistics.data.gov.uk/doc/local-authority/00DA,Leeds City Council,Childrens Services,Early Years Service,Third Party Payments,Services Rendered By Other Organisations,511,22-Mar-2011,1103-00526,8108.88,R,Asquith Court Nursery
http://statistics.data.gov.uk/doc/local-authority/00DA,Leeds City Council,Strategic Accounts,Leasing,Leasing,Leasing,050,07-Mar-2011,1103-00527,1515.20,R,Asset Advantage Ltd
http://statistics.data.gov.uk/doc/local-authority/00DA,Leeds City Council,Childrens Services,Integrated Youth Support  Service,Capital,Furniture And Equipment,5,24-Mar-2011,1103-00528,3560.00,C,Assettrac Limited
http://statistics.data.gov.uk/doc/local-authority/00DA,Leeds City Council,City Development,Support Services,Premises,Removal Of Workplace Waste,126,02-Mar-2011,1103-00529,5655.45,R,Associated Waste Management Limited
http://statistics.data.gov.uk/doc/local-authority/00DA,Leeds City Council,City Development,Libraries Arts & Heritage,Premises,Removal Of Workplace Waste,126,03-Mar-2011,1103-00530,1455.00,R,Associated Waste Management Limited
http://statistics.data.gov.uk/doc/local-authority/00DA,Leeds City Council,City Development,Recreation,Premises,Removal Of Workplace Waste,126,03-Mar-2011,1103-00531,904.66,R,Associated Waste Management Limited
http://statistics.data.gov.uk/doc/local-authority/00DA,Leeds City Council,City Development,Recreation,Premises,Removal Of Workplace Waste,126,03-Mar-2011,1103-00532,464.47,R,Associated Waste Management Limited
http://statistics.data.gov.uk/doc/local-authority/00DA,Leeds City Council,City Development,Recreation,Premises,Removal Of Workplace Waste,126,04-Mar-2011,1103-00533,425.00,R,Associated Waste Management Limited
http://statistics.data.gov.uk/doc/local-authority/00DA,Leeds City Council,City Development,Libraries Arts & Heritage,Premises,Removal Of Workplace Waste,126,07-Mar-2011,1103-00534,584.00,R,Associated Waste Management Limited
http://statistics.data.gov.uk/doc/local-authority/00DA,Leeds City Council,City Development,Recreation,Premises,Removal Of Workplace Waste,126,08-Mar-2011,1103-00535,539.00,R,Associated Waste Management Limited
http://statistics.data.gov.uk/doc/local-authority/00DA,Leeds City Council,City Development,Recreation,Premises,Removal Of Workplace Waste,126,08-Mar-2011,1103-00536,617.14,R,Associated Waste Management Limited
http://statistics.data.gov.uk/doc/local-authority/00DA,Leeds City Council,Environment & Neighbourhoods,Streetscene Environmental Services,Supplies and Services,Recycling & Reuse Charges,234,11-Mar-2011,1103-00537,34316.58,R,Associated Waste Management Limited
http://statistics.data.gov.uk/doc/local-authority/00DA,Leeds City Council,Environment & Neighbourhoods,Streetscene Environmental Services,Supplies and Services,Waste Disposal Charges,236,11-Mar-2011,1103-00538,63730.79,R,Associated Waste Management Limited
http://statistics.data.gov.uk/doc/local-authority/00DA,Leeds City Council,Environment & Neighbourhoods,Streetscene Environmental Services,Supplies and Services,Landfill Tax,237,11-Mar-2011,1103-00539,102653.61,R,Associated Waste Management Limited
http://statistics.data.gov.uk/doc/local-authority/00DA,Leeds City Council,City Development,Recreation,Premises,Removal Of Workplace Waste,126,15-Mar-2011,1103-00540,422.00,R,Associated Waste Management Limited
http://statistics.data.gov.uk/doc/local-authority/00DA,Leeds City Council,Central & Corporate Functions,Commercial Services Trading Services,Supplies and Services,Other Hired And Contracted Services,265,15-Mar-2011,1103-00541,488.00,R,Associated Waste Management Limited
http://statistics.data.gov.uk/doc/local-authority/00DA,Leeds City Council,City Development,Support Services,Premises,Removal Of Workplace Waste,126,18-Mar-2011,1103-00542,5694.16,R,Associated Waste Management Limited
http://statistics.data.gov.uk/doc/local-authority/00DA,Leeds City Council,Environment & Neighbourhoods,Streetscene Environmental Services,Supplies and Services,Recycling & Reuse Charges,234,21-Mar-2011,1103-00543,7222.17,R,Associated Waste Management Limited
http://statistics.data.gov.uk/doc/local-authority/00DA,Leeds City Council,Environment & Neighbourhoods,Streetscene Environmental Services,Supplies and Services,Waste Disposal Charges,236,21-Mar-2011,1103-00544,13412.60,R,Associated Waste Management Limited
http://statistics.data.gov.uk/doc/local-authority/00DA,Leeds City Council,Environment & Neighbourhoods,Streetscene Environmental Services,Supplies and Services,Landfill Tax,237,21-Mar-2011,1103-00545,21604.19,R,Associated Waste Management Limited
http://statistics.data.gov.uk/doc/local-authority/00DA,Leeds City Council,City Development,Recreation,Premises,Removal Of Workplace Waste,126,22-Mar-2011,1103-00546,733.75,R,Associated Waste Management Limited
http://statistics.data.gov.uk/doc/local-authority/00DA,Leeds City Council,City Development,Highways,Supplies and Services,Recycling & Reuse Charges,234,23-Mar-2011,1103-00547,795.36,R,Associated Waste Management Limited
http://statistics.data.gov.uk/doc/local-authority/00DA,Leeds City Council,Environment & Neighbourhoods,Streetscene Environmental Services,Supplies and Services,Waste Disposal Charges,236,25-Mar-2011,1103-00548,25689.98,R,Associated Waste Management Limited
http://statistics.data.gov.uk/doc/local-authority/00DA,Leeds City Council,Environment & Neighbourhoods,Streetscene Environmental Services,Supplies and Services,Landfill Tax,237,25-Mar-2011,1103-00549,26896.90,R,Associated Waste Management Limited
http://statistics.data.gov.uk/doc/local-authority/00DA,Leeds City Council,City Development,Recreation,Premises,Removal Of Workplace Waste,126,25-Mar-2011,1103-00550,635.53,R,Associated Waste Management Limited
http://statistics.data.gov.uk/doc/local-authority/00DA,Leeds City Council,Environment & Neighbourhoods,Streetscene Environmental Services,Supplies and Services,Landfill Tax,237,25-Mar-2011,1103-00551,541.63,R,Associated Waste Management Limited
http://statistics.data.gov.uk/doc/local-authority/00DA,East - North East Homes Leeds,East - North East,Corporate Directorate,Employees,General Training,079,04-Mar-2011,1103-00552,695.00,R,Astra  Access Safety Training Ltd
http://statistics.data.gov.uk/doc/local-authority/00DA,East - North East Homes Leeds,East - North East,Technical Services,Employees,General Training,079,09-Mar-2011,1103-00553,695.00,R,Astra  Access Safety Training Ltd
http://statistics.data.gov.uk/doc/local-authority/00DA,East - North East Homes Leeds,East - North East,Technical Services,Employees,General Training,079,18-Mar-2011,1103-00554,695.00,R,Astra  Access Safety Training Ltd
http://statistics.data.gov.uk/doc/local-authority/00DA,East - North East Homes Leeds,East - North East,Technical Services,Employees,General Training,079,30-Mar-2011,1103-00555,695.00,R,Astra  Access Safety Training Ltd
http://statistics.data.gov.uk/doc/local-authority/00DA,Leeds City Council,Central & Corporate Functions,Corporate Property Management,Premises,Rents,141,17-Mar-2011,1103-00556,-23837.72,R,Atc Properties Limited
http://statistics.data.gov.uk/doc/local-authority/00DA,Leeds City Council,Central & Corporate Functions,Corporate Property Management,Premises,Rents,141,17-Mar-2011,1103-00557,32318.87,R,Atc Properties Limited
http://statistics.data.gov.uk/doc/local-authority/00DA,Leeds City Council,Central & Corporate Functions,Corporate Property Management,Premises,Rents,141,17-Mar-2011,1103-00558,16159.43,R,Atc Properties Limited
http://statistics.data.gov.uk/doc/local-authority/00DA,Leeds City Council,Adult Social Care,Services For Older People - 65 And Over,Third Party Payments,Nursing Home,570,16-Mar-2011,1103-00559,19780.85,R,Atkinson Court
http://statistics.data.gov.uk/doc/local-authority/00DA,Leeds City Council,Adult Social Care,Services For Older People - 65 And Over,Third Party Payments,Nursing Care Emi,574,16-Mar-2011,1103-00560,11120.67,R,Atkinson Court
http://statistics.data.gov.uk/doc/local-authority/00DA,Leeds City Council,Central & Corporate Functions,Commercial Services Trading Services,Supplies and Services,Other Hired And Contracted Services,265,03-Mar-2011,1103-00561,1070.20,R,Atkinsons Fencing Limited
http://statistics.data.gov.uk/doc/local-authority/00DA,Leeds City Council,Central & Corporate Functions,Commercial Services Trading Services,Supplies and Services,Other Hired And Contracted Services,265,03-Mar-2011,1103-00562,2843.62,R,Atkinsons Fencing Limited
http://statistics.data.gov.uk/doc/local-authority/00DA,Leeds City Council,City Development,Highways,Supplies and Services,Other Hired And Contracted Services,265,28-Mar-2011,1103-00563,572.18,R,Atkinsons Fencing Limited
http://statistics.data.gov.uk/doc/local-authority/00DA,Leeds City Council,Central & Corporate Functions,Commercial Services Trading Services,Supplies and Services,Other Hired And Contracted Services,265,23-Mar-2011,1103-00564,843.60,R,Atlas Lift Hydraulics
http://statistics.data.gov.uk/doc/local-authority/00DA,Leeds City Council,Adult Social Care,Services For Older People - 65 And Over,Third Party Payments,Nursing Home,570,16-Mar-2011,1103-00565,1142.80,R,Attlee Court
http://statistics.data.gov.uk/doc/local-authority/00DA,Leeds City Council,Adult Social Care,Services For Older People - 65 And Over,Third Party Payments,Nursing Care Emi,574,16-Mar-2011,1103-00566,1161.40,R,Attlee Court
http://statistics.data.gov.uk/doc/local-authority/00DA,Leeds City Council,City Development,Libraries Arts & Heritage,Supplies and Services,Books & Audio-Visual Materials,206,10-Mar-2011,1103-00567,2188.98,R,Audiogo Ltd
http://statistics.data.gov.uk/doc/local-authority/00DA,Leeds City Council,City Development,Libraries Arts & Heritage,Supplies and Services,Books & Audio-Visual Materials,206,10-Mar-2011,1103-00568,1589.88,R,Audiogo Ltd
http://statistics.data.gov.uk/doc/local-authority/00DA,Leeds City Council,City Development,Libraries Arts & Heritage,Supplies and Services,Books & Audio-Visual Materials,206,18-Mar-2011,1103-00569,423.20,R,Audiogo Ltd
http://statistics.data.gov.uk/doc/local-authority/00DA,Leeds City Council as Accountable Body,Social Services Pooled Budgets,Jcs For People With Learning Disabilitie,Third Party Payments,Residential,580,16-Mar-2011,1103-00570,8337.00,R,Autism Care (Uk) Ltd
http://statistics.data.gov.uk/doc/local-authority/00DA,Education Leeds,Education Leeds,Education Leeds,Transfer Payments,Outside Placement - Fees,606,07-Mar-2011,1103-00571,614.69,R,Autism Partnership Uk Ltd
http://statistics.data.gov.uk/doc/local-authority/00DA,Education Leeds,Education Leeds,Education Leeds,Transfer Payments,Outside Placement - Fees,606,07-Mar-2011,1103-00572,3150.75,R,Autism Partnership Uk Ltd
http://statistics.data.gov.uk/doc/local-authority/00DA,Education Leeds,Education Leeds,Education Leeds,Transfer Payments,Outside Placement - Fees,606,07-Mar-2011,1103-00573,2558.06,R,Autism Partnership Uk Ltd
http://statistics.data.gov.uk/doc/local-authority/00DA,Education Leeds,Education Leeds,Education Leeds,Transfer Payments,Outside Placement - Fees,606,07-Mar-2011,1103-00574,724.13,R,Autism Partnership Uk Ltd
http://statistics.data.gov.uk/doc/local-authority/00DA,Education Leeds,Education Leeds,Education Leeds,Transfer Payments,Outside Placement - Fees,606,07-Mar-2011,1103-00575,-558.26,R,Autism Partnership Uk Ltd
http://statistics.data.gov.uk/doc/local-authority/00DA,Education Leeds,Education Leeds,Education Leeds,Transfer Payments,Outside Placement - Fees,606,23-Mar-2011,1103-00576,2579.69,R,Autism Partnership Uk Ltd
http://statistics.data.gov.uk/doc/local-authority/00DA,Education Leeds,Education Leeds,Education Leeds,Transfer Payments,Outside Placement - Fees,606,23-Mar-2011,1103-00577,991.00,R,Autism Partnership Uk Ltd
http://statistics.data.gov.uk/doc/local-authority/00DA,Education Leeds,Education Leeds,Education Leeds,Transfer Payments,Outside Placement - Fees,606,23-Mar-2011,1103-00578,-1175.76,R,Autism Partnership Uk Ltd
http://statistics.data.gov.uk/doc/local-authority/00DA,Education Leeds,Education Leeds,Education Leeds,Transfer Payments,Outside Placement - Fees,606,25-Mar-2011,1103-00579,3150.75,R,Autism Partnership Uk Ltd
http://statistics.data.gov.uk/doc/local-authority/00DA,Education Leeds,Education Leeds,Education Leeds,Transfer Payments,Outside Placement - Fees,606,25-Mar-2011,1103-00580,646.88,R,Autism Partnership Uk Ltd
http://statistics.data.gov.uk/doc/local-authority/00DA,Leeds City Council,City Development,Libraries Arts & Heritage,Supplies and Services,Computer Software & Equipment,214,16-Mar-2011,1103-00581,602.70,R,Av3 Plugins Limited
http://statistics.data.gov.uk/doc/local-authority/00DA,East - North East Homes Leeds,East - North East,Housing Services,Supplies and Services,Other Hired And Contracted Services,009,04-Mar-2011,1103-00582,6133.33,R,Avalon
http://statistics.data.gov.uk/doc/local-authority/00DA,East - North East Homes Leeds,East - North East,Technical Services,Supplies and Services,Other Hired And Contracted Services,265,09-Mar-2011,1103-00583,761.43,R,Avalon
http://statistics.data.gov.uk/doc/local-authority/00DA,East - North East Homes Leeds,East - North East,Technical Services,Supplies and Services,Other Hired And Contracted Services,265,09-Mar-2011,1103-00584,495.19,R,Avalon
http://statistics.data.gov.uk/doc/local-authority/00DA,Leeds City Council as Accountable Body,Social Services Pooled Budgets,Jcs For People With Learning Disabilitie,Third Party Payments,Home Care,568,18-Mar-2011,1103-00585,1332.20,R,Avalon
http://statistics.data.gov.uk/doc/local-authority/00DA,Leeds City Council,City Development,Libraries Arts & Heritage,Income,Admissions Booking Fees & Ticket Sales,933,10-Mar-2011,1103-00586,4528.00,R,Avalon Promotions Limited
http://statistics.data.gov.uk/doc/local-authority/00DA,Leeds City Council,City Development,Libraries Arts & Heritage,Income,Income from Hire Of Rooms & Equipment,956,10-Mar-2011,1103-00587,-754.67,R,Avalon Promotions Limited
http://statistics.data.gov.uk/doc/local-authority/00DA,Leeds City Council,City Development,Libraries Arts & Heritage,Income,Admissions Booking Fees & Ticket Sales,933,31-Mar-2011,1103-00588,4512.75,R,Avalon Promotions Limited
http://statistics.data.gov.uk/doc/local-authority/00DA,Leeds City Council,City Development,Libraries Arts & Heritage,Income,Income from Hire Of Rooms & Equipment,956,31-Mar-2011,1103-00589,-752.13,R,Avalon Promotions Limited
http://statistics.data.gov.uk/doc/local-authority/00DA,Leeds City Council,Environment & Neighbourhoods,East North East,Capital,Construction,3,04-Mar-2011,1103-00590,-1080.00,C,Avanta U.K Ltd
http://statistics.data.gov.uk/doc/local-authority/00DA,Leeds City Council,Environment & Neighbourhoods,East North East,Capital,Construction,3,04-Mar-2011,1103-00591,-47538.79,C,Avanta U.K Ltd
http://statistics.data.gov.uk/doc/local-authority/00DA,Leeds City Council,Environment & Neighbourhoods,East North East,Capital,Construction,3,04-Mar-2011,1103-00592,1080.00,C,Avanta U.K Ltd
http://statistics.data.gov.uk/doc/local-authority/00DA,Leeds City Council,Environment & Neighbourhoods,East North East,Capital,Construction,3,04-Mar-2011,1103-00593,47538.79,C,Avanta U.K Ltd
http://statistics.data.gov.uk/doc/local-authority/00DA,Leeds City Council,Environment & Neighbourhoods,East North East,Capital,Construction,3,04-Mar-2011,1103-00594,1080.00,C,Avanta U.K Ltd
http://statistics.data.gov.uk/doc/local-authority/00DA,Leeds City Council,Environment & Neighbourhoods,East North East,Capital,Construction,3,04-Mar-2011,1103-00595,47538.79,C,Avanta U.K Ltd
http://statistics.data.gov.uk/doc/local-authority/00DA,Leeds City Council as Accountable Body,Social Services Pooled Budgets,Jcs For People With Learning Disabilitie,Third Party Payments,Residential,580,03-Mar-2011,1103-00596,4642.20,R,Avens Ltd
http://statistics.data.gov.uk/doc/local-authority/00DA,Leeds City Council as Accountable Body,Social Services Pooled Budgets,Jcs For People With Learning Disabilitie,Third Party Payments,Residential,580,31-Mar-2011,1103-00597,4642.20,R,Avens Ltd
http://statistics.data.gov.uk/doc/local-authority/00DA,Leeds City Council as Accountable Body,Social Services Pooled Budgets,Jcs For People With Learning Disabilitie,Third Party Payments,Residential,580,16-Mar-2011,1103-00598,4153.72,R,Avon Lodge
http://statistics.data.gov.uk/doc/local-authority/00DA,Leeds City Council,Childrens Services,Integrated Youth Support  Service,Supplies and Services,Books & Audio-Visual Materials,206,02-Mar-2011,1103-00599,4585.00,R,Award Scheme Ltd
http://statistics.data.gov.uk/doc/local-authority/00DA,Leeds City Council,City Development,Recreation,Supplies and Services,Resaleable Materials,204,21-Dec-2010,1103-00600,1321.92,R,Awards Centre V/T
http://statistics.data.gov.uk/doc/local-authority/00DA,Leeds City Council,Central & Corporate Functions,Corporate Property Management,Premises,Rents,141,28-Mar-2011,1103-00601,10187.00,R,Aws Ltd
http://statistics.data.gov.uk/doc/local-authority/00DA,Leeds City Council,Adult Social Care,Services For Older People - 65 And Over,Third Party Payments,Nursing Home,570,16-Mar-2011,1103-00602,1238.80,R,Ayresome Court Nursing Home
http://statistics.data.gov.uk/doc/local-authority/00DA,Leeds City Council,Environment & Neighbourhoods,Environmental Health,Capital,Construction,3,03-Mar-2011,1103-00603,4400.00,C,B & K Passmore
http://statistics.data.gov.uk/doc/local-authority/00DA,Leeds City Council,Environment & Neighbourhoods,Environmental Health,Capital,Construction,3,07-Mar-2011,1103-00604,4400.00,C,B & K Passmore
http://statistics.data.gov.uk/doc/local-authority/00DA,Leeds City Council,Environment & Neighbourhoods,Environmental Health,Capital,Construction,3,07-Mar-2011,1103-00605,4400.00,C,B & K Passmore
http://statistics.data.gov.uk/doc/local-authority/00DA,Leeds City Council,Environment & Neighbourhoods,Environmental Health,Capital,Construction,3,07-Mar-2011,1103-00606,4400.00,C,B & K Passmore
http://statistics.data.gov.uk/doc/local-authority/00DA,Leeds City Council,Environment & Neighbourhoods,Environmental Health,Capital,Construction,3,07-Mar-2011,1103-00607,4400.00,C,B & K Passmore
http://statistics.data.gov.uk/doc/local-authority/00DA,Leeds City Council,Environment & Neighbourhoods,Environmental Health,Capital,Construction,3,07-Mar-2011,1103-00608,1500.00,C,B & K Passmore
http://statistics.data.gov.uk/doc/local-authority/00DA,Leeds City Council,Environment & Neighbourhoods,Environmental Health,Capital,Construction,3,07-Mar-2011,1103-00609,4400.00,C,B & K Passmore
http://statistics.data.gov.uk/doc/local-authority/00DA,Leeds City Council,Environment & Neighbourhoods,Environmental Health,Capital,Construction,3,14-Mar-2011,1103-00610,3400.00,C,B & K Passmore
http://statistics.data.gov.uk/doc/local-authority/00DA,Leeds City Council,Environment & Neighbourhoods,Environmental Health,Capital,Construction,3,14-Mar-2011,1103-00611,4400.00,C,B & K Passmore
http://statistics.data.gov.uk/doc/local-authority/00DA,Leeds City Council,Environment & Neighbourhoods,Environmental Health,Capital,Construction,3,14-Mar-2011,1103-00612,4400.00,C,B & K Passmore
http://statistics.data.gov.uk/doc/local-authority/00DA,Leeds City Council,Environment & Neighbourhoods,Environmental Health,Capital,Construction,3,14-Mar-2011,1103-00613,4400.00,C,B & K Passmore
http://statistics.data.gov.uk/doc/local-authority/00DA,Leeds City Council,Environment & Neighbourhoods,Environmental Health,Capital,Construction,3,30-Mar-2011,1103-00614,1500.00,C,B & K Passmore
http://statistics.data.gov.uk/doc/local-authority/00DA,Leeds City Council,Environment & Neighbourhoods,Environmental Health,Capital,Construction,3,30-Mar-2011,1103-00615,4400.00,C,B & K Passmore
http://statistics.data.gov.uk/doc/local-authority/00DA,Leeds City Council,Environment & Neighbourhoods,Environmental Health,Capital,Construction,3,30-Mar-2011,1103-00616,1500.00,C,B & K Passmore
http://statistics.data.gov.uk/doc/local-authority/00DA,Leeds City Council,Central & Corporate Functions,Civic And Community Buildings,Capital,Construction,3,17-Mar-2011,1103-00617,1000.00,C,B E Brooks Ecological
http://statistics.data.gov.uk/doc/local-authority/00DA,West - North West Homes Leeds,West - North West,Customer And Tenancy,Employees,Temporary Staff-Basic,009,04-Mar-2011,1103-00618,542.50,R,Badenoch & Clark Ltd
http://statistics.data.gov.uk/doc/local-authority/00DA,West - North West Homes Leeds,West - North West,Customer And Tenancy,Employees,Temporary Staff-Basic,009,04-Mar-2011,1103-00619,562.50,R,Badenoch & Clark Ltd
http://statistics.data.gov.uk/doc/local-authority/00DA,West - North West Homes Leeds,West - North West,Customer And Tenancy,Employees,Temporary Staff-Basic,009,04-Mar-2011,1103-00620,552.00,R,Badenoch & Clark Ltd
http://statistics.data.gov.uk/doc/local-authority/00DA,West - North West Homes Leeds,West - North West,Customer And Tenancy,Employees,Temporary Staff-Basic,009,04-Mar-2011,1103-00621,485.07,R,Badenoch & Clark Ltd
http://statistics.data.gov.uk/doc/local-authority/00DA,West - North West Homes Leeds,West - North West,Customer And Tenancy,Employees,Temporary Staff-Basic,009,04-Mar-2011,1103-00622,478.52,R,Badenoch & Clark Ltd
http://statistics.data.gov.uk/doc/local-authority/00DA,West - North West Homes Leeds,West - North West,Customer And Tenancy,Employees,Temporary Staff-Basic,009,04-Mar-2011,1103-00623,485.07,R,Badenoch & Clark Ltd
http://statistics.data.gov.uk/doc/local-authority/00DA,West - North West Homes Leeds,West - North West,Customer And Tenancy,Employees,Temporary Staff-Basic,009,04-Mar-2011,1103-00624,536.18,R,Badenoch & Clark Ltd
http://statistics.data.gov.uk/doc/local-authority/00DA,West - North West Homes Leeds,West - North West,Customer And Tenancy,Employees,Temporary Staff-Basic,009,04-Mar-2011,1103-00625,434.00,R,Badenoch & Clark Ltd
http://statistics.data.gov.uk/doc/local-authority/00DA,West - North West Homes Leeds,West - North West,Customer And Tenancy,Employees,Temporary Staff-Basic,009,04-Mar-2011,1103-00626,884.00,R,Badenoch & Clark Ltd
http://statistics.data.gov.uk/doc/local-authority/00DA,West - North West Homes Leeds,West - North West,Customer And Tenancy,Employees,Temporary Staff-Basic,009,04-Mar-2011,1103-00627,496.00,R,Badenoch & Clark Ltd
http://statistics.data.gov.uk/doc/local-authority/00DA,West - North West Homes Leeds,West - North West,Customer And Tenancy,Employees,Temporary Staff-Basic,009,04-Mar-2011,1103-00628,897.00,R,Badenoch & Clark Ltd
http://statistics.data.gov.uk/doc/local-authority/00DA,West - North West Homes Leeds,West - North West,Customer And Tenancy,Employees,Temporary Staff-Basic,009,04-Mar-2011,1103-00629,1700.00,R,Badenoch & Clark Ltd
http://statistics.data.gov.uk/doc/local-authority/00DA,West - North West Homes Leeds,West - North West,Customer And Tenancy,Supplies and Services,Project Management Group,260,04-Mar-2011,1103-00630,832.39,R,Badenoch & Clark Ltd
http://statistics.data.gov.uk/doc/local-authority/00DA,West - North West Homes Leeds,West - North West,Customer And Tenancy,Employees,Temporary Staff-Basic,009,04-Mar-2011,1103-00631,562.50,R,Badenoch & Clark Ltd
http://statistics.data.gov.uk/doc/local-authority/00DA,West - North West Homes Leeds,West - North West,Customer And Tenancy,Employees,Temporary Staff-Basic,009,04-Mar-2011,1103-00632,703.00,R,Badenoch & Clark Ltd
http://statistics.data.gov.uk/doc/local-authority/00DA,West - North West Homes Leeds,West - North West,Customer And Tenancy,Employees,Temporary Staff-Basic,009,04-Mar-2011,1103-00633,569.25,R,Badenoch & Clark Ltd
http://statistics.data.gov.uk/doc/local-authority/00DA,West - North West Homes Leeds,West - North West,Customer And Tenancy,Employees,Temporary Staff-Basic,009,04-Mar-2011,1103-00634,703.00,R,Badenoch & Clark Ltd
http://statistics.data.gov.uk/doc/local-authority/00DA,West - North West Homes Leeds,West - North West,Customer And Tenancy,Employees,Temporary Staff-Basic,009,04-Mar-2011,1103-00635,491.63,R,Badenoch & Clark Ltd
http://statistics.data.gov.uk/doc/local-authority/00DA,West - North West Homes Leeds,West - North West,Customer And Tenancy,Employees,Temporary Staff-Basic,009,04-Mar-2011,1103-00636,485.07,R,Badenoch & Clark Ltd
http://statistics.data.gov.uk/doc/local-authority/00DA,West - North West Homes Leeds,West - North West,Customer And Tenancy,Employees,Temporary Staff-Basic,009,04-Mar-2011,1103-00637,485.07,R,Badenoch & Clark Ltd
http://statistics.data.gov.uk/doc/local-authority/00DA,West - North West Homes Leeds,West - North West,Customer And Tenancy,Employees,Temporary Staff-Basic,009,04-Mar-2011,1103-00638,423.30,R,Badenoch & Clark Ltd
http://statistics.data.gov.uk/doc/local-authority/00DA,West - North West Homes Leeds,West - North West,Customer And Tenancy,Employees,Temporary Staff-Basic,009,04-Mar-2011,1103-00639,458.85,R,Badenoch & Clark Ltd
http://statistics.data.gov.uk/doc/local-authority/00DA,West - North West Homes Leeds,West - North West,Customer And Tenancy,Employees,Temporary Staff-Basic,009,04-Mar-2011,1103-00640,437.41,R,Badenoch & Clark Ltd
http://statistics.data.gov.uk/doc/local-authority/00DA,West - North West Homes Leeds,West - North West,Customer And Tenancy,Supplies and Services,Project Management Group,260,04-Mar-2011,1103-00641,620.86,R,Badenoch & Clark Ltd
http://statistics.data.gov.uk/doc/local-authority/00DA,West - North West Homes Leeds,West - North West,Customer And Tenancy,Supplies and Services,Project Management Group,260,04-Mar-2011,1103-00642,461.76,R,Badenoch & Clark Ltd
http://statistics.data.gov.uk/doc/local-authority/00DA,West - North West Homes Leeds,West - North West,Customer And Tenancy,Employees,Temporary Staff-Basic,009,07-Mar-2011,1103-00643,485.07,R,Badenoch & Clark Ltd
http://statistics.data.gov.uk/doc/local-authority/00DA,Aire Valley Homes Leeds,Aire Valley Homes Leeds,Housing,Employees,Temporary Staff-Basic,009,07-Mar-2011,1103-00644,431.64,R,Badenoch & Clark Ltd
http://statistics.data.gov.uk/doc/local-authority/00DA,West - North West Homes Leeds,West - North West,Customer And Tenancy,Employees,Temporary Staff-Basic,009,07-Mar-2011,1103-00645,485.07,R,Badenoch & Clark Ltd
http://statistics.data.gov.uk/doc/local-authority/00DA,West - North West Homes Leeds,West - North West,Customer And Tenancy,Supplies and Services,Project Management Group,260,09-Mar-2011,1103-00646,656.93,R,Badenoch & Clark Ltd
http://statistics.data.gov.uk/doc/local-authority/00DA,West - North West Homes Leeds,West - North West,Customer And Tenancy,Supplies and Services,Project Management Group,260,09-Mar-2011,1103-00647,832.39,R,Badenoch & Clark Ltd
http://statistics.data.gov.uk/doc/local-authority/00DA,West - North West Homes Leeds,West - North West,Customer And Tenancy,Employees,Temporary Staff-Basic,009,09-Mar-2011,1103-00648,620.86,R,Badenoch & Clark Ltd
http://statistics.data.gov.uk/doc/local-authority/00DA,West - North West Homes Leeds,West - North West,Customer And Tenancy,Employees,Temporary Staff-Basic,009,11-Mar-2011,1103-00649,491.63,R,Badenoch & Clark Ltd
http://statistics.data.gov.uk/doc/local-authority/00DA,West - North West Homes Leeds,West - North West,Customer And Tenancy,Employees,Temporary Staff-Basic,009,11-Mar-2011,1103-00650,522.07,R,Badenoch & Clark Ltd
http://statistics.data.gov.uk/doc/local-authority/00DA,Aire Valley Homes Leeds,Aire Valley Homes Leeds,Housing,Employees,Temporary Staff-Basic,009,11-Mar-2011,1103-00651,598.41,R,Badenoch & Clark Ltd
http://statistics.data.gov.uk/doc/local-authority/00DA,West - North West Homes Leeds,West - North West,Customer And Tenancy,Supplies and Services,Project Management Group,260,11-Mar-2011,1103-00652,610.83,R,Badenoch & Clark Ltd
http://statistics.data.gov.uk/doc/local-authority/00DA,West - North West Homes Leeds,West - North West,Customer And Tenancy,Supplies and Services,Project Management Group,260,11-Mar-2011,1103-00653,772.18,R,Badenoch & Clark Ltd
http://statistics.data.gov.uk/doc/local-authority/00DA,West - North West Homes Leeds,West - North West,Customer And Tenancy,Employees,Temporary Staff-Basic,009,11-Mar-2011,1103-00654,562.50,R,Badenoch & Clark Ltd
http://statistics.data.gov.uk/doc/local-authority/00DA,West - North West Homes Leeds,West - North West,Customer And Tenancy,Employees,Temporary Staff-Basic,009,11-Mar-2011,1103-00655,485.07,R,Badenoch & Clark Ltd
http://statistics.data.gov.uk/doc/local-authority/00DA,West - North West Homes Leeds,West - North West,Customer And Tenancy,Employees,Temporary Staff-Basic,009,11-Mar-2011,1103-00656,465.75,R,Badenoch & Clark Ltd
http://statistics.data.gov.uk/doc/local-authority/00DA,West - North West Homes Leeds,West - North West,Customer And Tenancy,Employees,Temporary Staff-Basic,009,11-Mar-2011,1103-00657,608.00,R,Badenoch & Clark Ltd
http://statistics.data.gov.uk/doc/local-authority/00DA,West - North West Homes Leeds,West - North West,Customer And Tenancy,Employees,Temporary Staff-Basic,009,11-Mar-2011,1103-00658,485.07,R,Badenoch & Clark Ltd
http://statistics.data.gov.uk/doc/local-authority/00DA,West - North West Homes Leeds,West - North West,Customer And Tenancy,Employees,Temporary Staff-Basic,009,11-Mar-2011,1103-00659,485.07,R,Badenoch & Clark Ltd
http://statistics.data.gov.uk/doc/local-authority/00DA,West - North West Homes Leeds,West - North West,Customer And Tenancy,Employees,Temporary Staff-Basic,009,11-Mar-2011,1103-00660,455.57,R,Badenoch & Clark Ltd
http://statistics.data.gov.uk/doc/local-authority/00DA,West - North West Homes Leeds,West - North West,Customer And Tenancy,Employees,Temporary Staff-Basic,009,11-Mar-2011,1103-00661,620.86,R,Badenoch & Clark Ltd
http://statistics.data.gov.uk/doc/local-authority/00DA,Aire Valley Homes Leeds,Aire Valley Homes Leeds,Housing,Employees,Temporary Staff-Basic,009,16-Mar-2011,1103-00662,510.12,R,Badenoch & Clark Ltd
http://statistics.data.gov.uk/doc/local-authority/00DA,West - North West Homes Leeds,West - North West,Customer And Tenancy,Employees,Temporary Staff-Basic,009,17-Mar-2011,1103-00663,542.50,R,Badenoch & Clark Ltd
http://statistics.data.gov.uk/doc/local-authority/00DA,West - North West Homes Leeds,West - North West,Customer And Tenancy,Employees,Temporary Staff-Basic,009,17-Mar-2011,1103-00664,942.50,R,Badenoch & Clark Ltd
http://statistics.data.gov.uk/doc/local-authority/00DA,West - North West Homes Leeds,West - North West,Customer And Tenancy,Employees,Temporary Staff-Basic,009,18-Mar-2011,1103-00665,620.86,R,Badenoch & Clark Ltd
http://statistics.data.gov.uk/doc/local-authority/00DA,Aire Valley Homes Leeds,Aire Valley Homes Leeds,Housing,Employees,Temporary Staff-Basic,009,21-Mar-2011,1103-00666,431.64,R,Badenoch & Clark Ltd
http://statistics.data.gov.uk/doc/local-authority/00DA,West - North West Homes Leeds,West - North West,Customer And Tenancy,Employees,Temporary Staff-Basic,009,21-Mar-2011,1103-00667,542.50,R,Badenoch & Clark Ltd
http://statistics.data.gov.uk/doc/local-authority/00DA,West - North West Homes Leeds,West - North West,Customer And Tenancy,Employees,Temporary Staff-Basic,009,21-Mar-2011,1103-00668,968.50,R,Badenoch & Clark Ltd
http://statistics.data.gov.uk/doc/local-authority/00DA,West - North West Homes Leeds,West - North West,Customer And Tenancy,Supplies and Services,Project Management Group,260,21-Mar-2011,1103-00669,749.13,R,Badenoch & Clark Ltd
http://statistics.data.gov.uk/doc/local-authority/00DA,West - North West Homes Leeds,West - North West,Customer And Tenancy,Employees,Temporary Staff-Basic,009,21-Mar-2011,1103-00670,485.07,R,Badenoch & Clark Ltd
http://statistics.data.gov.uk/doc/local-authority/00DA,West - North West Homes Leeds,West - North West,Customer And Tenancy,Employees,Temporary Staff-Basic,009,21-Mar-2011,1103-00671,465.41,R,Badenoch & Clark Ltd
http://statistics.data.gov.uk/doc/local-authority/00DA,West - North West Homes Leeds,West - North West,Customer And Tenancy,Employees,Temporary Staff-Basic,009,21-Mar-2011,1103-00672,603.75,R,Badenoch & Clark Ltd
http://statistics.data.gov.uk/doc/local-authority/00DA,West - North West Homes Leeds,West - North West,Customer And Tenancy,Employees,Temporary Staff-Basic,009,21-Mar-2011,1103-00673,491.63,R,Badenoch & Clark Ltd
http://statistics.data.gov.uk/doc/local-authority/00DA,West - North West Homes Leeds,West - North West,Customer And Tenancy,Employees,Temporary Staff-Basic,009,21-Mar-2011,1103-00674,485.07,R,Badenoch & Clark Ltd
http://statistics.data.gov.uk/doc/local-authority/00DA,West - North West Homes Leeds,West - North West,Customer And Tenancy,Employees,Temporary Staff-Basic,009,21-Mar-2011,1103-00675,491.63,R,Badenoch & Clark Ltd
http://statistics.data.gov.uk/doc/local-authority/00DA,West - North West Homes Leeds,West - North West,Customer And Tenancy,Employees,Temporary Staff-Basic,009,21-Mar-2011,1103-00676,485.07,R,Badenoch & Clark Ltd
http://statistics.data.gov.uk/doc/local-authority/00DA,West - North West Homes Leeds,West - North West,Customer And Tenancy,Employees,Temporary Staff-Basic,009,21-Mar-2011,1103-00677,529.13,R,Badenoch & Clark Ltd
http://statistics.data.gov.uk/doc/local-authority/00DA,West - North West Homes Leeds,West - North West,Customer And Tenancy,Employees,Temporary Staff-Basic,009,21-Mar-2011,1103-00678,485.07,R,Badenoch & Clark Ltd
http://statistics.data.gov.uk/doc/local-authority/00DA,West - North West Homes Leeds,West - North West,Customer And Tenancy,Employees,Temporary Staff-Basic,009,21-Mar-2011,1103-00679,485.07,R,Badenoch & Clark Ltd
http://statistics.data.gov.uk/doc/local-authority/00DA,West - North West Homes Leeds,West - North West,Customer And Tenancy,Employees,Temporary Staff-Basic,009,21-Mar-2011,1103-00680,962.00,R,Badenoch & Clark Ltd
http://statistics.data.gov.uk/doc/local-authority/00DA,West - North West Homes Leeds,West - North West,Customer And Tenancy,Employees,Temporary Staff-Basic,009,21-Mar-2011,1103-00681,496.00,R,Badenoch & Clark Ltd
http://statistics.data.gov.uk/doc/local-authority/00DA,West - North West Homes Leeds,West - North West,Customer And Tenancy,Employees,Temporary Staff-Basic,009,22-Mar-2011,1103-00682,2400.00,R,Badenoch & Clark Ltd
http://statistics.data.gov.uk/doc/local-authority/00DA,Aire Valley Homes Leeds,Aire Valley Homes Leeds,Housing,Employees,Temporary Staff-Basic,009,24-Mar-2011,1103-00683,735.75,R,Badenoch & Clark Ltd
http://statistics.data.gov.uk/doc/local-authority/00DA,West - North West Homes Leeds,West - North West,Customer And Tenancy,Employees,Temporary Staff-Basic,009,25-Mar-2011,1103-00684,703.00,R,Badenoch & Clark Ltd
http://statistics.data.gov.uk/doc/local-authority/00DA,West - North West Homes Leeds,West - North West,Customer And Tenancy,Employees,Temporary Staff-Basic,009,25-Mar-2011,1103-00685,485.07,R,Badenoch & Clark Ltd
http://statistics.data.gov.uk/doc/local-authority/00DA,West - North West Homes Leeds,West - North West,Customer And Tenancy,Supplies and Services,Project Management Group,260,25-Mar-2011,1103-00686,829.80,R,Badenoch & Clark Ltd
http://statistics.data.gov.uk/doc/local-authority/00DA,West - North West Homes Leeds,West - North West,Customer And Tenancy,Supplies and Services,Project Management Group,260,25-Mar-2011,1103-00687,744.19,R,Badenoch & Clark Ltd
http://statistics.data.gov.uk/doc/local-authority/00DA,West - North West Homes Leeds,West - North West,Customer And Tenancy,Employees,Temporary Staff-Basic,009,25-Mar-2011,1103-00688,604.08,R,Badenoch & Clark Ltd
http://statistics.data.gov.uk/doc/local-authority/00DA,West - North West Homes Leeds,West - North West,Customer And Tenancy,Employees,Temporary Staff-Basic,009,30-Mar-2011,1103-00689,672.75,R,Badenoch & Clark Ltd
http://statistics.data.gov.uk/doc/local-authority/00DA,West - North West Homes Leeds,West - North West,Customer And Tenancy,Employees,Temporary Staff-Basic,009,30-Mar-2011,1103-00690,491.63,R,Badenoch & Clark Ltd
http://statistics.data.gov.uk/doc/local-authority/00DA,West - North West Homes Leeds,West - North West,Customer And Tenancy,Employees,Temporary Staff-Basic,009,30-Mar-2011,1103-00691,485.07,R,Badenoch & Clark Ltd
http://statistics.data.gov.uk/doc/local-authority/00DA,West - North West Homes Leeds,West - North West,Customer And Tenancy,Employees,Temporary Staff-Basic,009,30-Mar-2011,1103-00692,419.52,R,Badenoch & Clark Ltd
http://statistics.data.gov.uk/doc/local-authority/00DA,West - North West Homes Leeds,West - North West,Customer And Tenancy,Employees,Temporary Staff-Basic,009,30-Mar-2011,1103-00693,445.74,R,Badenoch & Clark Ltd
http://statistics.data.gov.uk/doc/local-authority/00DA,West - North West Homes Leeds,West - North West,Customer And Tenancy,Employees,Temporary Staff-Basic,009,30-Mar-2011,1103-00694,485.07,R,Badenoch & Clark Ltd
http://statistics.data.gov.uk/doc/local-authority/00DA,West - North West Homes Leeds,West - North West,Customer And Tenancy,Employees,Temporary Staff-Basic,009,30-Mar-2011,1103-00695,485.07,R,Badenoch & Clark Ltd
http://statistics.data.gov.uk/doc/local-authority/00DA,Aire Valley Homes Leeds,Aire Valley Homes Leeds,Housing,Employees,Temporary Staff-Basic,009,30-Mar-2011,1103-00696,657.27,R,Badenoch & Clark Ltd
http://statistics.data.gov.uk/doc/local-authority/00DA,West - North West Homes Leeds,West - North West,Customer And Tenancy,Employees,Temporary Staff-Basic,009,30-Mar-2011,1103-00697,485.07,R,Badenoch & Clark Ltd
http://statistics.data.gov.uk/doc/local-authority/00DA,West - North West Homes Leeds,West - North West,Customer And Tenancy,Employees,Temporary Staff-Basic,009,31-Mar-2011,1103-00698,488.25,R,Badenoch & Clark Ltd
http://statistics.data.gov.uk/doc/local-authority/00DA,Leeds City Council,City Development,Recreation,Supplies and Services,Operational Materials,205,24-Mar-2011,1103-00699,818.03,R,Ball Colegrave Ltd
http://statistics.data.gov.uk/doc/local-authority/00DA,Leeds City Council,City Development,Recreation,Transport,Plant Spares,346,11-Mar-2011,1103-00700,787.99,R,Balmers Garden Machinery
http://statistics.data.gov.uk/doc/local-authority/00DA,Leeds City Council,City Development,Recreation,Transport,Plant Spares,346,30-Mar-2011,1103-00701,944.79,R,Balmers Garden Machinery
http://statistics.data.gov.uk/doc/local-authority/00DA,Leeds City Council,City Development,Highways,Capital,Construction,3,31-Mar-2011,1103-00702,245489.58,C,Balvac Ltd
http://statistics.data.gov.uk/doc/local-authority/00DA,Leeds City Council,Childrens Services,Integrated Youth Support  Service,Premises,Rents,141,17-Mar-2011,1103-00703,8924.50,R,Bangladesh Centre Leeds.
http://statistics.data.gov.uk/doc/local-authority/00DA,Leeds City Council,Childrens Services,Integrated Youth Support  Service,Premises,Rents,141,17-Mar-2011,1103-00704,8924.50,R,Bangladesh Centre Leeds.
http://statistics.data.gov.uk/doc/local-authority/00DA,Leeds City Council,Central & Corporate Functions,Commercial Services Trading Services,Transport,Repairs to External Hire Vehicles,343,03-Mar-2011,1103-00705,3400.00,R,Bank Of Scotland Equipment Finance
http://statistics.data.gov.uk/doc/local-authority/00DA,Leeds City Council,Adult Social Care,Services For Older People - 65 And Over,Transfer Payments,Personalised Budgets,627,16-Mar-2011,1103-00706,579.00,R,Barbara Hemmingway
http://statistics.data.gov.uk/doc/local-authority/00DA,Leeds City Council,Childrens Services,Integrated Youth Support  Service,Third Party Payments,Services Rendered By Voluntary Sector,505,01-Mar-2011,1103-00707,2130.25,R,Barca Leeds
http://statistics.data.gov.uk/doc/local-authority/00DA,Leeds City Council,Environment & Neighbourhoods,Regeneration,Supplies and Services,'Well Being' Large Grants Projects,230,07-Mar-2011,1103-00708,18920.08,R,Barca Leeds
http://statistics.data.gov.uk/doc/local-authority/00DA,Leeds City Council,Childrens Services,Youth Justice,Supplies and Services,General Amenity For Clients/Residents,285,18-Mar-2011,1103-00709,588.00,R,Barca Leeds
http://statistics.data.gov.uk/doc/local-authority/00DA,Leeds City Council,City Development,Economic Development,Supplies and Services,Other Hired And Contracted Services,265,21-Mar-2011,1103-00710,4619.33,R,Barca Leeds
http://statistics.data.gov.uk/doc/local-authority/00DA,Leeds City Council,City Development,Economic Development,Supplies and Services,Other Hired And Contracted Services,265,21-Mar-2011,1103-00711,4619.33,R,Barca Leeds
http://statistics.data.gov.uk/doc/local-authority/00DA,Leeds City Council,City Development,Recreation,Supplies and Services,Operational Materials,205,30-Mar-2011,1103-00712,928.80,R,Barenbrug Uk Ltd
http://statistics.data.gov.uk/doc/local-authority/00DA,Leeds City Council,Childrens Services,Other Childrens And Families Services,Supplies and Services,Other Hired And Contracted Services,265,21-Mar-2011,1103-00713,35191.37,R,Barnardo Services Ltd
http://statistics.data.gov.uk/doc/local-authority/00DA,Leeds City Council,Childrens Services,Other Childrens And Families Services,Third Party Payments,Payments To Voluntary Organisations,561,23-Mar-2011,1103-00714,34994.75,R,Barnardo Services Ltd
http://statistics.data.gov.uk/doc/local-authority/00DA,Leeds City Council,Childrens Services,Youth Justice,Supplies and Services,General Amenity For Clients/Residents,285,24-Mar-2011,1103-00715,1500.00,R,Barnardo Services Ltd
http://statistics.data.gov.uk/doc/local-authority/00DA,Leeds City Council,Childrens Services,Other Childrens And Families Services,Third Party Payments,Payments To Voluntary Organisations,561,25-Mar-2011,1103-00716,34994.75,R,Barnardo Services Ltd
http://statistics.data.gov.uk/doc/local-authority/00DA,Leeds City Council,Childrens Services,Director Of Childrens Services,Supplies and Services,Recurring & Major Grants Projects,229,16-Mar-2011,1103-00717,127263.00,R,Barnardos
http://statistics.data.gov.uk/doc/local-authority/00DA,Leeds City Council,Childrens Services,Children - Commissioning And Social Work,Employees,Professionally Linked Training,076,31-Mar-2011,1103-00718,1125.00,R,Barnardos Child Care Publications
http://statistics.data.gov.uk/doc/local-authority/00DA,Leeds City Council,Childrens Services,Integrated Youth Support  Service,Third Party Payments,Services Rendered By Voluntary Sector,505,07-Mar-2011,1103-00719,6874.98,R,Barnardos Yorkshire
http://statistics.data.gov.uk/doc/local-authority/00DA,Education Leeds,Education Leeds,Education Leeds,Transfer Payments,Outside Placement - Fees,606,11-Mar-2011,1103-00720,12768.67,R,Barnardos Yorkshire
http://statistics.data.gov.uk/doc/local-authority/00DA,Leeds City Council,Childrens Services,Family Support Services,Third Party Payments,Services Rendered By Voluntary Sector,505,30-Mar-2011,1103-00721,42826.25,R,Barnardos Yorkshire
http://statistics.data.gov.uk/doc/local-authority/00DA,Leeds City Council,Environment & Neighbourhoods,Housing Needs,Income,Admissions Booking Fees & Ticket Sales,933,10-Mar-2011,1103-00722,-4287.00,R,Barnsley Mbc
http://statistics.data.gov.uk/doc/local-authority/00DA,Leeds City Council,Environment & Neighbourhoods,Housing Needs,Income,Admissions Booking Fees & Ticket Sales,933,31-Mar-2011,1103-00723,-4287.00,R,Barnsley Mbc
http://statistics.data.gov.uk/doc/local-authority/00DA,Leeds City Council,Central & Corporate Functions,Support And Facilities Trading Services,Supplies and Services,Other Hired And Contracted Services,265,25-Mar-2011,1103-00724,3350.00,R,Barson Print Ltd
http://statistics.data.gov.uk/doc/local-authority/00DA,Leeds City Council,City Development,Planning & Sustainable Development,Income,Planning Fees,939,31-Mar-2011,1103-00725,935.00,R,Bartle & Son Clients
http://statistics.data.gov.uk/doc/local-authority/00DA,Leeds City Council,City Development,Recreation,Supplies and Services,Advertising,211,08-Mar-2011,1103-00726,2495.13,R,Bauer Radio Ltd
http://statistics.data.gov.uk/doc/local-authority/00DA,Leeds City Council,City Development,Economic Development,Supplies and Services,Publication And Promotion,267,10-Mar-2011,1103-00727,1371.77,R,Bauer Radio Ltd
http://statistics.data.gov.uk/doc/local-authority/00DA,Education Leeds,Education Leeds,Education Leeds,Supplies and Services,Advertising,211,28-Mar-2011,1103-00728,1400.00,R,Bauer Radio Ltd
http://statistics.data.gov.uk/doc/local-authority/00DA,Leeds City Council,City Development,Recreation,Supplies and Services,Advertising,211,30-Mar-2011,1103-00729,2198.87,R,Bauer Radio Ltd
http://statistics.data.gov.uk/doc/local-authority/00DA,Leeds City Council,Central & Corporate Functions,Support And Facilities Trading Services,Premises,Oil,122,02-Mar-2011,1103-00730,1182.39,R,Bayford Oil
http://statistics.data.gov.uk/doc/local-authority/00DA,Leeds City Council,Central & Corporate Functions,Commercial Services Trading Services,Transport,Fuel (Non LCC Supplies),321,04-Mar-2011,1103-00731,19391.07,R,Bayford Oil
http://statistics.data.gov.uk/doc/local-authority/00DA,Education Leeds,Education Leeds,Education Leeds,Premises,Oil,122,04-Mar-2011,1103-00732,2527.60,R,Bayford Oil
http://statistics.data.gov.uk/doc/local-authority/00DA,Leeds City Council,Childrens Services,Integrated Youth Support  Service,Premises,Oil,122,04-Mar-2011,1103-00733,1458.00,R,Bayford Oil
http://statistics.data.gov.uk/doc/local-authority/00DA,Leeds City Council,City Development,Recreation,Transport,Fuel (Non LCC Supplies),321,04-Mar-2011,1103-00734,15037.40,R,Bayford Oil
http://statistics.data.gov.uk/doc/local-authority/00DA,Leeds City Council,Central & Corporate Functions,Commercial Services Trading Services,Transport,Fuel (Non LCC Supplies),321,04-Mar-2011,1103-00735,15006.25,R,Bayford Oil
http://statistics.data.gov.uk/doc/local-authority/00DA,Leeds City Council,Central & Corporate Functions,Commercial Services Trading Services,Transport,Fuel (Non LCC Supplies),321,04-Mar-2011,1103-00736,10752.15,R,Bayford Oil
http://statistics.data.gov.uk/doc/local-authority/00DA,Leeds City Council,Central & Corporate Functions,Commercial Services Trading Services,Transport,Fuel (Non LCC Supplies),321,04-Mar-2011,1103-00737,16110.00,R,Bayford Oil
http://statistics.data.gov.uk/doc/local-authority/00DA,Leeds City Council,Central & Corporate Functions,Commercial Services Trading Services,Transport,Fuel (Non LCC Supplies),321,07-Mar-2011,1103-00738,19287.08,R,Bayford Oil
http://statistics.data.gov.uk/doc/local-authority/00DA,Leeds City Council,Central & Corporate Functions,Commercial Services Trading Services,Transport,Fuel (Non LCC Supplies),321,07-Mar-2011,1103-00739,37521.07,R,Bayford Oil
http://statistics.data.gov.uk/doc/local-authority/00DA,Leeds City Council,City Development,Libraries Arts & Heritage,Premises,Oil,122,08-Mar-2011,1103-00740,641.14,R,Bayford Oil
http://statistics.data.gov.uk/doc/local-authority/00DA,Leeds City Council,City Development,Libraries Arts & Heritage,Premises,Oil,122,08-Mar-2011,1103-00741,635.70,R,Bayford Oil
http://statistics.data.gov.uk/doc/local-authority/00DA,Leeds City Council,City Development,Libraries Arts & Heritage,Premises,Oil,122,08-Mar-2011,1103-00742,885.36,R,Bayford Oil
http://statistics.data.gov.uk/doc/local-authority/00DA,Leeds City Council,City Development,Recreation,Transport,Fuel (Non LCC Supplies),321,08-Mar-2011,1103-00743,2335.20,R,Bayford Oil
http://statistics.data.gov.uk/doc/local-authority/00DA,Leeds City Council,Central & Corporate Functions,Commercial Services Trading Services,Transport,Fuel (Non LCC Supplies),321,08-Mar-2011,1103-00744,10750.00,R,Bayford Oil
http://statistics.data.gov.uk/doc/local-authority/00DA,Leeds City Council,City Development,Libraries Arts & Heritage,Premises,Oil,122,09-Mar-2011,1103-00745,1497.99,R,Bayford Oil
http://statistics.data.gov.uk/doc/local-authority/00DA,Leeds City Council,City Development,Libraries Arts & Heritage,Premises,Oil,122,09-Mar-2011,1103-00746,1193.01,R,Bayford Oil
http://statistics.data.gov.uk/doc/local-authority/00DA,Leeds City Council,City Development,Libraries Arts & Heritage,Premises,Oil,122,09-Mar-2011,1103-00747,967.35,R,Bayford Oil
http://statistics.data.gov.uk/doc/local-authority/00DA,Leeds City Council,Environment & Neighbourhoods,Streetscene Environmental Services,Premises,Oil,122,11-Mar-2011,1103-00748,590.90,R,Bayford Oil
http://statistics.data.gov.uk/doc/local-authority/00DA,Leeds City Council,Central & Corporate Functions,Commercial Services Trading Services,Transport,Fuel (Non LCC Supplies),321,11-Mar-2011,1103-00749,1794.60,R,Bayford Oil
http://statistics.data.gov.uk/doc/local-authority/00DA,Leeds City Council,Central & Corporate Functions,Commercial Services Trading Services,Transport,Fuel (Non LCC Supplies),321,16-Mar-2011,1103-00750,16327.50,R,Bayford Oil
http://statistics.data.gov.uk/doc/local-authority/00DA,Leeds City Council,City Development,Recreation,Transport,Fuel (Non LCC Supplies),321,16-Mar-2011,1103-00751,3623.20,R,Bayford Oil
http://statistics.data.gov.uk/doc/local-authority/00DA,Leeds City Council,City Development,Libraries Arts & Heritage,Premises,Oil,122,18-Mar-2011,1103-00752,909.72,R,Bayford Oil
http://statistics.data.gov.uk/doc/local-authority/00DA,Leeds City Council,City Development,Libraries Arts & Heritage,Premises,Oil,122,18-Mar-2011,1103-00753,1141.80,R,Bayford Oil
http://statistics.data.gov.uk/doc/local-authority/00DA,Leeds City Council,Central & Corporate Functions,Commercial Services Trading Services,Transport,Fuel (Non LCC Supplies),321,18-Mar-2011,1103-00754,21440.00,R,Bayford Oil
http://statistics.data.gov.uk/doc/local-authority/00DA,Leeds City Council,Central & Corporate Functions,Support And Facilities Trading Services,Premises,Oil,122,18-Mar-2011,1103-00755,1147.51,R,Bayford Oil
http://statistics.data.gov.uk/doc/local-authority/00DA,Leeds City Council,Central & Corporate Functions,Commercial Services Trading Services,Transport,Fuel (Non LCC Supplies),321,18-Mar-2011,1103-00756,20643.50,R,Bayford Oil
http://statistics.data.gov.uk/doc/local-authority/00DA,Leeds City Council,Central & Corporate Functions,Commercial Services Trading Services,Transport,Fuel (Non LCC Supplies),321,18-Mar-2011,1103-00757,38027.50,R,Bayford Oil
http://statistics.data.gov.uk/doc/local-authority/00DA,Leeds City Council,Central & Corporate Functions,Commercial Services Trading Services,Transport,Fuel (Non LCC Supplies),321,18-Mar-2011,1103-00758,23949.20,R,Bayford Oil
http://statistics.data.gov.uk/doc/local-authority/00DA,Leeds City Council,Central & Corporate Functions,Commercial Services Trading Services,Transport,Fuel (Non LCC Supplies),321,18-Mar-2011,1103-00759,19636.17,R,Bayford Oil
http://statistics.data.gov.uk/doc/local-authority/00DA,Leeds City Council,Central & Corporate Functions,Commercial Services Trading Services,Transport,Fuel (Non LCC Supplies),321,18-Mar-2011,1103-00760,38098.82,R,Bayford Oil
http://statistics.data.gov.uk/doc/local-authority/00DA,Leeds City Council,Central & Corporate Functions,Commercial Services Trading Services,Transport,Fuel (Non LCC Supplies),321,22-Mar-2011,1103-00761,16359.00,R,Bayford Oil
http://statistics.data.gov.uk/doc/local-authority/00DA,Leeds City Council,Central & Corporate Functions,Commercial Services Trading Services,Transport,Fuel (Non LCC Supplies),321,22-Mar-2011,1103-00762,10970.58,R,Bayford Oil
http://statistics.data.gov.uk/doc/local-authority/00DA,Leeds City Council,Central & Corporate Functions,Commercial Services Trading Services,Transport,Fuel (Non LCC Supplies),321,22-Mar-2011,1103-00763,1801.50,R,Bayford Oil
http://statistics.data.gov.uk/doc/local-authority/00DA,Leeds City Council,Childrens Services,Integrated Youth Support  Service,Premises,Oil,122,23-Mar-2011,1103-00764,1794.60,R,Bayford Oil
http://statistics.data.gov.uk/doc/local-authority/00DA,Leeds City Council,City Development,Libraries Arts & Heritage,Premises,Oil,122,24-Mar-2011,1103-00765,609.52,R,Bayford Oil
http://statistics.data.gov.uk/doc/local-authority/00DA,Leeds City Council,City Development,Recreation,Transport,Fuel (Non LCC Supplies),321,24-Mar-2011,1103-00766,15242.27,R,Bayford Oil
http://statistics.data.gov.uk/doc/local-authority/00DA,Leeds City Council,Central & Corporate Functions,Commercial Services Trading Services,Transport,Fuel (Non LCC Supplies),321,25-Mar-2011,1103-00767,3021.00,R,Bayford Oil
http://statistics.data.gov.uk/doc/local-authority/00DA,Leeds City Council,City Development,Libraries Arts & Heritage,Premises,Oil,122,30-Mar-2011,1103-00768,528.32,R,Bayford Oil
http://statistics.data.gov.uk/doc/local-authority/00DA,Leeds City Council,City Development,Recreation,Transport,Fuel (Non LCC Supplies),321,31-Mar-2011,1103-00769,4916.25,R,Bayford Oil
http://statistics.data.gov.uk/doc/local-authority/00DA,Leeds City Council,Adult Social Care,Services For Older People Under 65 P/Dis,Third Party Payments,Residential,580,16-Mar-2011,1103-00770,7984.00,R,Baylis Place
http://statistics.data.gov.uk/doc/local-authority/00DA,Leeds City Council,Central & Corporate Functions,Commercial Services Trading Services,Supplies and Services,Operational Materials,205,04-Mar-2011,1103-00771,437.92,R,Bbn Fastnet
http://statistics.data.gov.uk/doc/local-authority/00DA,Leeds City Council,Central & Corporate Functions,Information Technology,Supplies and Services,Networks Dept Orders - Expenditure,090,03-Mar-2011,1103-00772,625.00,R,Beacon Communication Technology (North)
http://statistics.data.gov.uk/doc/local-authority/00DA,Leeds City Council,Central & Corporate Functions,Information Technology,Capital,Furniture And Equipment,5,03-Mar-2011,1103-00773,606.00,C,Beacon Communication Technology (North)
http://statistics.data.gov.uk/doc/local-authority/00DA,Leeds City Council,Central & Corporate Functions,Information Technology,Supplies and Services,Telephones,213,04-Mar-2011,1103-00774,428.90,R,Beacon Communication Technology (North)
http://statistics.data.gov.uk/doc/local-authority/00DA,Leeds City Council,Central & Corporate Functions,Information Technology,Supplies and Services,Telephones,213,04-Mar-2011,1103-00775,433.50,R,Beacon Communication Technology (North)
http://statistics.data.gov.uk/doc/local-authority/00DA,Leeds City Council,Central & Corporate Functions,Information Technology,Supplies and Services,Telephones,213,04-Mar-2011,1103-00776,425.00,R,Beacon Communication Technology (North)
http://statistics.data.gov.uk/doc/local-authority/00DA,Leeds City Council,Central & Corporate Functions,Information Technology,Supplies and Services,Networks Dept Orders - Expenditure,090,10-Mar-2011,1103-00777,3800.00,R,Beacon Communication Technology (North)
http://statistics.data.gov.uk/doc/local-authority/00DA,Leeds City Council,Central & Corporate Functions,Information Technology,Supplies and Services,Networks Dept Orders - Expenditure,090,10-Mar-2011,1103-00778,4700.00,R,Beacon Communication Technology (North)
http://statistics.data.gov.uk/doc/local-authority/00DA,Leeds City Council,Central & Corporate Functions,Information Technology,Supplies and Services,Telephones,213,16-Mar-2011,1103-00779,436.00,R,Beacon Communication Technology (North)
http://statistics.data.gov.uk/doc/local-authority/00DA,Leeds City Council,Central & Corporate Functions,Information Technology,Supplies and Services,Networks Dept Orders - Expenditure,090,24-Mar-2011,1103-00780,3845.00,R,Beacon Communication Technology (North)
http://statistics.data.gov.uk/doc/local-authority/00DA,Leeds City Council,Central & Corporate Functions,Information Technology,Supplies and Services,Telephones,213,24-Mar-2011,1103-00781,436.90,R,Beacon Communication Technology (North)
http://statistics.data.gov.uk/doc/local-authority/00DA,Leeds City Council,Central & Corporate Functions,Information Technology,Supplies and Services,Telephones,213,29-Mar-2011,1103-00782,425.00,R,Beacon Communication Technology (North)
http://statistics.data.gov.uk/doc/local-authority/00DA,Leeds City Council,Central & Corporate Functions,Information Technology,Supplies and Services,Telephones,213,29-Mar-2011,1103-00783,425.00,R,Beacon Communication Technology (North)
http://statistics.data.gov.uk/doc/local-authority/00DA,Leeds City Council,Central & Corporate Functions,Commercial Services Trading Services,Supplies and Services,Other Hired And Contracted Services,265,30-Mar-2011,1103-00784,4070.00,R,Beacon Communication Technology (North)
http://statistics.data.gov.uk/doc/local-authority/00DA,Leeds City Council,Environment & Neighbourhoods,Regeneration,Supplies and Services,Office Furniture & Equipment,201,31-Mar-2011,1103-00785,784.00,R,Beaumont Carpets Ltd
http://statistics.data.gov.uk/doc/local-authority/00DA,Leeds City Council,City Development,Recreation,Supplies and Services,Clothing & Uniforms,241,25-Mar-2011,1103-00786,523.35,R,Beaver Corporate Clothing Ltd
http://statistics.data.gov.uk/doc/local-authority/00DA,Leeds City Council,Adult Social Care,Services For Older People - 65 And Over,Third Party Payments,Residential,580,16-Mar-2011,1103-00787,1242.80,R,Beech Lodge Residential Home
http://statistics.data.gov.uk/doc/local-authority/00DA,Leeds City Council,Childrens Services,Early Years Service,Third Party Payments,Services Rendered By Other Organisations,511,22-Mar-2011,1103-00788,4799.27,R,Beechtree Headingley Kindergarten
http://statistics.data.gov.uk/doc/local-authority/00DA,Leeds City Council,Strategic Accounts,Miscellaneous,Supplies and Services,Non-Recurring Grants,227,03-Mar-2011,1103-00789,750.00,R,Beeston Festival
http://statistics.data.gov.uk/doc/local-authority/00DA,Leeds City Council,City Development,Recreation,Supplies and Services,Operational Furniture and Equipment,203,03-Mar-2011,1103-00790,1830.00,R,Bee-Tee Products
http://statistics.data.gov.uk/doc/local-authority/00DA,Leeds City Council,Environment & Neighbourhoods,Housing Needs,Third Party Payments,Supporting Ppl - Block Gross Chargeable,514,29-Mar-2011,1103-00791,8786.79,R,Behind Closed Doors (Bcd)
http://statistics.data.gov.uk/doc/local-authority/00DA,West - North West Homes Leeds,West - North West,Property And Maintenance,Premises,H.R.A. - Repairs A To P,107,24-Mar-2011,1103-00792,7051.64,R,Bell Group Uk
http://statistics.data.gov.uk/doc/local-authority/00DA,West - North West Homes Leeds,West - North West,Property And Maintenance,Premises,H.R.A. - Repairs A To P,107,31-Mar-2011,1103-00793,1989.40,R,Bell Group Uk
http://statistics.data.gov.uk/doc/local-authority/00DA,West - North West Homes Leeds,West - North West,Property And Maintenance,Premises,H.R.A. - Repairs A To P,107,31-Mar-2011,1103-00794,970.06,R,Bell Group Uk
http://statistics.data.gov.uk/doc/local-authority/00DA,West - North West Homes Leeds,West - North West,Property And Maintenance,Premises,H.R.A. - Repairs A To P,107,31-Mar-2011,1103-00795,640.00,R,Bell Group Uk
http://statistics.data.gov.uk/doc/local-authority/00DA,West - North West Homes Leeds,West - North West,Property And Maintenance,Premises,H.R.A. - Repairs A To P,107,31-Mar-2011,1103-00796,11790.00,R,Bell Group Uk
http://statistics.data.gov.uk/doc/local-authority/00DA,West - North West Homes Leeds,West - North West,Property And Maintenance,Premises,H.R.A. - Repairs A To P,107,31-Mar-2011,1103-00797,11790.00,R,Bell Group Uk
http://statistics.data.gov.uk/doc/local-authority/00DA,Leeds City Council,Central & Corporate Functions,Support And Facilities Trading Services,Supplies and Services,Other Hired And Contracted Services,265,31-Mar-2011,1103-00798,1332.00,R,Bell Group Uk
http://statistics.data.gov.uk/doc/local-authority/00DA,Leeds City Council,Central & Corporate Functions,Support And Facilities Trading Services,Supplies and Services,Other Hired And Contracted Services,265,31-Mar-2011,1103-00799,1480.00,R,Bell Group Uk
http://statistics.data.gov.uk/doc/local-authority/00DA,Leeds City Council,Central & Corporate Functions,Support And Facilities Trading Services,Supplies and Services,Other Hired And Contracted Services,265,31-Mar-2011,1103-00800,1628.00,R,Bell Group Uk
http://statistics.data.gov.uk/doc/local-authority/00DA,Leeds City Council,Adult Social Care,Services For Older People - 65 And Over,Third Party Payments,Nursing Home,570,17-Mar-2011,1103-00801,1374.64,R,Belle Green Court Care Home
http://statistics.data.gov.uk/doc/local-authority/00DA,Leeds City Council,Environment & Neighbourhoods,HRA,Supplies and Services,ALMO,002,16-Mar-2011,1103-00802,80497.45,R,Belle Isle Tenant Management
http://statistics.data.gov.uk/doc/local-authority/00DA,Leeds City Council,Environment & Neighbourhoods,Housing Needs,Third Party Payments,Supporting People - Block Subsidy,513,29-Mar-2011,1103-00803,5720.96,R,Belle Isle Tenant Management
http://statistics.data.gov.uk/doc/local-authority/00DA,Leeds City Council,Environment & Neighbourhoods,Housing Needs,Third Party Payments,Supporting Ppl - Block Gross Chargeable,514,29-Mar-2011,1103-00804,2438.78,R,Belle Isle Tenant Management
http://statistics.data.gov.uk/doc/local-authority/00DA,Leeds City Council,Environment & Neighbourhoods,Housing Needs,Third Party Payments,Supporting Ppl - Block Gross Chargeable,514,29-Mar-2011,1103-00805,2005.24,R,Belle Isle Tenant Management
http://statistics.data.gov.uk/doc/local-authority/00DA,Leeds City Council,Other Education Services Managed By E.L.,Primary Schools,Capital,Other Costs,7,31-Mar-2011,1103-00806,525.00,C,Belmont Ndt & Quality Services
http://statistics.data.gov.uk/doc/local-authority/00DA,Leeds City Council,Adult Social Care,Services For Older People - 65 And Over,Third Party Payments,Residential,580,16-Mar-2011,1103-00807,963.76,R,Belvedere Residential Home
http://statistics.data.gov.uk/doc/local-authority/00DA,Leeds City Council,Central & Corporate Functions,Commercial Services Trading Services,Transport,Vehicle Spares,345,22-Mar-2011,1103-00808,612.00,R,Benfield Ford Leeds (Parts Invs)
http://statistics.data.gov.uk/doc/local-authority/00DA,Leeds City Council,Adult Social Care,Services For Older People - 65 And Over,Third Party Payments,Residential Care Emi,571,16-Mar-2011,1103-00809,18347.17,R,Berkley Court
http://statistics.data.gov.uk/doc/local-authority/00DA,Leeds City Council,Adult Social Care,Services For Older People - 65 And Over,Third Party Payments,Residential,580,16-Mar-2011,1103-00810,30924.84,R,Berkley Court
http://statistics.data.gov.uk/doc/local-authority/00DA,West - North West Homes Leeds,West - North West,Customer And Tenancy,Premises,Fixtures & Fittings,131,08-Mar-2011,1103-00811,37897.90,R,Bermar Building Company Ltd
http://statistics.data.gov.uk/doc/local-authority/00DA,Leeds City Council,Environment & Neighbourhoods,West North West,Capital,Construction,3,17-Mar-2011,1103-00812,31922.59,C,Bermar Building Company Ltd
http://statistics.data.gov.uk/doc/local-authority/00DA,Leeds City Council,Childrens Services,Children - Commissioning And Social Work,Supplies and Services,Consultancy Services,259,09-Mar-2011,1103-00813,1550.00,R,Berrybrown Ltd
http://statistics.data.gov.uk/doc/local-authority/00DA,Leeds City Council,Childrens Services,Children - Commissioning And Social Work,Supplies and Services,Consultancy Services,259,11-Mar-2011,1103-00814,1240.00,R,Berrybrown Ltd
http://statistics.data.gov.uk/doc/local-authority/00DA,Leeds City Council,Central & Corporate Functions,Corporate Governance,Support Services,External Solicitor - Resource,752,04-Mar-2011,1103-00815,999.90,R,Berrymans Lace Mawer
http://statistics.data.gov.uk/doc/local-authority/00DA,Leeds City Council,Central & Corporate Functions,Corporate Governance,Support Services,External Solicitor - Resource,752,04-Mar-2011,1103-00816,1019.50,R,Berrymans Lace Mawer
http://statistics.data.gov.uk/doc/local-authority/00DA,Leeds City Council,Central & Corporate Functions,Corporate Governance,Support Services,External Solicitor - Resource,752,04-Mar-2011,1103-00817,3654.60,R,Berrymans Lace Mawer
http://statistics.data.gov.uk/doc/local-authority/00DA,Leeds City Council,Central & Corporate Functions,Corporate Governance,Support Services,External Solicitor - Resource,752,04-Mar-2011,1103-00818,1543.50,R,Berrymans Lace Mawer
http://statistics.data.gov.uk/doc/local-authority/00DA,Leeds City Council,Central & Corporate Functions,Corporate Governance,Support Services,External Solicitor - Resource,752,04-Mar-2011,1103-00819,1038.50,R,Berrymans Lace Mawer
http://statistics.data.gov.uk/doc/local-authority/00DA,Leeds City Council,Central & Corporate Functions,Corporate Governance,Support Services,External Solicitor - Resource,752,04-Mar-2011,1103-00820,955.00,R,Berrymans Lace Mawer
http://statistics.data.gov.uk/doc/local-authority/00DA,Leeds City Council,Central & Corporate Functions,Corporate Governance,Support Services,External Solicitor - Resource,752,04-Mar-2011,1103-00821,498.50,R,Berrymans Lace Mawer
